﻿Department Family,Entity,Date,Expense Type,Expense Area,Supplier,Transaction Number,Amount,Item Description
BEIS,UKRI - AHRC,01/11/2022,T&S UK - Subsistence,SMT,Unspecified,99830579,6.60,T&S UK - Subsistence
BEIS,UKRI - AHRC,01/11/2022,T&S UK - Subsistence,SMT,Unspecified,99830579,27.85,T&S UK - Subsistence
BEIS,UKRI - AHRC,02/11/2022,Fees (Including College Members),Operations,Unspecified,99830871,170.00,Fees (Including College Members)
BEIS,UKRI - AHRC,02/11/2022,T&S UK - Public Transport,AHRC - Creative Industries,Unspecified,99831251,19.80,T&S UK - Public Transport
BEIS,UKRI - AHRC,02/11/2022,T&S UK - Subsistence,AHRC - Creative Industries,Unspecified,99831251,20.35,T&S UK - Subsistence
BEIS,UKRI - AHRC,02/11/2022,T&S UK - Subsistence,AHRC - Creative Industries,Unspecified,99831251,32.39,T&S UK - Subsistence
BEIS,UKRI - AHRC,02/11/2022,T&S UK - Subsistence,AHRC - Creative Industries,Unspecified,99831251,15.00,T&S UK - Subsistence
BEIS,UKRI - AHRC,03/11/2022,Unspecified,Infrastructure Fund - RICHeS,Alexander Mann Solutions Ltd,99829259,3465.30,Legal & Professional Services
BEIS,UKRI - AHRC,03/11/2022,Health & Safety (inc. Medicals & Opticians),Health and Environmental Humanities,Unspecified,99831533,16.99,Health & Safety (inc. Medicals & Opticians)
BEIS,UKRI - AHRC,04/11/2022,Fees (Including College Members),Operations,Unspecified,99831607,230.00,Fees (Including College Members)
BEIS,UKRI - AHRC,04/11/2022,Fees (Including College Members),Operations,Unspecified,99831608,170.00,Fees (Including College Members)
BEIS,UKRI - AHRC,04/11/2022,Fees (Including College Members),Operations,Unspecified,99831617,85.00,Fees (Including College Members)
BEIS,UKRI - AHRC,07/11/2022,Health & Safety (inc. Medicals & Opticians),Skills Strategy,Unspecified,99834123,16.99,Health & Safety (inc. Medicals & Opticians)
BEIS,UKRI - AHRC,08/11/2022,Non-staff travel and subsistance,Health and Environmental Humanities,Corporate Travel Management (North) Ltd,99834235,0.80,Non-staff travel and subsistance
BEIS,UKRI - AHRC,08/11/2022,Non-staff travel and subsistance,Health and Environmental Humanities,Corporate Travel Management (North) Ltd,99834235,75.00,Non-staff travel and subsistance
BEIS,UKRI - AHRC,08/11/2022,Non-staff travel and subsistance,Health and Environmental Humanities,Corporate Travel Management (North) Ltd,99834235,0.16,Non-staff travel and subsistance
BEIS,UKRI - AHRC,08/11/2022,T&S Overseas - Flights,"History, Heritage, Languages and Literature",Corporate Travel Management (North) Ltd,99834235,2.50,T&S Overseas - Flights
BEIS,UKRI - AHRC,08/11/2022,T&S Overseas - Flights,"History, Heritage, Languages and Literature",Corporate Travel Management (North) Ltd,99834235,270.47,T&S Overseas - Flights
BEIS,UKRI - AHRC,08/11/2022,T&S Overseas - Flights,Infrastruture Roadmap,Corporate Travel Management (North) Ltd,99834235,2.50,T&S Overseas - Flights
BEIS,UKRI - AHRC,08/11/2022,T&S Overseas - Flights,Infrastruture Roadmap,Corporate Travel Management (North) Ltd,99834235,247.37,T&S Overseas - Flights
BEIS,UKRI - AHRC,08/11/2022,T&S Overseas - Public Transport,"History, Heritage, Languages and Literature",Corporate Travel Management (North) Ltd,99834235,0.25,T&S Overseas - Public Transport
BEIS,UKRI - AHRC,08/11/2022,T&S Overseas - Public Transport,"History, Heritage, Languages and Literature",Corporate Travel Management (North) Ltd,99834235,187.60,T&S Overseas - Public Transport
BEIS,UKRI - AHRC,08/11/2022,T&S UK - Accommodation,AHRC - Creative Industries,Corporate Travel Management (North) Ltd,99834235,0.80,T&S UK - Accommodation
BEIS,UKRI - AHRC,08/11/2022,T&S UK - Accommodation,AHRC - Creative Industries,Corporate Travel Management (North) Ltd,99834235,345.60,T&S UK - Accommodation
BEIS,UKRI - AHRC,08/11/2022,T&S UK - Accommodation,AHRC - Creative Industries,Corporate Travel Management (North) Ltd,99834235,0.80,T&S UK - Accommodation
BEIS,UKRI - AHRC,08/11/2022,T&S UK - Accommodation,AHRC - Creative Industries,Corporate Travel Management (North) Ltd,99834235,334.00,T&S UK - Accommodation
BEIS,UKRI - AHRC,08/11/2022,T&S UK - Accommodation,AHRC - Creative Industries,Corporate Travel Management (North) Ltd,99834235,0.80,T&S UK - Accommodation
BEIS,UKRI - AHRC,08/11/2022,T&S UK - Accommodation,AHRC - Creative Industries,Corporate Travel Management (North) Ltd,99834235,355.50,T&S UK - Accommodation
BEIS,UKRI - AHRC,08/11/2022,T&S UK - Accommodation,AHRC - Creative Industries,Corporate Travel Management (North) Ltd,99834235,0.80,T&S UK - Accommodation
BEIS,UKRI - AHRC,08/11/2022,T&S UK - Accommodation,AHRC - Creative Industries,Corporate Travel Management (North) Ltd,99834235,120.70,T&S UK - Accommodation
BEIS,UKRI - AHRC,08/11/2022,T&S UK - Accommodation,AHRC - Creative Industries,Corporate Travel Management (North) Ltd,99834235,0.64,T&S UK - Accommodation
BEIS,UKRI - AHRC,08/11/2022,T&S UK - Accommodation,AI&Design,Corporate Travel Management (North) Ltd,99834235,0.80,T&S UK - Accommodation
BEIS,UKRI - AHRC,08/11/2022,T&S UK - Accommodation,AI&Design,Corporate Travel Management (North) Ltd,99834235,0.16,T&S UK - Accommodation
BEIS,UKRI - AHRC,08/11/2022,T&S UK - Accommodation,Health and Environmental Humanities,Corporate Travel Management (North) Ltd,99834235,0.80,T&S UK - Accommodation
BEIS,UKRI - AHRC,08/11/2022,T&S UK - Accommodation,Health and Environmental Humanities,Corporate Travel Management (North) Ltd,99834235,0.16,T&S UK - Accommodation
BEIS,UKRI - AHRC,08/11/2022,T&S UK - Accommodation,Infrastruture Roadmap,Corporate Travel Management (North) Ltd,99834235,0.80,T&S UK - Accommodation
BEIS,UKRI - AHRC,08/11/2022,T&S UK - Accommodation,Infrastruture Roadmap,Corporate Travel Management (North) Ltd,99834235,112.00,T&S UK - Accommodation
BEIS,UKRI - AHRC,08/11/2022,T&S UK - Accommodation,Infrastruture Roadmap,Corporate Travel Management (North) Ltd,99834235,0.80,T&S UK - Accommodation
BEIS,UKRI - AHRC,08/11/2022,T&S UK - Accommodation,Infrastruture Roadmap,Corporate Travel Management (North) Ltd,99834235,167.20,T&S UK - Accommodation
BEIS,UKRI - AHRC,08/11/2022,T&S UK - Accommodation,Infrastruture Roadmap,Corporate Travel Management (North) Ltd,99834235,0.80,T&S UK - Accommodation
BEIS,UKRI - AHRC,08/11/2022,T&S UK - Accommodation,Infrastruture Roadmap,Corporate Travel Management (North) Ltd,99834235,83.60,T&S UK - Accommodation
BEIS,UKRI - AHRC,08/11/2022,T&S UK - Accommodation,Infrastruture Roadmap,Corporate Travel Management (North) Ltd,99834235,0.80,T&S UK - Accommodation
BEIS,UKRI - AHRC,08/11/2022,T&S UK - Accommodation,Infrastruture Roadmap,Corporate Travel Management (North) Ltd,99834235,90.25,T&S UK - Accommodation
BEIS,UKRI - AHRC,08/11/2022,T&S UK - Accommodation,Infrastruture Roadmap,Corporate Travel Management (North) Ltd,99834235,0.64,T&S UK - Accommodation
BEIS,UKRI - AHRC,08/11/2022,T&S UK - Accommodation,International Partnership and Engagement,Corporate Travel Management (North) Ltd,99834235,0.80,T&S UK - Accommodation
BEIS,UKRI - AHRC,08/11/2022,T&S UK - Accommodation,International Partnership and Engagement,Corporate Travel Management (North) Ltd,99834235,50.59,T&S UK - Accommodation
BEIS,UKRI - AHRC,08/11/2022,T&S UK - Accommodation,International Partnership and Engagement,Corporate Travel Management (North) Ltd,99834235,0.80,T&S UK - Accommodation
BEIS,UKRI - AHRC,08/11/2022,T&S UK - Accommodation,International Partnership and Engagement,Corporate Travel Management (North) Ltd,99834235,196.50,T&S UK - Accommodation
BEIS,UKRI - AHRC,08/11/2022,T&S UK - Accommodation,International Partnership and Engagement,Corporate Travel Management (North) Ltd,99834235,0.32,T&S UK - Accommodation
BEIS,UKRI - AHRC,08/11/2022,T&S UK - Accommodation,Programme Management Office,Corporate Travel Management (North) Ltd,99834235,0.80,T&S UK - Accommodation
BEIS,UKRI - AHRC,08/11/2022,T&S UK - Accommodation,Programme Management Office,Corporate Travel Management (North) Ltd,99834235,304.20,T&S UK - Accommodation
BEIS,UKRI - AHRC,08/11/2022,T&S UK - Accommodation,Programme Management Office,Corporate Travel Management (North) Ltd,99834235,0.16,T&S UK - Accommodation
BEIS,UKRI - AHRC,08/11/2022,T&S UK - Accommodation,SMT,Corporate Travel Management (North) Ltd,99834235,1.60,T&S UK - Accommodation
BEIS,UKRI - AHRC,08/11/2022,T&S UK - Accommodation,SMT,Corporate Travel Management (North) Ltd,99834235,162.00,T&S UK - Accommodation
BEIS,UKRI - AHRC,08/11/2022,T&S UK - Accommodation,SMT,Corporate Travel Management (North) Ltd,99834235,0.80,T&S UK - Accommodation
BEIS,UKRI - AHRC,08/11/2022,T&S UK - Accommodation,SMT,Corporate Travel Management (North) Ltd,99834235,110.00,T&S UK - Accommodation
BEIS,UKRI - AHRC,08/11/2022,T&S UK - Accommodation,SMT,Corporate Travel Management (North) Ltd,99834235,0.48,T&S UK - Accommodation
BEIS,UKRI - AHRC,08/11/2022,T&S UK - Flights,AI&Design,Corporate Travel Management (North) Ltd,99834235,1.50,T&S UK - Flights
BEIS,UKRI - AHRC,08/11/2022,T&S UK - Flights,AI&Design,Corporate Travel Management (North) Ltd,99834235,121.98,T&S UK - Flights
BEIS,UKRI - AHRC,08/11/2022,T&S UK - Flights,AI&Design,Corporate Travel Management (North) Ltd,99834235,1.50,T&S UK - Flights
BEIS,UKRI - AHRC,08/11/2022,T&S UK - Flights,AI&Design,Corporate Travel Management (North) Ltd,99834235,121.98,T&S UK - Flights
BEIS,UKRI - AHRC,08/11/2022,T&S UK - Flights,AI&Design,Corporate Travel Management (North) Ltd,99834235,1.50,T&S UK - Flights
BEIS,UKRI - AHRC,08/11/2022,T&S UK - Flights,AI&Design,Corporate Travel Management (North) Ltd,99834235,121.98,T&S UK - Flights
BEIS,UKRI - AHRC,08/11/2022,T&S UK - Flights,AI&Design,Corporate Travel Management (North) Ltd,99834235,1.66,T&S UK - Flights
BEIS,UKRI - AHRC,08/11/2022,T&S UK - Flights,AI&Design,Corporate Travel Management (North) Ltd,99834235,146.10,T&S UK - Flights
BEIS,UKRI - AHRC,08/11/2022,T&S UK - Flights,AI&Design,Corporate Travel Management (North) Ltd,99834235,1.66,T&S UK - Flights
BEIS,UKRI - AHRC,08/11/2022,T&S UK - Flights,AI&Design,Corporate Travel Management (North) Ltd,99834235,146.10,T&S UK - Flights
BEIS,UKRI - AHRC,08/11/2022,T&S UK - Flights,AI&Design,Corporate Travel Management (North) Ltd,99834235,0.83,T&S UK - Flights
BEIS,UKRI - AHRC,08/11/2022,T&S UK - Flights,AI&Design,Corporate Travel Management (North) Ltd,99834235,110.12,T&S UK - Flights
BEIS,UKRI - AHRC,08/11/2022,T&S UK - Flights,Infrastruture Roadmap,Corporate Travel Management (North) Ltd,99834235,2.50,T&S UK - Flights
BEIS,UKRI - AHRC,08/11/2022,T&S UK - Flights,Infrastruture Roadmap,Corporate Travel Management (North) Ltd,99834235,0.80,T&S UK - Flights
BEIS,UKRI - AHRC,08/11/2022,T&S UK - Flights,Infrastruture Roadmap,Corporate Travel Management (North) Ltd,99834235,153.98,T&S UK - Flights
BEIS,UKRI - AHRC,08/11/2022,T&S UK - Flights,Infrastruture Roadmap,Corporate Travel Management (North) Ltd,99834235,136.17,T&S UK - Flights
BEIS,UKRI - AHRC,08/11/2022,T&S UK - Flights,Infrastruture Roadmap,Corporate Travel Management (North) Ltd,99834235,0.16,T&S UK - Flights
BEIS,UKRI - AHRC,08/11/2022,T&S UK - Public Transport,AHRC - Creative Industries,Corporate Travel Management (North) Ltd,99834235,0.25,T&S UK - Public Transport
BEIS,UKRI - AHRC,08/11/2022,T&S UK - Public Transport,AHRC - Creative Industries,Corporate Travel Management (North) Ltd,99834235,101.60,T&S UK - Public Transport
BEIS,UKRI - AHRC,08/11/2022,T&S UK - Public Transport,AHRC - Creative Industries,Corporate Travel Management (North) Ltd,99834235,0.80,T&S UK - Public Transport
BEIS,UKRI - AHRC,08/11/2022,T&S UK - Public Transport,AHRC - Creative Industries,Corporate Travel Management (North) Ltd,99834235,71.00,T&S UK - Public Transport
BEIS,UKRI - AHRC,08/11/2022,T&S UK - Public Transport,AHRC - Creative Industries,Corporate Travel Management (North) Ltd,99834235,0.25,T&S UK - Public Transport
BEIS,UKRI - AHRC,08/11/2022,T&S UK - Public Transport,AHRC - Creative Industries,Corporate Travel Management (North) Ltd,99834235,40.70,T&S UK - Public Transport
BEIS,UKRI - AHRC,08/11/2022,T&S UK - Public Transport,AHRC - Creative Industries,Corporate Travel Management (North) Ltd,99834235,2.60,T&S UK - Public Transport
BEIS,UKRI - AHRC,08/11/2022,T&S UK - Public Transport,AHRC - Creative Industries,Corporate Travel Management (North) Ltd,99834235,88.40,T&S UK - Public Transport
BEIS,UKRI - AHRC,08/11/2022,T&S UK - Public Transport,AHRC - Creative Industries,Corporate Travel Management (North) Ltd,99834235,0.25,T&S UK - Public Transport
BEIS,UKRI - AHRC,08/11/2022,T&S UK - Public Transport,AHRC - Creative Industries,Corporate Travel Management (North) Ltd,99834235,39.40,T&S UK - Public Transport
BEIS,UKRI - AHRC,08/11/2022,T&S UK - Public Transport,AHRC - Creative Industries,Corporate Travel Management (North) Ltd,99834235,0.75,T&S UK - Public Transport
BEIS,UKRI - AHRC,08/11/2022,T&S UK - Public Transport,AHRC - Creative Industries,Corporate Travel Management (North) Ltd,99834235,102.80,T&S UK - Public Transport
BEIS,UKRI - AHRC,08/11/2022,T&S UK - Public Transport,AHRC - Creative Industries,Corporate Travel Management (North) Ltd,99834235,105.00,T&S UK - Public Transport
BEIS,UKRI - AHRC,08/11/2022,T&S UK - Public Transport,AHRC - Creative Industries,Corporate Travel Management (North) Ltd,99834235,0.25,T&S UK - Public Transport
BEIS,UKRI - AHRC,08/11/2022,T&S UK - Public Transport,AHRC - Creative Industries,Corporate Travel Management (North) Ltd,99834235,16.90,T&S UK - Public Transport
BEIS,UKRI - AHRC,08/11/2022,T&S UK - Public Transport,AHRC - Creative Industries,Corporate Travel Management (North) Ltd,99834235,0.25,T&S UK - Public Transport
BEIS,UKRI - AHRC,08/11/2022,T&S UK - Public Transport,AHRC - Creative Industries,Corporate Travel Management (North) Ltd,99834235,119.40,T&S UK - Public Transport
BEIS,UKRI - AHRC,08/11/2022,T&S UK - Public Transport,AHRC - Creative Industries,Corporate Travel Management (North) Ltd,99834235,0.16,T&S UK - Public Transport
BEIS,UKRI - AHRC,08/11/2022,T&S UK - Public Transport,AI&Design,Corporate Travel Management (North) Ltd,99834235,0.25,T&S UK - Public Transport
BEIS,UKRI - AHRC,08/11/2022,T&S UK - Public Transport,AI&Design,Corporate Travel Management (North) Ltd,99834235,62.10,T&S UK - Public Transport
BEIS,UKRI - AHRC,08/11/2022,T&S UK - Public Transport,AI&Design,Corporate Travel Management (North) Ltd,99834235,0.25,T&S UK - Public Transport
BEIS,UKRI - AHRC,08/11/2022,T&S UK - Public Transport,AI&Design,Corporate Travel Management (North) Ltd,99834235,83.00,T&S UK - Public Transport
BEIS,UKRI - AHRC,08/11/2022,T&S UK - Public Transport,AI&Design,Corporate Travel Management (North) Ltd,99834235,0.25,T&S UK - Public Transport
BEIS,UKRI - AHRC,08/11/2022,T&S UK - Public Transport,AI&Design,Corporate Travel Management (North) Ltd,99834235,67.20,T&S UK - Public Transport
BEIS,UKRI - AHRC,08/11/2022,T&S UK - Public Transport,Executive Office,Corporate Travel Management (North) Ltd,99834235,2.60,T&S UK - Public Transport
BEIS,UKRI - AHRC,08/11/2022,T&S UK - Public Transport,Executive Office,Corporate Travel Management (North) Ltd,99834235,253.20,T&S UK - Public Transport
BEIS,UKRI - AHRC,08/11/2022,T&S UK - Public Transport,Executive Office,Corporate Travel Management (North) Ltd,99834235,0.25,T&S UK - Public Transport
BEIS,UKRI - AHRC,08/11/2022,T&S UK - Public Transport,Executive Office,Corporate Travel Management (North) Ltd,99834235,151.20,T&S UK - Public Transport
BEIS,UKRI - AHRC,08/11/2022,T&S UK - Public Transport,Health and Environmental Humanities,Corporate Travel Management (North) Ltd,99834235,0.25,T&S UK - Public Transport
BEIS,UKRI - AHRC,08/11/2022,T&S UK - Public Transport,Health and Environmental Humanities,Corporate Travel Management (North) Ltd,99834235,40.70,T&S UK - Public Transport
BEIS,UKRI - AHRC,08/11/2022,T&S UK - Public Transport,"History, Heritage, Languages and Literature",Corporate Travel Management (North) Ltd,99834235,0.25,T&S UK - Public Transport
BEIS,UKRI - AHRC,08/11/2022,T&S UK - Public Transport,"History, Heritage, Languages and Literature",Corporate Travel Management (North) Ltd,99834235,138.10,T&S UK - Public Transport
BEIS,UKRI - AHRC,08/11/2022,T&S UK - Public Transport,Infrastruture Roadmap,Corporate Travel Management (North) Ltd,99834235,0.50,T&S UK - Public Transport
BEIS,UKRI - AHRC,08/11/2022,T&S UK - Public Transport,Infrastruture Roadmap,Corporate Travel Management (North) Ltd,99834235,33.10,T&S UK - Public Transport
BEIS,UKRI - AHRC,08/11/2022,T&S UK - Public Transport,Infrastruture Roadmap,Corporate Travel Management (North) Ltd,99834235,79.50,T&S UK - Public Transport
BEIS,UKRI - AHRC,08/11/2022,T&S UK - Public Transport,Infrastruture Roadmap,Corporate Travel Management (North) Ltd,99834235,0.25,T&S UK - Public Transport
BEIS,UKRI - AHRC,08/11/2022,T&S UK - Public Transport,Infrastruture Roadmap,Corporate Travel Management (North) Ltd,99834235,133.90,T&S UK - Public Transport
BEIS,UKRI - AHRC,08/11/2022,T&S UK - Public Transport,Infrastruture Roadmap,Corporate Travel Management (North) Ltd,99834235,0.25,T&S UK - Public Transport
BEIS,UKRI - AHRC,08/11/2022,T&S UK - Public Transport,Infrastruture Roadmap,Corporate Travel Management (North) Ltd,99834235,97.60,T&S UK - Public Transport
BEIS,UKRI - AHRC,08/11/2022,T&S UK - Public Transport,Infrastruture Roadmap,Corporate Travel Management (North) Ltd,99834235,0.25,T&S UK - Public Transport
BEIS,UKRI - AHRC,08/11/2022,T&S UK - Public Transport,Infrastruture Roadmap,Corporate Travel Management (North) Ltd,99834235,134.20,T&S UK - Public Transport
BEIS,UKRI - AHRC,08/11/2022,T&S UK - Public Transport,Infrastruture Roadmap,Corporate Travel Management (North) Ltd,99834235,0.25,T&S UK - Public Transport
BEIS,UKRI - AHRC,08/11/2022,T&S UK - Public Transport,Infrastruture Roadmap,Corporate Travel Management (North) Ltd,99834235,148.80,T&S UK - Public Transport
BEIS,UKRI - AHRC,08/11/2022,T&S UK - Public Transport,Infrastruture Roadmap,Corporate Travel Management (North) Ltd,99834235,0.25,T&S UK - Public Transport
BEIS,UKRI - AHRC,08/11/2022,T&S UK - Public Transport,Infrastruture Roadmap,Corporate Travel Management (North) Ltd,99834235,29.20,T&S UK - Public Transport
BEIS,UKRI - AHRC,08/11/2022,T&S UK - Public Transport,Infrastruture Roadmap,Corporate Travel Management (North) Ltd,99834235,0.25,T&S UK - Public Transport
BEIS,UKRI - AHRC,08/11/2022,T&S UK - Public Transport,Infrastruture Roadmap,Corporate Travel Management (North) Ltd,99834235,53.90,T&S UK - Public Transport
BEIS,UKRI - AHRC,08/11/2022,T&S UK - Public Transport,Infrastruture Roadmap,Corporate Travel Management (North) Ltd,99834235,0.25,T&S UK - Public Transport
BEIS,UKRI - AHRC,08/11/2022,T&S UK - Public Transport,Infrastruture Roadmap,Corporate Travel Management (North) Ltd,99834235,26.00,T&S UK - Public Transport
BEIS,UKRI - AHRC,08/11/2022,T&S UK - Public Transport,Infrastruture Roadmap,Corporate Travel Management (North) Ltd,99834235,0.25,T&S UK - Public Transport
BEIS,UKRI - AHRC,08/11/2022,T&S UK - Public Transport,Infrastruture Roadmap,Corporate Travel Management (North) Ltd,99834235,40.70,T&S UK - Public Transport
BEIS,UKRI - AHRC,08/11/2022,T&S UK - Public Transport,Infrastruture Roadmap,Corporate Travel Management (North) Ltd,99834235,0.25,T&S UK - Public Transport
BEIS,UKRI - AHRC,08/11/2022,T&S UK - Public Transport,Infrastruture Roadmap,Corporate Travel Management (North) Ltd,99834235,27.40,T&S UK - Public Transport
BEIS,UKRI - AHRC,08/11/2022,T&S UK - Public Transport,Infrastruture Roadmap,Corporate Travel Management (North) Ltd,99834235,0.25,T&S UK - Public Transport
BEIS,UKRI - AHRC,08/11/2022,T&S UK - Public Transport,Infrastruture Roadmap,Corporate Travel Management (North) Ltd,99834235,28.30,T&S UK - Public Transport
BEIS,UKRI - AHRC,08/11/2022,T&S UK - Public Transport,Infrastruture Roadmap,Corporate Travel Management (North) Ltd,99834235,0.50,T&S UK - Public Transport
BEIS,UKRI - AHRC,08/11/2022,T&S UK - Public Transport,Infrastruture Roadmap,Corporate Travel Management (North) Ltd,99834235,30.10,T&S UK - Public Transport
BEIS,UKRI - AHRC,08/11/2022,T&S UK - Public Transport,Infrastruture Roadmap,Corporate Travel Management (North) Ltd,99834235,40.00,T&S UK - Public Transport
BEIS,UKRI - AHRC,08/11/2022,T&S UK - Public Transport,Infrastruture Roadmap,Corporate Travel Management (North) Ltd,99834235,0.25,T&S UK - Public Transport
BEIS,UKRI - AHRC,08/11/2022,T&S UK - Public Transport,Infrastruture Roadmap,Corporate Travel Management (North) Ltd,99834235,147.30,T&S UK - Public Transport
BEIS,UKRI - AHRC,08/11/2022,T&S UK - Public Transport,Infrastruture Roadmap,Corporate Travel Management (North) Ltd,99834235,0.50,T&S UK - Public Transport
BEIS,UKRI - AHRC,08/11/2022,T&S UK - Public Transport,Infrastruture Roadmap,Corporate Travel Management (North) Ltd,99834235,426.60,T&S UK - Public Transport
BEIS,UKRI - AHRC,08/11/2022,T&S UK - Public Transport,Infrastruture Roadmap,Corporate Travel Management (North) Ltd,99834235,0.25,T&S UK - Public Transport
BEIS,UKRI - AHRC,08/11/2022,T&S UK - Public Transport,Infrastruture Roadmap,Corporate Travel Management (North) Ltd,99834235,197.40,T&S UK - Public Transport
BEIS,UKRI - AHRC,08/11/2022,T&S UK - Public Transport,Infrastruture Roadmap,Corporate Travel Management (North) Ltd,99834235,0.25,T&S UK - Public Transport
BEIS,UKRI - AHRC,08/11/2022,T&S UK - Public Transport,Infrastruture Roadmap,Corporate Travel Management (North) Ltd,99834235,33.90,T&S UK - Public Transport
BEIS,UKRI - AHRC,08/11/2022,T&S UK - Public Transport,International Partnership and Engagement,Corporate Travel Management (North) Ltd,99834235,0.25,T&S UK - Public Transport
BEIS,UKRI - AHRC,08/11/2022,T&S UK - Public Transport,International Partnership and Engagement,Corporate Travel Management (North) Ltd,99834235,36.80,T&S UK - Public Transport
BEIS,UKRI - AHRC,08/11/2022,T&S UK - Public Transport,International Partnership and Engagement,Corporate Travel Management (North) Ltd,99834235,0.25,T&S UK - Public Transport
BEIS,UKRI - AHRC,08/11/2022,T&S UK - Public Transport,International Partnership and Engagement,Corporate Travel Management (North) Ltd,99834235,108.70,T&S UK - Public Transport
BEIS,UKRI - AHRC,08/11/2022,T&S UK - Public Transport,Public and Stakeholder Engagement,Corporate Travel Management (North) Ltd,99834235,0.25,T&S UK - Public Transport
BEIS,UKRI - AHRC,08/11/2022,T&S UK - Public Transport,Public and Stakeholder Engagement,Corporate Travel Management (North) Ltd,99834235,70.70,T&S UK - Public Transport
BEIS,UKRI - AHRC,08/11/2022,T&S UK - Public Transport,Public and Stakeholder Engagement,Corporate Travel Management (North) Ltd,99834235,0.25,T&S UK - Public Transport
BEIS,UKRI - AHRC,08/11/2022,T&S UK - Public Transport,Public and Stakeholder Engagement,Corporate Travel Management (North) Ltd,99834235,229.90,T&S UK - Public Transport
BEIS,UKRI - AHRC,08/11/2022,T&S UK - Public Transport,SMT,Corporate Travel Management (North) Ltd,99834235,0.25,T&S UK - Public Transport
BEIS,UKRI - AHRC,08/11/2022,T&S UK - Public Transport,SMT,Corporate Travel Management (North) Ltd,99834235,16.80,T&S UK - Public Transport
BEIS,UKRI - AHRC,08/11/2022,T&S UK - Public Transport,SMT,Corporate Travel Management (North) Ltd,99834235,0.25,T&S UK - Public Transport
BEIS,UKRI - AHRC,08/11/2022,T&S UK - Public Transport,SMT,Corporate Travel Management (North) Ltd,99834235,131.10,T&S UK - Public Transport
BEIS,UKRI - AHRC,08/11/2022,T&S UK - Public Transport,SMT,Corporate Travel Management (North) Ltd,99834235,0.25,T&S UK - Public Transport
BEIS,UKRI - AHRC,08/11/2022,T&S UK - Public Transport,SMT,Corporate Travel Management (North) Ltd,99834235,151.20,T&S UK - Public Transport
BEIS,UKRI - AHRC,08/11/2022,T&S UK - Public Transport,SMT,Corporate Travel Management (North) Ltd,99834235,0.25,T&S UK - Public Transport
BEIS,UKRI - AHRC,08/11/2022,T&S UK - Public Transport,SMT,Corporate Travel Management (North) Ltd,99834235,57.20,T&S UK - Public Transport
BEIS,UKRI - AHRC,08/11/2022,T&S UK - Public Transport,SMT,Corporate Travel Management (North) Ltd,99834235,10.00,T&S UK - Public Transport
BEIS,UKRI - AHRC,08/11/2022,T&S UK - Public Transport,SMT,Corporate Travel Management (North) Ltd,99834235,-23.90,T&S UK - Public Transport
BEIS,UKRI - AHRC,08/11/2022,T&S UK - Public Transport,SMT,Corporate Travel Management (North) Ltd,99834235,-130.40,T&S UK - Public Transport
BEIS,UKRI - AHRC,08/11/2022,T&S UK - Public Transport,SMT,Corporate Travel Management (North) Ltd,99834235,0.25,T&S UK - Public Transport
BEIS,UKRI - AHRC,08/11/2022,T&S UK - Public Transport,SMT,Corporate Travel Management (North) Ltd,99834235,57.20,T&S UK - Public Transport
BEIS,UKRI - AHRC,08/11/2022,T&S UK - Public Transport,SMT,Corporate Travel Management (North) Ltd,99834235,15.00,T&S UK - Public Transport
BEIS,UKRI - AHRC,08/11/2022,T&S UK - Public Transport,SMT,Corporate Travel Management (North) Ltd,99834235,-74.60,T&S UK - Public Transport
BEIS,UKRI - AHRC,08/11/2022,T&S UK - Public Transport,SMT,Corporate Travel Management (North) Ltd,99834235,-11.20,T&S UK - Public Transport
BEIS,UKRI - AHRC,08/11/2022,T&S UK - Public Transport,SMT,Corporate Travel Management (North) Ltd,99834235,5.00,T&S UK - Public Transport
BEIS,UKRI - AHRC,08/11/2022,T&S UK - Public Transport,SMT,Corporate Travel Management (North) Ltd,99834235,-141.30,T&S UK - Public Transport
BEIS,UKRI - AHRC,08/11/2022,T&S UK - Public Transport,SMT,Corporate Travel Management (North) Ltd,99834235,0.25,T&S UK - Public Transport
BEIS,UKRI - AHRC,08/11/2022,T&S UK - Public Transport,SMT,Corporate Travel Management (North) Ltd,99834235,16.00,T&S UK - Public Transport
BEIS,UKRI - AHRC,08/11/2022,T&S UK - Public Transport,SMT,Corporate Travel Management (North) Ltd,99834235,0.25,T&S UK - Public Transport
BEIS,UKRI - AHRC,08/11/2022,T&S UK - Public Transport,SMT,Corporate Travel Management (North) Ltd,99834235,57.20,T&S UK - Public Transport
BEIS,UKRI - AHRC,08/11/2022,T&S UK - Public Transport,SMT,Corporate Travel Management (North) Ltd,99834235,0.50,T&S UK - Public Transport
BEIS,UKRI - AHRC,08/11/2022,T&S UK - Public Transport,SMT,Corporate Travel Management (North) Ltd,99834235,16.00,T&S UK - Public Transport
BEIS,UKRI - AHRC,08/11/2022,T&S UK - Public Transport,SMT,Corporate Travel Management (North) Ltd,99834235,95.00,T&S UK - Public Transport
BEIS,UKRI - AHRC,08/11/2022,T&S UK - Public Transport,SMT,Corporate Travel Management (North) Ltd,99834235,0.25,T&S UK - Public Transport
BEIS,UKRI - AHRC,08/11/2022,T&S UK - Public Transport,SMT,Corporate Travel Management (North) Ltd,99834235,57.20,T&S UK - Public Transport
BEIS,UKRI - AHRC,08/11/2022,T&S UK - Public Transport,SMT,Corporate Travel Management (North) Ltd,99834235,0.25,T&S UK - Public Transport
BEIS,UKRI - AHRC,08/11/2022,T&S UK - Public Transport,SMT,Corporate Travel Management (North) Ltd,99834235,54.10,T&S UK - Public Transport
BEIS,UKRI - AHRC,08/11/2022,T&S UK - Public Transport,SMT,Corporate Travel Management (North) Ltd,99834235,0.50,T&S UK - Public Transport
BEIS,UKRI - AHRC,08/11/2022,T&S UK - Public Transport,SMT,Corporate Travel Management (North) Ltd,99834235,19.40,T&S UK - Public Transport
BEIS,UKRI - AHRC,08/11/2022,T&S UK - Public Transport,SMT,Corporate Travel Management (North) Ltd,99834235,19.40,T&S UK - Public Transport
BEIS,UKRI - AHRC,08/11/2022,T&S UK - Public Transport,SMT,Corporate Travel Management (North) Ltd,99834235,0.25,T&S UK - Public Transport
BEIS,UKRI - AHRC,08/11/2022,T&S UK - Public Transport,SMT,Corporate Travel Management (North) Ltd,99834235,44.70,T&S UK - Public Transport
BEIS,UKRI - AHRC,08/11/2022,T&S UK - Public Transport,SMT,Corporate Travel Management (North) Ltd,99834235,0.50,T&S UK - Public Transport
BEIS,UKRI - AHRC,08/11/2022,T&S UK - Public Transport,SMT,Corporate Travel Management (North) Ltd,99834235,20.30,T&S UK - Public Transport
BEIS,UKRI - AHRC,08/11/2022,T&S UK - Public Transport,SMT,Corporate Travel Management (North) Ltd,99834235,210.50,T&S UK - Public Transport
BEIS,UKRI - AHRC,08/11/2022,T&S UK - Public Transport,SMT,Corporate Travel Management (North) Ltd,99834235,0.25,T&S UK - Public Transport
BEIS,UKRI - AHRC,08/11/2022,T&S UK - Public Transport,SMT,Corporate Travel Management (North) Ltd,99834235,173.60,T&S UK - Public Transport
BEIS,UKRI - AHRC,08/11/2022,T&S UK - Public Transport,SMT,Corporate Travel Management (North) Ltd,99834235,0.25,T&S UK - Public Transport
BEIS,UKRI - AHRC,08/11/2022,T&S UK - Public Transport,SMT,Corporate Travel Management (North) Ltd,99834235,120.80,T&S UK - Public Transport
BEIS,UKRI - AHRC,08/11/2022,T&S UK - Public Transport,SMT,Corporate Travel Management (North) Ltd,99834235,0.25,T&S UK - Public Transport
BEIS,UKRI - AHRC,08/11/2022,T&S UK - Public Transport,SMT,Corporate Travel Management (North) Ltd,99834235,57.20,T&S UK - Public Transport
BEIS,UKRI - AHRC,08/11/2022,T&S UK - Public Transport,SMT,Corporate Travel Management (North) Ltd,99834235,0.25,T&S UK - Public Transport
BEIS,UKRI - AHRC,08/11/2022,T&S UK - Public Transport,SMT,Corporate Travel Management (North) Ltd,99834235,32.20,T&S UK - Public Transport
BEIS,UKRI - AHRC,08/11/2022,T&S UK - Public Transport,SMT,Corporate Travel Management (North) Ltd,99834235,0.25,T&S UK - Public Transport
BEIS,UKRI - AHRC,08/11/2022,T&S UK - Public Transport,SMT,Corporate Travel Management (North) Ltd,99834235,246.30,T&S UK - Public Transport
BEIS,UKRI - AHRC,08/11/2022,T&S UK - Public Transport,SMT,Corporate Travel Management (North) Ltd,99834235,0.25,T&S UK - Public Transport
BEIS,UKRI - AHRC,08/11/2022,T&S UK - Public Transport,SMT,Corporate Travel Management (North) Ltd,99834235,151.20,T&S UK - Public Transport
BEIS,UKRI - AHRC,08/11/2022,T&S UK - Public Transport,Skills Strategy,Corporate Travel Management (North) Ltd,99834235,0.25,T&S UK - Public Transport
BEIS,UKRI - AHRC,08/11/2022,T&S UK - Public Transport,Skills Strategy,Corporate Travel Management (North) Ltd,99834235,61.80,T&S UK - Public Transport
BEIS,UKRI - AHRC,08/11/2022,T&S UK - Public Transport,Strategy and Evidence,Corporate Travel Management (North) Ltd,99834235,0.25,T&S UK - Public Transport
BEIS,UKRI - AHRC,08/11/2022,T&S UK - Public Transport,Strategy and Evidence,Corporate Travel Management (North) Ltd,99834235,102.10,T&S UK - Public Transport
BEIS,UKRI - AHRC,08/11/2022,T&S UK - Public Transport,Strategy and Evidence,Corporate Travel Management (North) Ltd,99834235,0.25,T&S UK - Public Transport
BEIS,UKRI - AHRC,08/11/2022,T&S UK - Public Transport,Strategy and Evidence,Corporate Travel Management (North) Ltd,99834235,90.10,T&S UK - Public Transport
BEIS,UKRI - AHRC,08/11/2022,T&S UK - Public Transport,Strategy and Evidence,Corporate Travel Management (North) Ltd,99834235,0.25,T&S UK - Public Transport
BEIS,UKRI - AHRC,08/11/2022,T&S UK - Public Transport,Strategy and Evidence,Corporate Travel Management (North) Ltd,99834235,15.30,T&S UK - Public Transport
BEIS,UKRI - AHRC,08/11/2022,T&S UK - Public Transport,Strategy and Evidence,Corporate Travel Management (North) Ltd,99834235,0.25,T&S UK - Public Transport
BEIS,UKRI - AHRC,08/11/2022,T&S UK - Public Transport,Strategy and Evidence,Corporate Travel Management (North) Ltd,99834235,145.20,T&S UK - Public Transport
BEIS,UKRI - AHRC,08/11/2022,T&S UK - Subsistence,International Partnership and Engagement,Unspecified,99834454,5.15,T&S UK - Subsistence
BEIS,UKRI - AHRC,08/11/2022,T&S UK - Subsistence,International Partnership and Engagement,Unspecified,99834454,9.00,T&S UK - Subsistence
BEIS,UKRI - AHRC,08/11/2022,T&S UK - Subsistence,International Partnership and Engagement,Unspecified,99834455,20.25,T&S UK - Subsistence
BEIS,UKRI - AHRC,09/11/2022,Financial Services,Corporate Services,CCI Credit Management Ltd,99836017,1.32,Financial Services
BEIS,UKRI - AHRC,09/11/2022,Financial Services,Corporate Services,CCI Credit Management Ltd,99836020,1.20,Financial Services
BEIS,UKRI - AHRC,09/11/2022,Financial Services,Corporate Services,CCI Credit Management Ltd,99836023,1.32,Financial Services
BEIS,UKRI - AHRC,09/11/2022,Financial Services,Corporate Services,CCI Credit Management Ltd,99836028,1.32,Financial Services
BEIS,UKRI - AHRC,09/11/2022,Financial Services,Corporate Services,CCI Credit Management Ltd,99836032,1.32,Financial Services
BEIS,UKRI - AHRC,09/11/2022,Financial Services,Corporate Services,CCI Credit Management Ltd,99836035,1.32,Financial Services
BEIS,UKRI - AHRC,09/11/2022,Financial Services,Corporate Services,CCI Credit Management Ltd,99836038,1.32,Financial Services
BEIS,UKRI - AHRC,09/11/2022,T&S UK - Subsistence,AHRC - Creative Industries,Unspecified,99836085,20.00,T&S UK - Subsistence
BEIS,UKRI - AHRC,09/11/2022,T&S UK - Subsistence,AHRC - Creative Industries,Unspecified,99836085,40.00,T&S UK - Subsistence
BEIS,UKRI - AHRC,09/11/2022,T&S UK - Subsistence,AHRC - Creative Industries,Unspecified,99836085,15.00,T&S UK - Subsistence
BEIS,UKRI - AHRC,10/11/2022,Research Grant Expenditure,Modern Slavery and Human Rights (SPF),British Institute Of International And Comparative Law,99834726,19852.12,Research Grant Expenditure
BEIS,UKRI - AHRC,10/11/2022,Research Grant Expenditure,Modern Slavery and Human Rights (SPF),British Institute Of International And Comparative Law,99836242,1605.57,Research Grant Expenditure
BEIS,UKRI - AHRC,10/11/2022,Fees (Including College Members),Operations,Unspecified,99837548,170.00,Fees (Including College Members)
BEIS,UKRI - AHRC,10/11/2022,Fees (Including College Members),Operations,Unspecified,99837549,170.00,Fees (Including College Members)
BEIS,UKRI - AHRC,10/11/2022,Fees (Including College Members),Operations,Unspecified,99837550,170.00,Fees (Including College Members)
BEIS,UKRI - AHRC,10/11/2022,Fees (Including College Members),Operations,Unspecified,99837551,230.00,Fees (Including College Members)
BEIS,UKRI - AHRC,11/11/2022,Unspecified,Creative Economy,Zeff Associates Ltd,99835365,600.00,Council & Committee Honoraria
BEIS,UKRI - AHRC,11/11/2022,Unspecified,Creative Economy,Zeff Associates Ltd,99835367,600.00,Council & Committee Honoraria
BEIS,UKRI - AHRC,11/11/2022,Unspecified,Creative Economy,Zeff Associates Ltd,99835368,1200.00,Council & Committee Honoraria
BEIS,UKRI - AHRC,11/11/2022,Fees (Including College Members),Operations,Unspecified,99836603,170.00,Fees (Including College Members)
BEIS,UKRI - AHRC,11/11/2022,Fees (Including College Members),Operations,Unspecified,99836604,230.00,Fees (Including College Members)
BEIS,UKRI - AHRC,11/11/2022,Hospitality,Operations,Calder Conference Ltd,99838279,13835.50,Hospitality
BEIS,UKRI - AHRC,14/11/2022,Unspecified,Balance Sheet,HM Revenue & Customs,99832748,64604.67,NI Payable Salaries
BEIS,UKRI - AHRC,14/11/2022,Unspecified,Balance Sheet,HM Revenue & Customs,99832749,44440.28,PAYE Payable Salaries
BEIS,UKRI - AHRC,14/11/2022,Unspecified,Balance Sheet,HM Revenue & Customs,99832750,5490.00,Student Loans
BEIS,UKRI - AHRC,14/11/2022,Unspecified,Corporate Services,HM Revenue & Customs,99832751,1601.00,Apprenticeship Levy
BEIS,UKRI - AHRC,14/11/2022,Non-staff travel and subsistance,Infrastructure Fund - RICHeS,Unspecified,99836794,127.35,Non-staff travel and subsistance
BEIS,UKRI - AHRC,14/11/2022,Health & Safety (inc. Medicals & Opticians),Skills Strategy,Unspecified,99838701,12.00,Health & Safety (inc. Medicals & Opticians)
BEIS,UKRI - AHRC,14/11/2022,T&S UK - Other Charges,Skills Strategy,Unspecified,99838702,195.00,T&S UK - Other Charges
BEIS,UKRI - AHRC,14/11/2022,T&S UK - Mileage,AI&Design,Unspecified,99838703,78.75,T&S UK - Mileage
BEIS,UKRI - AHRC,14/11/2022,T&S UK - Subsistence,AI&Design,Unspecified,99838703,13.00,T&S UK - Subsistence
BEIS,UKRI - AHRC,14/11/2022,T&S UK - Subsistence,AI&Design,Unspecified,99838703,10.00,T&S UK - Subsistence
BEIS,UKRI - AHRC,15/11/2022,Voluntary Deductions,Balance Sheet,Swindon Office Sports and Social Club,99832752,32.00,Voluntary Deductions
BEIS,UKRI - AHRC,15/11/2022,Union Deductions,Balance Sheet,PCS Union,99832753,58.67,Union Deductions
BEIS,UKRI - AHRC,15/11/2022,Unspecified,Balance Sheet,Unspecified,99832754,8095.48,Ees Pension Deductions - JSS
BEIS,UKRI - AHRC,15/11/2022,Unspecified,Balance Sheet,Unspecified,99832755,35183.81,Ers Pension Deductions - JSS
BEIS,UKRI - AHRC,15/11/2022,Unspecified,Balance Sheet,Scottish Widows,99832756,193.37,Partnership Pension Deductions
BEIS,UKRI - AHRC,15/11/2022,Unspecified,Balance Sheet,Cabinet Office RM Shared Services,99832758,11629.13,Ees Pension Deductions - MyCSP
BEIS,UKRI - AHRC,15/11/2022,Unspecified,Balance Sheet,Cabinet Office RM Shared Services,99832759,52991.70,Ers Pension Deductions - MyCSP
BEIS,UKRI - AHRC,15/11/2022,Unspecified,Balance Sheet,Unspecified,99832760,499.87,Ees Pension Deductions - MRC
BEIS,UKRI - AHRC,15/11/2022,Unspecified,Balance Sheet,Unspecified,99832761,1230.45,Ers Pension Deductions - MRC
BEIS,UKRI - AHRC,15/11/2022,Payroll Clearing,Balance Sheet,Civil Service Benevolent Fund,99832763,20.00,Payroll Clearing
BEIS,UKRI - AHRC,15/11/2022,Other Programme Costs,"History, Heritage, Languages and Literature",The Edinburgh Television Festival Council,99834282,38016.00,Other Programme Costs
BEIS,UKRI - AHRC,15/11/2022,T&S UK - Subsistence,AHRC - Creative Industries,Unspecified,99839984,16.15,T&S UK - Subsistence
BEIS,UKRI - AHRC,16/11/2022,Nursery Deductions,Balance Sheet,UKRI - Engineering & Physical Sciences Research Council,99832762,1256.00,Nursery Deductions
BEIS,UKRI - AHRC,16/11/2022,Unspecified,Operations,Unspecified,99840209,230.00,Council & Committee Honoraria
BEIS,UKRI - AHRC,16/11/2022,T&S UK - Public Transport,AHRC - Creative Industries,Unspecified,99840331,3.00,T&S UK - Public Transport
BEIS,UKRI - AHRC,16/11/2022,T&S UK - Public Transport,AHRC - Creative Industries,Unspecified,99840331,9.30,T&S UK - Public Transport
BEIS,UKRI - AHRC,16/11/2022,T&S UK - Subsistence,AHRC - Creative Industries,Unspecified,99840331,25.00,T&S UK - Subsistence
BEIS,UKRI - AHRC,16/11/2022,T&S UK - Subsistence,AHRC - Creative Industries,Unspecified,99840331,6.40,T&S UK - Subsistence
BEIS,UKRI - AHRC,16/11/2022,T&S UK - Public Transport,Infrastruture Roadmap,Unspecified,99840332,32.40,T&S UK - Public Transport
BEIS,UKRI - AHRC,16/11/2022,T&S UK - Subsistence,Infrastruture Roadmap,Unspecified,99840332,6.90,T&S UK - Subsistence
BEIS,UKRI - AHRC,17/11/2022,Unspecified,Infrastruture Roadmap,ICF Consulting Services Ltd,99837451,6000.00,Legal & Professional Services
BEIS,UKRI - AHRC,17/11/2022,T&S UK - Mileage,AI&Design,Unspecified,99840840,81.45,T&S UK - Mileage
BEIS,UKRI - AHRC,17/11/2022,T&S UK - Subsistence,AI&Design,Unspecified,99840840,10.87,T&S UK - Subsistence
BEIS,UKRI - AHRC,17/11/2022,T&S UK - Subsistence,AI&Design,Unspecified,99840840,10.00,T&S UK - Subsistence
BEIS,UKRI - AHRC,21/11/2022,Unspecified,Skills Strategy,Careers Research and Advisory Centre (CRAC Ltd),99839047,40752.00,Legal & Professional Services
BEIS,UKRI - AHRC,21/11/2022,Health & Safety (inc. Medicals & Opticians),Strategy and Evidence,Unspecified,99842172,16.99,Health & Safety (inc. Medicals & Opticians)
BEIS,UKRI - AHRC,21/11/2022,T&S UK - Public Transport,Industrial Strategy Challenge Fund (ISCF) - Creative Clusters,Unspecified,99842172,24.80,T&S UK - Public Transport
BEIS,UKRI - AHRC,21/11/2022,T&S UK - Public Transport,Strategy and Evidence,Unspecified,99842172,64.03,T&S UK - Public Transport
BEIS,UKRI - AHRC,21/11/2022,T&S UK - Public Transport,Skills Strategy,Unspecified,99842173,20.40,T&S UK - Public Transport
BEIS,UKRI - AHRC,22/11/2022,T&S UK - Mileage,Infrastruture Roadmap,Unspecified,99838313,28.08,T&S UK - Mileage
BEIS,UKRI - AHRC,22/11/2022,T&S UK - Parking Tolls Congestion Charges,Infrastruture Roadmap,Unspecified,99838313,12.95,T&S UK - Parking Tolls Congestion Charges
BEIS,UKRI - AHRC,22/11/2022,T&S UK - Public Transport,Infrastruture Roadmap,Unspecified,99838313,7.80,T&S UK - Public Transport
BEIS,UKRI - AHRC,22/11/2022,T&S UK - Subsistence,Infrastruture Roadmap,Unspecified,99838313,2.30,T&S UK - Subsistence
BEIS,UKRI - AHRC,22/11/2022,T&S UK - Mileage,AI&Design,Unspecified,99842614,288.00,T&S UK - Mileage
BEIS,UKRI - AHRC,22/11/2022,T&S UK - Subsistence,AI&Design,Unspecified,99842614,24.21,T&S UK - Subsistence
BEIS,UKRI - AHRC,22/11/2022,T&S UK - Subsistence,AI&Design,Unspecified,99842614,12.79,T&S UK - Subsistence
BEIS,UKRI - AHRC,23/11/2022,T&S UK - Mileage,AI&Design,Unspecified,99843875,169.04,T&S UK - Mileage
BEIS,UKRI - AHRC,23/11/2022,T&S UK - Public Transport,AI&Design,Unspecified,99843875,69.96,T&S UK - Public Transport
BEIS,UKRI - AHRC,23/11/2022,T&S UK - Subsistence,AI&Design,Unspecified,99843875,52.02,T&S UK - Subsistence
BEIS,UKRI - AHRC,23/11/2022,T&S UK - Subsistence,AI&Design,Unspecified,99843875,8.25,T&S UK - Subsistence
BEIS,UKRI - AHRC,23/11/2022,T&S UK - Subsistence,AI&Design,Unspecified,99843875,10.00,T&S UK - Subsistence
BEIS,UKRI - AHRC,24/11/2022,T&S UK - Other Charges,AHRC - Creative Industries,Unspecified,99844344,150.00,T&S UK - Other Charges
BEIS,UKRI - AHRC,25/11/2022,T&S UK - Subsistence,SMT,Unspecified,99845632,95.00,T&S UK - Subsistence
BEIS,UKRI - AHRC,25/11/2022,Health & Safety (inc. Medicals & Opticians),Public and Stakeholder Engagement,Unspecified,99845633,15.00,Health & Safety (inc. Medicals & Opticians)
BEIS,UKRI - AHRC,28/11/2022,Unspecified,SMT,University of St Andrews,99842757,20363.58,Secondments
BEIS,UKRI - AHRC,28/11/2022,Catering Contracts,SPF_ Towards a National Collection,Graysons Restaurants Ltd,99843376,701.52,Catering Contracts
BEIS,UKRI - AHRC,28/11/2022,Fees (Including College Members),Operations,Unspecified,99844933,230.00,Fees (Including College Members)
BEIS,UKRI - AHRC,28/11/2022,T&S UK - Public Transport,International Development and Area Studies,Unspecified,99844990,2.40,T&S UK - Public Transport
BEIS,UKRI - AHRC,28/11/2022,T&S UK - Subsistence,International Development and Area Studies,Unspecified,99844990,10.65,T&S UK - Subsistence
BEIS,UKRI - AHRC,28/11/2022,T&S UK - Subsistence,International Development and Area Studies,Unspecified,99844990,4.50,T&S UK - Subsistence
BEIS,UKRI - AHRC,29/11/2022,T&S UK - Other Charges,Infrastruture Roadmap,Unspecified,99841210,138.99,T&S UK - Other Charges
BEIS,UKRI - AHRC,29/11/2022,T&S UK - Public Transport,Infrastruture Roadmap,Unspecified,99841210,30.65,T&S UK - Public Transport
BEIS,UKRI - AHRC,29/11/2022,T&S UK - Subsistence,Infrastruture Roadmap,Unspecified,99841210,6.45,T&S UK - Subsistence
BEIS,UKRI - AHRC,29/11/2022,Non-staff travel and subsistance,Operations,Unspecified,99845159,48.40,Non-staff travel and subsistance
BEIS,UKRI - AHRC,29/11/2022,T&S UK - Public Transport,AI&Design,Unspecified,99846495,9.50,T&S UK - Public Transport
BEIS,UKRI - AHRC,29/11/2022,T&S UK - Subsistence,AI&Design,Unspecified,99846495,5.00,T&S UK - Subsistence
BEIS,UKRI - AHRC,29/11/2022,Fees (Including College Members),Operations,Unspecified,99847232,85.00,Fees (Including College Members)
BEIS,UKRI - AHRC,29/11/2022,Fees (Including College Members),Operations,Unspecified,99847233,85.00,Fees (Including College Members)
BEIS,UKRI - AHRC,29/11/2022,Fees (Including College Members),Operations,Unspecified,99847234,85.00,Fees (Including College Members)
BEIS,UKRI - AHRC,29/11/2022,Fees (Including College Members),Operations,Unspecified,99847235,170.00,Fees (Including College Members)
BEIS,UKRI - AHRC,29/11/2022,Fees (Including College Members),Operations,Unspecified,99847236,85.00,Fees (Including College Members)
BEIS,UKRI - AHRC,29/11/2022,Fees (Including College Members),Operations,Unspecified,99847237,340.00,Fees (Including College Members)
BEIS,UKRI - AHRC,29/11/2022,Fees (Including College Members),Operations,Unspecified,99847238,340.00,Fees (Including College Members)
BEIS,UKRI - AHRC,29/11/2022,Fees (Including College Members),Operations,Unspecified,99847239,340.00,Fees (Including College Members)
BEIS,UKRI - AHRC,30/11/2022,Unspecified,Infrastructure Fund - RICHeS,Alexander Mann Solutions Ltd,99817758,12475.08,Legal & Professional Services
BEIS,UKRI - AHRC,30/11/2022,Unspecified,Infrastructure Fund - RICHeS,Alexander Mann Solutions Ltd,99833262,2772.24,Legal & Professional Services
BEIS,UKRI - AHRC,30/11/2022,Unspecified,Infrastructure Fund - RICHeS,Alexander Mann Solutions Ltd,99838584,3465.30,Legal & Professional Services
BEIS,UKRI - AHRC,30/11/2022,Unspecified,Infrastructure Fund - RICHeS,Alexander Mann Solutions Ltd,99842539,1732.66,Legal & Professional Services
BEIS,UKRI - AHRC,30/11/2022,Unspecified,Infrastructure Fund - RICHeS,Alexander Mann Solutions Ltd,99844934,1386.12,Legal & Professional Services
BEIS,UKRI - AHRC,30/11/2022,International Subscriptions,JPI Cultural Heritage Project,"Fondation des Sciences du Patrimoine, Université de Cergy Pontoise",99845622,31278.51,International Subscriptions
BEIS,UKRI - BBSRC,01/11/2022,Research Institutes - Capital Grants: Minor Works,Rothamsted Research,Rothamsted Research Ltd,99830428,5059.68,Research Institutes - Capital Grants: Minor Works
BEIS,UKRI - BBSRC,01/11/2022,T&S UK - Public Transport,CE - CPS,Unspecified,99830719,1.70,T&S UK - Public Transport
BEIS,UKRI - BBSRC,01/11/2022,T&S UK - Public Transport,CE - CPS,Unspecified,99830719,11.00,T&S UK - Public Transport
BEIS,UKRI - BBSRC,01/11/2022,Health & Safety (inc. Medicals & Opticians),Innovation and Skills Group,Unspecified,99830722,16.99,Health & Safety (inc. Medicals & Opticians)
BEIS,UKRI - BBSRC,01/11/2022,T&S UK - Other Charges,Innovation and Skills Group,Unspecified,99830723,9.99,T&S UK - Other Charges
BEIS,UKRI - BBSRC,02/11/2022,Unspecified,CE - IRU,Unspecified,99829644,6018.32,Legal & Professional Services
BEIS,UKRI - BBSRC,02/11/2022,Unspecified,CE - IRU,Unspecified,99829651,5087.95,Legal & Professional Services
BEIS,UKRI - BBSRC,02/11/2022,Meetings & Catering,European Initiatives,Benugo Ltd,99830875,265.83,Meetings & Catering
BEIS,UKRI - BBSRC,02/11/2022,Meetings & Catering,European Initiatives,Benugo Ltd,99830878,162.18,Meetings & Catering
BEIS,UKRI - BBSRC,02/11/2022,Meetings & Catering,European Initiatives,Benugo Ltd,99830880,37.20,Meetings & Catering
BEIS,UKRI - BBSRC,02/11/2022,T&S Overseas - Accommodation,European Initiatives,Unspecified,99831201,9.38,T&S Overseas - Accommodation
BEIS,UKRI - BBSRC,02/11/2022,T&S Overseas - Other Charges,European Initiatives,Unspecified,99831201,1.29,T&S Overseas - Other Charges
BEIS,UKRI - BBSRC,02/11/2022,T&S Overseas - Subsistence,European Initiatives,Unspecified,99831201,33.69,T&S Overseas - Subsistence
BEIS,UKRI - BBSRC,02/11/2022,T&S UK - Mileage,CE - CPS,Unspecified,99831202,27.90,T&S UK - Mileage
BEIS,UKRI - BBSRC,02/11/2022,T&S UK - Subsistence,CE - CPS,Unspecified,99831203,5.00,T&S UK - Subsistence
BEIS,UKRI - BBSRC,02/11/2022,T&S UK - Public Transport,CE - CPS,Unspecified,99831204,30.00,T&S UK - Public Transport
BEIS,UKRI - BBSRC,02/11/2022,T&S UK - Subsistence,CE - CPS,Unspecified,99831204,3.50,T&S UK - Subsistence
BEIS,UKRI - BBSRC,02/11/2022,T&S UK - Subsistence,CE - CPS,Unspecified,99831204,18.80,T&S UK - Subsistence
BEIS,UKRI - BBSRC,02/11/2022,T&S UK - Accommodation,Science Group,Unspecified,99831205,92.95,T&S UK - Accommodation
BEIS,UKRI - BBSRC,02/11/2022,T&S UK - Public Transport,Science Group,Unspecified,99831205,20.00,T&S UK - Public Transport
BEIS,UKRI - BBSRC,02/11/2022,Health & Safety (inc. Medicals & Opticians),Science Group,Unspecified,99831206,14.99,Health & Safety (inc. Medicals & Opticians)
BEIS,UKRI - BBSRC,02/11/2022,T&S UK - Subsistence,Science Group,Unspecified,99831207,5.00,T&S UK - Subsistence
BEIS,UKRI - BBSRC,02/11/2022,T&S UK - Subsistence,Science Group,Unspecified,99831207,7.25,T&S UK - Subsistence
BEIS,UKRI - BBSRC,02/11/2022,T&S Overseas - Accommodation,European Initiatives,Unspecified,99831208,9.34,T&S Overseas - Accommodation
BEIS,UKRI - BBSRC,02/11/2022,T&S Overseas - Public Transport,European Initiatives,Unspecified,99831208,8.00,T&S Overseas - Public Transport
BEIS,UKRI - BBSRC,02/11/2022,T&S Overseas - Public Transport,European Initiatives,Unspecified,99831208,13.50,T&S Overseas - Public Transport
BEIS,UKRI - BBSRC,02/11/2022,T&S Overseas - Subsistence,European Initiatives,Unspecified,99831208,26.93,T&S Overseas - Subsistence
BEIS,UKRI - BBSRC,02/11/2022,T&S UK - Public Transport,European Initiatives,Unspecified,99831209,4.15,T&S UK - Public Transport
BEIS,UKRI - BBSRC,02/11/2022,T&S UK - Public Transport,European Initiatives,Unspecified,99831209,5.00,T&S UK - Public Transport
BEIS,UKRI - BBSRC,03/11/2022,Conferences & Seminars,Innovation and Skills Group,Calder Conference Ltd,99819633,20772.88,Conferences & Seminars
BEIS,UKRI - BBSRC,03/11/2022,Conferences & Seminars,CIMG - Director,Unspecified,99831286,170.00,Conferences & Seminars
BEIS,UKRI - BBSRC,03/11/2022,Conferences & Seminars,CIMG - Director,Unspecified,99831287,133.10,Conferences & Seminars
BEIS,UKRI - BBSRC,03/11/2022,Conferences & Seminars,CIMG - Director,Unspecified,99831288,1150.00,Conferences & Seminars
BEIS,UKRI - BBSRC,03/11/2022,Conferences & Seminars,CIMG - Director,Unspecified,99831289,821.32,Conferences & Seminars
BEIS,UKRI - BBSRC,03/11/2022,T&S UK - Other Charges,CE - CPS,Unspecified,99831534,16.98,T&S UK - Other Charges
BEIS,UKRI - BBSRC,03/11/2022,T&S UK - Public Transport,CE - Chief Executive,Unspecified,99831536,27.80,T&S UK - Public Transport
BEIS,UKRI - BBSRC,03/11/2022,T&S UK - Public Transport,CE - Chief Executive,Unspecified,99831536,24.56,T&S UK - Public Transport
BEIS,UKRI - BBSRC,03/11/2022,T&S UK - Subsistence,CE - Chief Executive,Unspecified,99831536,3.65,T&S UK - Subsistence
BEIS,UKRI - BBSRC,03/11/2022,T&S UK - Subsistence,CE - Chief Executive,Unspecified,99831536,56.27,T&S UK - Subsistence
BEIS,UKRI - BBSRC,03/11/2022,T&S UK - Subsistence,CE - Chief Executive,Unspecified,99831536,36.28,T&S UK - Subsistence
BEIS,UKRI - BBSRC,03/11/2022,T&S UK - Subsistence,CE - Chief Executive,Unspecified,99831536,13.28,T&S UK - Subsistence
BEIS,UKRI - BBSRC,03/11/2022,T&S UK - Subsistence,Innovation and Skills Group CDSU,Unspecified,99831537,13.25,T&S UK - Subsistence
BEIS,UKRI - BBSRC,03/11/2022,T&S UK - Mileage,Innovation and Skills Group CDSU,Unspecified,99831538,45.90,T&S UK - Mileage
BEIS,UKRI - BBSRC,03/11/2022,Health & Safety (inc. Medicals & Opticians),CE - CPS,Unspecified,99831539,16.99,Health & Safety (inc. Medicals & Opticians)
BEIS,UKRI - BBSRC,04/11/2022,T&S UK - Subsistence,CE - CPS,Unspecified,99831930,6.70,T&S UK - Subsistence
BEIS,UKRI - BBSRC,04/11/2022,T&S UK - Subsistence,Science Group – Admin Function,Unspecified,99831931,6.96,T&S UK - Subsistence
BEIS,UKRI - BBSRC,04/11/2022,T&S UK - Subsistence,Science Group – Admin Function,Unspecified,99831931,14.65,T&S UK - Subsistence
BEIS,UKRI - BBSRC,04/11/2022,T&S UK - Subsistence,Science Group – Admin Function,Unspecified,99831931,4.45,T&S UK - Subsistence
BEIS,UKRI - BBSRC,04/11/2022,T&S UK - Subsistence,Innovation and Skills Group,Unspecified,99831932,30.00,T&S UK - Subsistence
BEIS,UKRI - BBSRC,04/11/2022,T&S UK - Subsistence,Innovation and Skills Group,Unspecified,99831932,21.90,T&S UK - Subsistence
BEIS,UKRI - BBSRC,04/11/2022,Research Institutes - Capital Grants: Minor Works,Rothamsted Research,Rothamsted Research Ltd,99832696,5173.34,Research Institutes - Capital Grants: Minor Works
BEIS,UKRI - BBSRC,07/11/2022,Unspecified,Science Group – Admin Function,Unspecified,99833138,340.00,Council & Committee Honoraria
BEIS,UKRI - BBSRC,07/11/2022,Unspecified,Science Group – Admin Function,Unspecified,99833139,340.00,Council & Committee Honoraria
BEIS,UKRI - BBSRC,07/11/2022,Unspecified,Science Group – Admin Function,Unspecified,99833140,340.00,Council & Committee Honoraria
BEIS,UKRI - BBSRC,07/11/2022,Unspecified,Science Group – Admin Function,Unspecified,99833141,460.00,Council & Committee Honoraria
BEIS,UKRI - BBSRC,07/11/2022,Unspecified,Science Group – Admin Function,Unspecified,99833142,340.00,Council & Committee Honoraria
BEIS,UKRI - BBSRC,07/11/2022,Unspecified,Science Group – Admin Function,Unspecified,99833143,340.00,Council & Committee Honoraria
BEIS,UKRI - BBSRC,07/11/2022,Unspecified,Science Group – Admin Function,Unspecified,99833144,340.00,Council & Committee Honoraria
BEIS,UKRI - BBSRC,07/11/2022,Unspecified,Science Group – Admin Function,Unspecified,99833145,340.00,Council & Committee Honoraria
BEIS,UKRI - BBSRC,07/11/2022,Unspecified,Science Group – Admin Function,Unspecified,99833146,340.00,Council & Committee Honoraria
BEIS,UKRI - BBSRC,07/11/2022,Unspecified,Science Group – Admin Function,Unspecified,99833147,340.00,Council & Committee Honoraria
BEIS,UKRI - BBSRC,07/11/2022,Unspecified,Science Group – Admin Function,Unspecified,99833148,340.00,Council & Committee Honoraria
BEIS,UKRI - BBSRC,07/11/2022,Unspecified,Science Group - Delivery Function,Unspecified,99833149,340.00,Council & Committee Honoraria
BEIS,UKRI - BBSRC,07/11/2022,Unspecified,Science Group – Admin Function,Unspecified,99833150,340.00,Council & Committee Honoraria
BEIS,UKRI - BBSRC,07/11/2022,Unspecified,Science Group – Admin Function,Unspecified,99833151,340.00,Council & Committee Honoraria
BEIS,UKRI - BBSRC,07/11/2022,Unspecified,Science Group – Admin Function,Unspecified,99833152,340.00,Council & Committee Honoraria
BEIS,UKRI - BBSRC,07/11/2022,Unspecified,Science Group – Admin Function,Unspecified,99833153,340.00,Council & Committee Honoraria
BEIS,UKRI - BBSRC,07/11/2022,Unspecified,Science Group – Admin Function,Unspecified,99833154,340.00,Council & Committee Honoraria
BEIS,UKRI - BBSRC,07/11/2022,Unspecified,Science Group – Admin Function,Unspecified,99833155,340.00,Council & Committee Honoraria
BEIS,UKRI - BBSRC,07/11/2022,Unspecified,Science Group – Admin Function,Unspecified,99833156,340.00,Council & Committee Honoraria
BEIS,UKRI - BBSRC,07/11/2022,Unspecified,Science Group – Admin Function,Unspecified,99833157,340.00,Council & Committee Honoraria
BEIS,UKRI - BBSRC,07/11/2022,Unspecified,Science Group – Admin Function,Unspecified,99833158,340.00,Council & Committee Honoraria
BEIS,UKRI - BBSRC,07/11/2022,Unspecified,Science Group – Admin Function,Unspecified,99833159,340.00,Council & Committee Honoraria
BEIS,UKRI - BBSRC,07/11/2022,Unspecified,Science Group – Admin Function,Unspecified,99833160,340.00,Council & Committee Honoraria
BEIS,UKRI - BBSRC,07/11/2022,Unspecified,Science Group – Admin Function,Unspecified,99833161,340.00,Council & Committee Honoraria
BEIS,UKRI - BBSRC,07/11/2022,Unspecified,Science Group – Admin Function,Unspecified,99833162,340.00,Council & Committee Honoraria
BEIS,UKRI - BBSRC,07/11/2022,Unspecified,Science Group – Admin Function,Unspecified,99833163,340.00,Council & Committee Honoraria
BEIS,UKRI - BBSRC,07/11/2022,Unspecified,Science Group - Delivery Function,Unspecified,99833164,170.00,Council & Committee Honoraria
BEIS,UKRI - BBSRC,07/11/2022,Unspecified,Science Group – Admin Function,Unspecified,99833165,170.00,Council & Committee Honoraria
BEIS,UKRI - BBSRC,07/11/2022,Unspecified,Science Group – Admin Function,Unspecified,99833166,340.00,Council & Committee Honoraria
BEIS,UKRI - BBSRC,07/11/2022,Unspecified,Science Group - Delivery Function,Unspecified,99833167,170.00,Council & Committee Honoraria
BEIS,UKRI - BBSRC,07/11/2022,Unspecified,Science Group – Admin Function,Unspecified,99833168,340.00,Council & Committee Honoraria
BEIS,UKRI - BBSRC,07/11/2022,Unspecified,Science Group – Admin Function,Unspecified,99833169,340.00,Council & Committee Honoraria
BEIS,UKRI - BBSRC,07/11/2022,Unspecified,Science Group – Admin Function,Unspecified,99833170,340.00,Council & Committee Honoraria
BEIS,UKRI - BBSRC,07/11/2022,Unspecified,Science Group – Admin Function,Unspecified,99833171,340.00,Council & Committee Honoraria
BEIS,UKRI - BBSRC,07/11/2022,Unspecified,Science Group – Admin Function,Unspecified,99833172,340.00,Council & Committee Honoraria
BEIS,UKRI - BBSRC,07/11/2022,Unspecified,Science Group – Admin Function,Unspecified,99833173,460.00,Council & Committee Honoraria
BEIS,UKRI - BBSRC,07/11/2022,Unspecified,Science Group – Admin Function,Unspecified,99833174,340.00,Council & Committee Honoraria
BEIS,UKRI - BBSRC,07/11/2022,Unspecified,Science Group – Admin Function,Unspecified,99833175,340.00,Council & Committee Honoraria
BEIS,UKRI - BBSRC,07/11/2022,Unspecified,Science Group – Admin Function,Unspecified,99833176,340.00,Council & Committee Honoraria
BEIS,UKRI - BBSRC,07/11/2022,Unspecified,Science Group - Delivery Function,Unspecified,99833177,115.00,Council & Committee Honoraria
BEIS,UKRI - BBSRC,07/11/2022,Unspecified,Science Group - Delivery Function,Unspecified,99833178,85.00,Council & Committee Honoraria
BEIS,UKRI - BBSRC,07/11/2022,Unspecified,Science Group – Admin Function,Unspecified,99833179,340.00,Council & Committee Honoraria
BEIS,UKRI - BBSRC,07/11/2022,Unspecified,Science Group – Admin Function,Unspecified,99833180,340.00,Council & Committee Honoraria
BEIS,UKRI - BBSRC,07/11/2022,Unspecified,Science Group - Delivery Function,Unspecified,99833181,170.00,Council & Committee Honoraria
BEIS,UKRI - BBSRC,07/11/2022,Unspecified,Science Group - Delivery Function,Unspecified,99833182,230.00,Council & Committee Honoraria
BEIS,UKRI - BBSRC,07/11/2022,Unspecified,Science Group – Admin Function,Unspecified,99833183,340.00,Council & Committee Honoraria
BEIS,UKRI - BBSRC,07/11/2022,Unspecified,Science Group – Admin Function,Unspecified,99833184,340.00,Council & Committee Honoraria
BEIS,UKRI - BBSRC,07/11/2022,Unspecified,Science Group – Admin Function,Unspecified,99833185,340.00,Council & Committee Honoraria
BEIS,UKRI - BBSRC,07/11/2022,Unspecified,Science Group – Admin Function,Unspecified,99833186,340.00,Council & Committee Honoraria
BEIS,UKRI - BBSRC,07/11/2022,Unspecified,Science Group – Admin Function,Unspecified,99833187,340.00,Council & Committee Honoraria
BEIS,UKRI - BBSRC,07/11/2022,Unspecified,Science Group – Admin Function,Unspecified,99833188,340.00,Council & Committee Honoraria
BEIS,UKRI - BBSRC,07/11/2022,Unspecified,Science Group – Admin Function,Unspecified,99833189,340.00,Council & Committee Honoraria
BEIS,UKRI - BBSRC,07/11/2022,Unspecified,Science Group – Admin Function,Unspecified,99833190,340.00,Council & Committee Honoraria
BEIS,UKRI - BBSRC,07/11/2022,Unspecified,Science Group – Admin Function,Unspecified,99833191,340.00,Council & Committee Honoraria
BEIS,UKRI - BBSRC,07/11/2022,Unspecified,Science Group – Admin Function,Unspecified,99833192,170.00,Council & Committee Honoraria
BEIS,UKRI - BBSRC,07/11/2022,T&S UK - Public Transport,Science Group,Unspecified,99834147,19.00,T&S UK - Public Transport
BEIS,UKRI - BBSRC,07/11/2022,T&S UK - Subsistence,Science Group,Unspecified,99834147,3.15,T&S UK - Subsistence
BEIS,UKRI - BBSRC,07/11/2022,T&S UK - Accommodation,Science Group – Admin Function,Unspecified,99834148,572.52,T&S UK - Accommodation
BEIS,UKRI - BBSRC,08/11/2022,Training Awards - Postgraduates,Innovation and Skills Group,UKRI - Economic & Social Research Council,99829924,28093.72,Training Awards - Postgraduates
BEIS,UKRI - BBSRC,08/11/2022,T&S UK - Subsistence,Innovation and Skills Group CDSU,Unspecified,99830721,49.40,T&S UK - Subsistence
BEIS,UKRI - BBSRC,08/11/2022,Conferences & Seminars,Science Group,Transition15 Ltd,99832073,8394.00,Conferences & Seminars
BEIS,UKRI - BBSRC,08/11/2022,Research Institutes - Capital Grants: Minor Works,Rothamsted Research,Rothamsted Research Ltd,99834389,559.14,Research Institutes - Capital Grants: Minor Works
BEIS,UKRI - BBSRC,08/11/2022,T&S UK - Public Transport,CIMG - Director,Unspecified,99834456,30.00,T&S UK - Public Transport
BEIS,UKRI - BBSRC,08/11/2022,T&S UK - Subsistence,CIMG - Director,Unspecified,99834456,10.76,T&S UK - Subsistence
BEIS,UKRI - BBSRC,08/11/2022,T&S UK - Subsistence,CIMG - Director,Unspecified,99834456,7.40,T&S UK - Subsistence
BEIS,UKRI - BBSRC,08/11/2022,T&S UK - Vehicle Hire,CIMG - Director,Unspecified,99834456,123.05,T&S UK - Vehicle Hire
BEIS,UKRI - BBSRC,08/11/2022,T&S UK - Subsistence,Science Group – Admin Function,Unspecified,99834457,18.45,T&S UK - Subsistence
BEIS,UKRI - BBSRC,08/11/2022,T&S UK - Subsistence,Science Group – Admin Function,Unspecified,99834457,4.00,T&S UK - Subsistence
BEIS,UKRI - BBSRC,08/11/2022,T&S UK - Parking Tolls Congestion Charges,Science Group,Unspecified,99834459,16.60,T&S UK - Parking Tolls Congestion Charges
BEIS,UKRI - BBSRC,08/11/2022,T&S UK - Subsistence,Science Group,Unspecified,99834459,7.35,T&S UK - Subsistence
BEIS,UKRI - BBSRC,08/11/2022,T&S Overseas - Flights,European Initiatives,Corporate Travel Management (North) Ltd,99835444,2.50,T&S Overseas - Flights
BEIS,UKRI - BBSRC,08/11/2022,T&S Overseas - Flights,European Initiatives,Corporate Travel Management (North) Ltd,99835444,288.27,T&S Overseas - Flights
BEIS,UKRI - BBSRC,08/11/2022,T&S Overseas - Flights,Innovation and Skills Group,Corporate Travel Management (North) Ltd,99835444,9.50,T&S Overseas - Flights
BEIS,UKRI - BBSRC,08/11/2022,T&S Overseas - Flights,Innovation and Skills Group,Corporate Travel Management (North) Ltd,99835444,523.90,T&S Overseas - Flights
BEIS,UKRI - BBSRC,08/11/2022,T&S Overseas - Flights,Science Group,Corporate Travel Management (North) Ltd,99835444,2.50,T&S Overseas - Flights
BEIS,UKRI - BBSRC,08/11/2022,T&S Overseas - Flights,Science Group,Corporate Travel Management (North) Ltd,99835444,441.57,T&S Overseas - Flights
BEIS,UKRI - BBSRC,08/11/2022,T&S Overseas - Flights,Science Group,Corporate Travel Management (North) Ltd,99835444,2.50,T&S Overseas - Flights
BEIS,UKRI - BBSRC,08/11/2022,T&S Overseas - Flights,Science Group,Corporate Travel Management (North) Ltd,99835444,1853.66,T&S Overseas - Flights
BEIS,UKRI - BBSRC,08/11/2022,T&S Overseas - Flights,Science Group,Corporate Travel Management (North) Ltd,99835444,2.50,T&S Overseas - Flights
BEIS,UKRI - BBSRC,08/11/2022,T&S Overseas - Flights,Science Group,Corporate Travel Management (North) Ltd,99835444,176.86,T&S Overseas - Flights
BEIS,UKRI - BBSRC,08/11/2022,T&S UK - Accommodation,CE - CPS,Corporate Travel Management (North) Ltd,99835444,0.80,T&S UK - Accommodation
BEIS,UKRI - BBSRC,08/11/2022,T&S UK - Accommodation,CE - CPS,Corporate Travel Management (North) Ltd,99835444,111.60,T&S UK - Accommodation
BEIS,UKRI - BBSRC,08/11/2022,T&S UK - Accommodation,CE - CPS,Corporate Travel Management (North) Ltd,99835444,0.16,T&S UK - Accommodation
BEIS,UKRI - BBSRC,08/11/2022,T&S UK - Accommodation,CE - Chief Executive,Corporate Travel Management (North) Ltd,99835444,0.80,T&S UK - Accommodation
BEIS,UKRI - BBSRC,08/11/2022,T&S UK - Accommodation,CE - Chief Executive,Corporate Travel Management (North) Ltd,99835444,215.70,T&S UK - Accommodation
BEIS,UKRI - BBSRC,08/11/2022,T&S UK - Accommodation,CE - Chief Executive,Corporate Travel Management (North) Ltd,99835444,0.80,T&S UK - Accommodation
BEIS,UKRI - BBSRC,08/11/2022,T&S UK - Accommodation,CE - Chief Executive,Corporate Travel Management (North) Ltd,99835444,111.60,T&S UK - Accommodation
BEIS,UKRI - BBSRC,08/11/2022,T&S UK - Accommodation,CE - Chief Executive,Corporate Travel Management (North) Ltd,99835444,0.80,T&S UK - Accommodation
BEIS,UKRI - BBSRC,08/11/2022,T&S UK - Accommodation,CE - Chief Executive,Corporate Travel Management (North) Ltd,99835444,111.60,T&S UK - Accommodation
BEIS,UKRI - BBSRC,08/11/2022,T&S UK - Accommodation,CE - Chief Executive,Corporate Travel Management (North) Ltd,99835444,0.48,T&S UK - Accommodation
BEIS,UKRI - BBSRC,08/11/2022,T&S UK - Accommodation,CIMG - Director,Corporate Travel Management (North) Ltd,99835444,0.80,T&S UK - Accommodation
BEIS,UKRI - BBSRC,08/11/2022,T&S UK - Accommodation,CIMG - Director,Corporate Travel Management (North) Ltd,99835444,0.80,T&S UK - Accommodation
BEIS,UKRI - BBSRC,08/11/2022,T&S UK - Accommodation,CIMG - Director,Corporate Travel Management (North) Ltd,99835444,0.80,T&S UK - Accommodation
BEIS,UKRI - BBSRC,08/11/2022,T&S UK - Accommodation,CIMG - Director,Corporate Travel Management (North) Ltd,99835444,118.75,T&S UK - Accommodation
BEIS,UKRI - BBSRC,08/11/2022,T&S UK - Accommodation,CIMG - Director,Corporate Travel Management (North) Ltd,99835444,0.48,T&S UK - Accommodation
BEIS,UKRI - BBSRC,08/11/2022,T&S UK - Accommodation,European Initiatives,Corporate Travel Management (North) Ltd,99835444,0.80,T&S UK - Accommodation
BEIS,UKRI - BBSRC,08/11/2022,T&S UK - Accommodation,European Initiatives,Corporate Travel Management (North) Ltd,99835444,153.30,T&S UK - Accommodation
BEIS,UKRI - BBSRC,08/11/2022,T&S UK - Accommodation,European Initiatives,Corporate Travel Management (North) Ltd,99835444,0.16,T&S UK - Accommodation
BEIS,UKRI - BBSRC,08/11/2022,T&S UK - Accommodation,FG - Estates,Corporate Travel Management (North) Ltd,99835444,0.80,T&S UK - Accommodation
BEIS,UKRI - BBSRC,08/11/2022,T&S UK - Accommodation,FG - Estates,Corporate Travel Management (North) Ltd,99835444,114.00,T&S UK - Accommodation
BEIS,UKRI - BBSRC,08/11/2022,T&S UK - Accommodation,FG - Estates,Corporate Travel Management (North) Ltd,99835444,0.80,T&S UK - Accommodation
BEIS,UKRI - BBSRC,08/11/2022,T&S UK - Accommodation,FG - Estates,Corporate Travel Management (North) Ltd,99835444,119.00,T&S UK - Accommodation
BEIS,UKRI - BBSRC,08/11/2022,T&S UK - Accommodation,FG - Estates,Corporate Travel Management (North) Ltd,99835444,0.32,T&S UK - Accommodation
BEIS,UKRI - BBSRC,08/11/2022,T&S UK - Accommodation,Innovation and Skills Group,Corporate Travel Management (North) Ltd,99835444,0.80,T&S UK - Accommodation
BEIS,UKRI - BBSRC,08/11/2022,T&S UK - Accommodation,Innovation and Skills Group,Corporate Travel Management (North) Ltd,99835444,97.85,T&S UK - Accommodation
BEIS,UKRI - BBSRC,08/11/2022,T&S UK - Accommodation,Innovation and Skills Group,Corporate Travel Management (North) Ltd,99835444,0.80,T&S UK - Accommodation
BEIS,UKRI - BBSRC,08/11/2022,T&S UK - Accommodation,Innovation and Skills Group,Corporate Travel Management (North) Ltd,99835444,252.70,T&S UK - Accommodation
BEIS,UKRI - BBSRC,08/11/2022,T&S UK - Accommodation,Innovation and Skills Group,Corporate Travel Management (North) Ltd,99835444,0.80,T&S UK - Accommodation
BEIS,UKRI - BBSRC,08/11/2022,T&S UK - Accommodation,Innovation and Skills Group,Corporate Travel Management (North) Ltd,99835444,116.90,T&S UK - Accommodation
BEIS,UKRI - BBSRC,08/11/2022,T&S UK - Accommodation,Innovation and Skills Group,Corporate Travel Management (North) Ltd,99835444,0.80,T&S UK - Accommodation
BEIS,UKRI - BBSRC,08/11/2022,T&S UK - Accommodation,Innovation and Skills Group,Corporate Travel Management (North) Ltd,99835444,97.75,T&S UK - Accommodation
BEIS,UKRI - BBSRC,08/11/2022,T&S UK - Accommodation,Innovation and Skills Group,Corporate Travel Management (North) Ltd,99835444,0.80,T&S UK - Accommodation
BEIS,UKRI - BBSRC,08/11/2022,T&S UK - Accommodation,Innovation and Skills Group,Corporate Travel Management (North) Ltd,99835444,111.60,T&S UK - Accommodation
BEIS,UKRI - BBSRC,08/11/2022,T&S UK - Accommodation,Innovation and Skills Group,Corporate Travel Management (North) Ltd,99835444,0.80,T&S UK - Accommodation
BEIS,UKRI - BBSRC,08/11/2022,T&S UK - Accommodation,Innovation and Skills Group,Corporate Travel Management (North) Ltd,99835444,76.95,T&S UK - Accommodation
BEIS,UKRI - BBSRC,08/11/2022,T&S UK - Accommodation,Innovation and Skills Group,Corporate Travel Management (North) Ltd,99835444,0.16,T&S UK - Accommodation
BEIS,UKRI - BBSRC,08/11/2022,T&S UK - Accommodation,Innovation and Skills Group,Corporate Travel Management (North) Ltd,99835444,0.80,T&S UK - Accommodation
BEIS,UKRI - BBSRC,08/11/2022,T&S UK - Accommodation,Science Group,Corporate Travel Management (North) Ltd,99835444,0.80,T&S UK - Accommodation
BEIS,UKRI - BBSRC,08/11/2022,T&S UK - Accommodation,Science Group,Corporate Travel Management (North) Ltd,99835444,150.00,T&S UK - Accommodation
BEIS,UKRI - BBSRC,08/11/2022,T&S UK - Accommodation,Science Group,Corporate Travel Management (North) Ltd,99835444,0.80,T&S UK - Accommodation
BEIS,UKRI - BBSRC,08/11/2022,T&S UK - Accommodation,Science Group,Corporate Travel Management (North) Ltd,99835444,99.00,T&S UK - Accommodation
BEIS,UKRI - BBSRC,08/11/2022,T&S UK - Accommodation,Science Group,Corporate Travel Management (North) Ltd,99835444,0.80,T&S UK - Accommodation
BEIS,UKRI - BBSRC,08/11/2022,T&S UK - Accommodation,Science Group,Corporate Travel Management (North) Ltd,99835444,158.65,T&S UK - Accommodation
BEIS,UKRI - BBSRC,08/11/2022,T&S UK - Accommodation,Science Group,Corporate Travel Management (North) Ltd,99835444,0.80,T&S UK - Accommodation
BEIS,UKRI - BBSRC,08/11/2022,T&S UK - Accommodation,Science Group,Corporate Travel Management (North) Ltd,99835444,76.95,T&S UK - Accommodation
BEIS,UKRI - BBSRC,08/11/2022,T&S UK - Accommodation,Science Group,Corporate Travel Management (North) Ltd,99835444,0.64,T&S UK - Accommodation
BEIS,UKRI - BBSRC,08/11/2022,T&S UK - Accommodation,Science Group – Admin Function,Corporate Travel Management (North) Ltd,99835444,0.80,T&S UK - Accommodation
BEIS,UKRI - BBSRC,08/11/2022,T&S UK - Accommodation,Science Group – Admin Function,Corporate Travel Management (North) Ltd,99835444,99.00,T&S UK - Accommodation
BEIS,UKRI - BBSRC,08/11/2022,T&S UK - Accommodation,Science Group – Admin Function,Corporate Travel Management (North) Ltd,99835444,2.00,T&S UK - Accommodation
BEIS,UKRI - BBSRC,08/11/2022,T&S UK - Accommodation,Science Group – Admin Function,Corporate Travel Management (North) Ltd,99835444,153.30,T&S UK - Accommodation
BEIS,UKRI - BBSRC,08/11/2022,T&S UK - Accommodation,Science Group – Admin Function,Corporate Travel Management (North) Ltd,99835444,0.40,T&S UK - Accommodation
BEIS,UKRI - BBSRC,08/11/2022,T&S UK - Accommodation,Science Group – Admin Function,Corporate Travel Management (North) Ltd,99835444,0.16,T&S UK - Accommodation
BEIS,UKRI - BBSRC,08/11/2022,T&S UK - Flights,CE - Chief Executive,Corporate Travel Management (North) Ltd,99835444,2.50,T&S UK - Flights
BEIS,UKRI - BBSRC,08/11/2022,T&S UK - Flights,CE - Chief Executive,Corporate Travel Management (North) Ltd,99835444,167.47,T&S UK - Flights
BEIS,UKRI - BBSRC,08/11/2022,T&S UK - Flights,CE - IRU,Corporate Travel Management (North) Ltd,99835444,4.50,T&S UK - Flights
BEIS,UKRI - BBSRC,08/11/2022,T&S UK - Flights,CE - IRU,Corporate Travel Management (North) Ltd,99835444,174.00,T&S UK - Flights
BEIS,UKRI - BBSRC,08/11/2022,T&S UK - Flights,Innovation and Skills Group,Corporate Travel Management (North) Ltd,99835444,2.50,T&S UK - Flights
BEIS,UKRI - BBSRC,08/11/2022,T&S UK - Flights,Innovation and Skills Group,Corporate Travel Management (North) Ltd,99835444,48.99,T&S UK - Flights
BEIS,UKRI - BBSRC,08/11/2022,T&S UK - Flights,Innovation and Skills Group,Corporate Travel Management (North) Ltd,99835444,2.50,T&S UK - Flights
BEIS,UKRI - BBSRC,08/11/2022,T&S UK - Flights,Innovation and Skills Group,Corporate Travel Management (North) Ltd,99835444,447.10,T&S UK - Flights
BEIS,UKRI - BBSRC,08/11/2022,T&S UK - Flights,Innovation and Skills Group,Corporate Travel Management (North) Ltd,99835444,2.50,T&S UK - Flights
BEIS,UKRI - BBSRC,08/11/2022,T&S UK - Flights,Innovation and Skills Group,Corporate Travel Management (North) Ltd,99835444,308.96,T&S UK - Flights
BEIS,UKRI - BBSRC,08/11/2022,T&S UK - Flights,Science Group – Admin Function,Corporate Travel Management (North) Ltd,99835444,2.50,T&S UK - Flights
BEIS,UKRI - BBSRC,08/11/2022,T&S UK - Flights,Science Group – Admin Function,Corporate Travel Management (North) Ltd,99835444,164.99,T&S UK - Flights
BEIS,UKRI - BBSRC,08/11/2022,T&S UK - Public Transport,CE - CPS,Corporate Travel Management (North) Ltd,99835444,0.25,T&S UK - Public Transport
BEIS,UKRI - BBSRC,08/11/2022,T&S UK - Public Transport,CE - CPS,Corporate Travel Management (North) Ltd,99835444,10.60,T&S UK - Public Transport
BEIS,UKRI - BBSRC,08/11/2022,T&S UK - Public Transport,CE - CPS,Corporate Travel Management (North) Ltd,99835444,0.25,T&S UK - Public Transport
BEIS,UKRI - BBSRC,08/11/2022,T&S UK - Public Transport,CE - CPS,Corporate Travel Management (North) Ltd,99835444,52.20,T&S UK - Public Transport
BEIS,UKRI - BBSRC,08/11/2022,T&S UK - Public Transport,CE - CPS,Corporate Travel Management (North) Ltd,99835444,0.25,T&S UK - Public Transport
BEIS,UKRI - BBSRC,08/11/2022,T&S UK - Public Transport,CE - CPS,Corporate Travel Management (North) Ltd,99835444,124.80,T&S UK - Public Transport
BEIS,UKRI - BBSRC,08/11/2022,T&S UK - Public Transport,CE - CPS,Corporate Travel Management (North) Ltd,99835444,0.75,T&S UK - Public Transport
BEIS,UKRI - BBSRC,08/11/2022,T&S UK - Public Transport,CE - CPS,Corporate Travel Management (North) Ltd,99835444,54.50,T&S UK - Public Transport
BEIS,UKRI - BBSRC,08/11/2022,T&S UK - Public Transport,CE - CPS,Corporate Travel Management (North) Ltd,99835444,32.90,T&S UK - Public Transport
BEIS,UKRI - BBSRC,08/11/2022,T&S UK - Public Transport,CE - CPS,Corporate Travel Management (North) Ltd,99835444,56.80,T&S UK - Public Transport
BEIS,UKRI - BBSRC,08/11/2022,T&S UK - Public Transport,CE - CPS,Corporate Travel Management (North) Ltd,99835444,0.25,T&S UK - Public Transport
BEIS,UKRI - BBSRC,08/11/2022,T&S UK - Public Transport,CE - CPS,Corporate Travel Management (North) Ltd,99835444,210.70,T&S UK - Public Transport
BEIS,UKRI - BBSRC,08/11/2022,T&S UK - Public Transport,CE - Chief Executive,Corporate Travel Management (North) Ltd,99835444,0.25,T&S UK - Public Transport
BEIS,UKRI - BBSRC,08/11/2022,T&S UK - Public Transport,CE - Chief Executive,Corporate Travel Management (North) Ltd,99835444,61.80,T&S UK - Public Transport
BEIS,UKRI - BBSRC,08/11/2022,T&S UK - Public Transport,CE - Chief Executive,Corporate Travel Management (North) Ltd,99835444,0.50,T&S UK - Public Transport
BEIS,UKRI - BBSRC,08/11/2022,T&S UK - Public Transport,CE - Chief Executive,Corporate Travel Management (North) Ltd,99835444,112.20,T&S UK - Public Transport
BEIS,UKRI - BBSRC,08/11/2022,T&S UK - Public Transport,CE - Chief Executive,Corporate Travel Management (North) Ltd,99835444,11.80,T&S UK - Public Transport
BEIS,UKRI - BBSRC,08/11/2022,T&S UK - Public Transport,CE - Chief Executive,Corporate Travel Management (North) Ltd,99835444,0.50,T&S UK - Public Transport
BEIS,UKRI - BBSRC,08/11/2022,T&S UK - Public Transport,CE - Chief Executive,Corporate Travel Management (North) Ltd,99835444,27.50,T&S UK - Public Transport
BEIS,UKRI - BBSRC,08/11/2022,T&S UK - Public Transport,CE - Chief Executive,Corporate Travel Management (North) Ltd,99835444,31.60,T&S UK - Public Transport
BEIS,UKRI - BBSRC,08/11/2022,T&S UK - Public Transport,CE - Chief Executive,Corporate Travel Management (North) Ltd,99835444,0.25,T&S UK - Public Transport
BEIS,UKRI - BBSRC,08/11/2022,T&S UK - Public Transport,CE - Chief Executive,Corporate Travel Management (North) Ltd,99835444,170.00,T&S UK - Public Transport
BEIS,UKRI - BBSRC,08/11/2022,T&S UK - Public Transport,CE - Chief Executive,Corporate Travel Management (North) Ltd,99835444,0.25,T&S UK - Public Transport
BEIS,UKRI - BBSRC,08/11/2022,T&S UK - Public Transport,CE - Chief Executive,Corporate Travel Management (North) Ltd,99835444,118.30,T&S UK - Public Transport
BEIS,UKRI - BBSRC,08/11/2022,T&S UK - Public Transport,CE - Chief Executive,Corporate Travel Management (North) Ltd,99835444,10.00,T&S UK - Public Transport
BEIS,UKRI - BBSRC,08/11/2022,T&S UK - Public Transport,CE - Chief Executive,Corporate Travel Management (North) Ltd,99835444,-170.90,T&S UK - Public Transport
BEIS,UKRI - BBSRC,08/11/2022,T&S UK - Public Transport,CE - Chief Executive,Corporate Travel Management (North) Ltd,99835444,0.25,T&S UK - Public Transport
BEIS,UKRI - BBSRC,08/11/2022,T&S UK - Public Transport,CE - Chief Executive,Corporate Travel Management (North) Ltd,99835444,31.60,T&S UK - Public Transport
BEIS,UKRI - BBSRC,08/11/2022,T&S UK - Public Transport,CE - Chief Executive,Corporate Travel Management (North) Ltd,99835444,0.25,T&S UK - Public Transport
BEIS,UKRI - BBSRC,08/11/2022,T&S UK - Public Transport,CE - Chief Executive,Corporate Travel Management (North) Ltd,99835444,73.60,T&S UK - Public Transport
BEIS,UKRI - BBSRC,08/11/2022,T&S UK - Public Transport,CE - Chief Executive,Corporate Travel Management (North) Ltd,99835444,0.50,T&S UK - Public Transport
BEIS,UKRI - BBSRC,08/11/2022,T&S UK - Public Transport,CE - Chief Executive,Corporate Travel Management (North) Ltd,99835444,68.50,T&S UK - Public Transport
BEIS,UKRI - BBSRC,08/11/2022,T&S UK - Public Transport,CE - Chief Executive,Corporate Travel Management (North) Ltd,99835444,62.10,T&S UK - Public Transport
BEIS,UKRI - BBSRC,08/11/2022,T&S UK - Public Transport,CE - Chief Executive,Corporate Travel Management (North) Ltd,99835444,0.25,T&S UK - Public Transport
BEIS,UKRI - BBSRC,08/11/2022,T&S UK - Public Transport,CE - Chief Executive,Corporate Travel Management (North) Ltd,99835444,200.10,T&S UK - Public Transport
BEIS,UKRI - BBSRC,08/11/2022,T&S UK - Public Transport,CE - Chief Executive,Corporate Travel Management (North) Ltd,99835444,0.25,T&S UK - Public Transport
BEIS,UKRI - BBSRC,08/11/2022,T&S UK - Public Transport,CE - Chief Executive,Corporate Travel Management (North) Ltd,99835444,97.50,T&S UK - Public Transport
BEIS,UKRI - BBSRC,08/11/2022,T&S UK - Public Transport,CE - IRU,Corporate Travel Management (North) Ltd,99835444,2.60,T&S UK - Public Transport
BEIS,UKRI - BBSRC,08/11/2022,T&S UK - Public Transport,CE - IRU,Corporate Travel Management (North) Ltd,99835444,19.74,T&S UK - Public Transport
BEIS,UKRI - BBSRC,08/11/2022,T&S UK - Public Transport,CE - IRU,Corporate Travel Management (North) Ltd,99835444,5.25,T&S UK - Public Transport
BEIS,UKRI - BBSRC,08/11/2022,T&S UK - Public Transport,CE - IRU,Corporate Travel Management (North) Ltd,99835444,-8.80,T&S UK - Public Transport
BEIS,UKRI - BBSRC,08/11/2022,T&S UK - Public Transport,CE - IRU,Corporate Travel Management (North) Ltd,99835444,0.25,T&S UK - Public Transport
BEIS,UKRI - BBSRC,08/11/2022,T&S UK - Public Transport,CE - IRU,Corporate Travel Management (North) Ltd,99835444,53.15,T&S UK - Public Transport
BEIS,UKRI - BBSRC,08/11/2022,T&S UK - Public Transport,CE - IRU,Corporate Travel Management (North) Ltd,99835444,0.25,T&S UK - Public Transport
BEIS,UKRI - BBSRC,08/11/2022,T&S UK - Public Transport,CE - IRU,Corporate Travel Management (North) Ltd,99835444,77.30,T&S UK - Public Transport
BEIS,UKRI - BBSRC,08/11/2022,T&S UK - Public Transport,FG - Estates,Corporate Travel Management (North) Ltd,99835444,0.25,T&S UK - Public Transport
BEIS,UKRI - BBSRC,08/11/2022,T&S UK - Public Transport,FG - Estates,Corporate Travel Management (North) Ltd,99835444,154.90,T&S UK - Public Transport
BEIS,UKRI - BBSRC,08/11/2022,T&S UK - Public Transport,Innovation and Skills Group,Corporate Travel Management (North) Ltd,99835444,0.25,T&S UK - Public Transport
BEIS,UKRI - BBSRC,08/11/2022,T&S UK - Public Transport,Innovation and Skills Group,Corporate Travel Management (North) Ltd,99835444,110.50,T&S UK - Public Transport
BEIS,UKRI - BBSRC,08/11/2022,T&S UK - Public Transport,Innovation and Skills Group,Corporate Travel Management (North) Ltd,99835444,0.25,T&S UK - Public Transport
BEIS,UKRI - BBSRC,08/11/2022,T&S UK - Public Transport,Innovation and Skills Group,Corporate Travel Management (North) Ltd,99835444,101.80,T&S UK - Public Transport
BEIS,UKRI - BBSRC,08/11/2022,T&S UK - Public Transport,Innovation and Skills Group,Corporate Travel Management (North) Ltd,99835444,2.50,T&S UK - Public Transport
BEIS,UKRI - BBSRC,08/11/2022,T&S UK - Public Transport,Innovation and Skills Group,Corporate Travel Management (North) Ltd,99835444,27.32,T&S UK - Public Transport
BEIS,UKRI - BBSRC,08/11/2022,T&S UK - Public Transport,Innovation and Skills Group,Corporate Travel Management (North) Ltd,99835444,0.25,T&S UK - Public Transport
BEIS,UKRI - BBSRC,08/11/2022,T&S UK - Public Transport,Innovation and Skills Group,Corporate Travel Management (North) Ltd,99835444,151.20,T&S UK - Public Transport
BEIS,UKRI - BBSRC,08/11/2022,T&S UK - Public Transport,Innovation and Skills Group,Corporate Travel Management (North) Ltd,99835444,0.25,T&S UK - Public Transport
BEIS,UKRI - BBSRC,08/11/2022,T&S UK - Public Transport,Innovation and Skills Group,Corporate Travel Management (North) Ltd,99835444,144.10,T&S UK - Public Transport
BEIS,UKRI - BBSRC,08/11/2022,T&S UK - Public Transport,Innovation and Skills Group,Corporate Travel Management (North) Ltd,99835444,0.25,T&S UK - Public Transport
BEIS,UKRI - BBSRC,08/11/2022,T&S UK - Public Transport,Innovation and Skills Group,Corporate Travel Management (North) Ltd,99835444,133.65,T&S UK - Public Transport
BEIS,UKRI - BBSRC,08/11/2022,T&S UK - Public Transport,Innovation and Skills Group,Corporate Travel Management (North) Ltd,99835444,0.25,T&S UK - Public Transport
BEIS,UKRI - BBSRC,08/11/2022,T&S UK - Public Transport,Innovation and Skills Group,Corporate Travel Management (North) Ltd,99835444,88.70,T&S UK - Public Transport
BEIS,UKRI - BBSRC,08/11/2022,T&S UK - Public Transport,Innovation and Skills Group,Corporate Travel Management (North) Ltd,99835444,0.25,T&S UK - Public Transport
BEIS,UKRI - BBSRC,08/11/2022,T&S UK - Public Transport,Innovation and Skills Group,Corporate Travel Management (North) Ltd,99835444,66.70,T&S UK - Public Transport
BEIS,UKRI - BBSRC,08/11/2022,T&S UK - Public Transport,Innovation and Skills Group,Corporate Travel Management (North) Ltd,99835444,5.00,T&S UK - Public Transport
BEIS,UKRI - BBSRC,08/11/2022,T&S UK - Public Transport,Innovation and Skills Group,Corporate Travel Management (North) Ltd,99835444,-133.90,T&S UK - Public Transport
BEIS,UKRI - BBSRC,08/11/2022,T&S UK - Public Transport,Innovation and Skills Group,Corporate Travel Management (North) Ltd,99835444,5.00,T&S UK - Public Transport
BEIS,UKRI - BBSRC,08/11/2022,T&S UK - Public Transport,Innovation and Skills Group,Corporate Travel Management (North) Ltd,99835444,-13.80,T&S UK - Public Transport
BEIS,UKRI - BBSRC,08/11/2022,T&S UK - Public Transport,Innovation and Skills Group,Corporate Travel Management (North) Ltd,99835444,10.00,T&S UK - Public Transport
BEIS,UKRI - BBSRC,08/11/2022,T&S UK - Public Transport,Innovation and Skills Group,Corporate Travel Management (North) Ltd,99835444,-83.00,T&S UK - Public Transport
BEIS,UKRI - BBSRC,08/11/2022,T&S UK - Public Transport,Innovation and Skills Group,Corporate Travel Management (North) Ltd,99835444,0.50,T&S UK - Public Transport
BEIS,UKRI - BBSRC,08/11/2022,T&S UK - Public Transport,Innovation and Skills Group,Corporate Travel Management (North) Ltd,99835444,467.60,T&S UK - Public Transport
BEIS,UKRI - BBSRC,08/11/2022,T&S UK - Public Transport,Innovation and Skills Group,Corporate Travel Management (North) Ltd,99835444,0.25,T&S UK - Public Transport
BEIS,UKRI - BBSRC,08/11/2022,T&S UK - Public Transport,Innovation and Skills Group,Corporate Travel Management (North) Ltd,99835444,293.15,T&S UK - Public Transport
BEIS,UKRI - BBSRC,08/11/2022,T&S UK - Public Transport,Innovation and Skills Group,Corporate Travel Management (North) Ltd,99835444,0.25,T&S UK - Public Transport
BEIS,UKRI - BBSRC,08/11/2022,T&S UK - Public Transport,Innovation and Skills Group,Corporate Travel Management (North) Ltd,99835444,132.85,T&S UK - Public Transport
BEIS,UKRI - BBSRC,08/11/2022,T&S UK - Public Transport,Innovation and Skills Group,Corporate Travel Management (North) Ltd,99835444,5.00,T&S UK - Public Transport
BEIS,UKRI - BBSRC,08/11/2022,T&S UK - Public Transport,Innovation and Skills Group,Corporate Travel Management (North) Ltd,99835444,-99.70,T&S UK - Public Transport
BEIS,UKRI - BBSRC,08/11/2022,T&S UK - Public Transport,Innovation and Skills Group,Corporate Travel Management (North) Ltd,99835444,0.50,T&S UK - Public Transport
BEIS,UKRI - BBSRC,08/11/2022,T&S UK - Public Transport,Innovation and Skills Group,Corporate Travel Management (North) Ltd,99835444,30.50,T&S UK - Public Transport
BEIS,UKRI - BBSRC,08/11/2022,T&S UK - Public Transport,Innovation and Skills Group,Corporate Travel Management (North) Ltd,99835444,46.40,T&S UK - Public Transport
BEIS,UKRI - BBSRC,08/11/2022,T&S UK - Public Transport,Innovation and Skills Group,Corporate Travel Management (North) Ltd,99835444,0.25,T&S UK - Public Transport
BEIS,UKRI - BBSRC,08/11/2022,T&S UK - Public Transport,Innovation and Skills Group,Corporate Travel Management (North) Ltd,99835444,113.70,T&S UK - Public Transport
BEIS,UKRI - BBSRC,08/11/2022,T&S UK - Public Transport,Innovation and Skills Group,Corporate Travel Management (North) Ltd,99835444,0.25,T&S UK - Public Transport
BEIS,UKRI - BBSRC,08/11/2022,T&S UK - Public Transport,Innovation and Skills Group,Corporate Travel Management (North) Ltd,99835444,33.00,T&S UK - Public Transport
BEIS,UKRI - BBSRC,08/11/2022,T&S UK - Public Transport,Innovation and Skills Group,Corporate Travel Management (North) Ltd,99835444,0.25,T&S UK - Public Transport
BEIS,UKRI - BBSRC,08/11/2022,T&S UK - Public Transport,Innovation and Skills Group,Corporate Travel Management (North) Ltd,99835444,58.10,T&S UK - Public Transport
BEIS,UKRI - BBSRC,08/11/2022,T&S UK - Public Transport,Innovation and Skills Group,Corporate Travel Management (North) Ltd,99835444,0.25,T&S UK - Public Transport
BEIS,UKRI - BBSRC,08/11/2022,T&S UK - Public Transport,Innovation and Skills Group,Corporate Travel Management (North) Ltd,99835444,106.80,T&S UK - Public Transport
BEIS,UKRI - BBSRC,08/11/2022,T&S UK - Public Transport,Innovation and Skills Group,Corporate Travel Management (North) Ltd,99835444,0.25,T&S UK - Public Transport
BEIS,UKRI - BBSRC,08/11/2022,T&S UK - Public Transport,Innovation and Skills Group,Corporate Travel Management (North) Ltd,99835444,173.60,T&S UK - Public Transport
BEIS,UKRI - BBSRC,08/11/2022,T&S UK - Public Transport,Innovation and Skills Group,Corporate Travel Management (North) Ltd,99835444,0.25,T&S UK - Public Transport
BEIS,UKRI - BBSRC,08/11/2022,T&S UK - Public Transport,Innovation and Skills Group,Corporate Travel Management (North) Ltd,99835444,167.60,T&S UK - Public Transport
BEIS,UKRI - BBSRC,08/11/2022,T&S UK - Public Transport,Innovation and Skills Group,Corporate Travel Management (North) Ltd,99835444,0.25,T&S UK - Public Transport
BEIS,UKRI - BBSRC,08/11/2022,T&S UK - Public Transport,Innovation and Skills Group,Corporate Travel Management (North) Ltd,99835444,137.80,T&S UK - Public Transport
BEIS,UKRI - BBSRC,08/11/2022,T&S UK - Public Transport,Innovation and Skills Group,Corporate Travel Management (North) Ltd,99835444,0.25,T&S UK - Public Transport
BEIS,UKRI - BBSRC,08/11/2022,T&S UK - Public Transport,Innovation and Skills Group,Corporate Travel Management (North) Ltd,99835444,180.20,T&S UK - Public Transport
BEIS,UKRI - BBSRC,08/11/2022,T&S UK - Public Transport,Innovation and Skills Group,Corporate Travel Management (North) Ltd,99835444,0.25,T&S UK - Public Transport
BEIS,UKRI - BBSRC,08/11/2022,T&S UK - Public Transport,Innovation and Skills Group,Corporate Travel Management (North) Ltd,99835444,157.20,T&S UK - Public Transport
BEIS,UKRI - BBSRC,08/11/2022,T&S UK - Public Transport,Innovation and Skills Group,Corporate Travel Management (North) Ltd,99835444,0.25,T&S UK - Public Transport
BEIS,UKRI - BBSRC,08/11/2022,T&S UK - Public Transport,Innovation and Skills Group,Corporate Travel Management (North) Ltd,99835444,136.50,T&S UK - Public Transport
BEIS,UKRI - BBSRC,08/11/2022,T&S UK - Public Transport,Innovation and Skills Group,Corporate Travel Management (North) Ltd,99835444,0.50,T&S UK - Public Transport
BEIS,UKRI - BBSRC,08/11/2022,T&S UK - Public Transport,Science Group,Corporate Travel Management (North) Ltd,99835444,0.25,T&S UK - Public Transport
BEIS,UKRI - BBSRC,08/11/2022,T&S UK - Public Transport,Science Group,Corporate Travel Management (North) Ltd,99835444,207.00,T&S UK - Public Transport
BEIS,UKRI - BBSRC,08/11/2022,T&S UK - Public Transport,Science Group,Corporate Travel Management (North) Ltd,99835444,0.50,T&S UK - Public Transport
BEIS,UKRI - BBSRC,08/11/2022,T&S UK - Public Transport,Science Group,Corporate Travel Management (North) Ltd,99835444,128.30,T&S UK - Public Transport
BEIS,UKRI - BBSRC,08/11/2022,T&S UK - Public Transport,Science Group,Corporate Travel Management (North) Ltd,99835444,312.90,T&S UK - Public Transport
BEIS,UKRI - BBSRC,08/11/2022,T&S UK - Public Transport,Science Group,Corporate Travel Management (North) Ltd,99835444,0.25,T&S UK - Public Transport
BEIS,UKRI - BBSRC,08/11/2022,T&S UK - Public Transport,Science Group,Corporate Travel Management (North) Ltd,99835444,99.10,T&S UK - Public Transport
BEIS,UKRI - BBSRC,08/11/2022,T&S UK - Public Transport,Science Group,Corporate Travel Management (North) Ltd,99835444,0.50,T&S UK - Public Transport
BEIS,UKRI - BBSRC,08/11/2022,T&S UK - Public Transport,Science Group,Corporate Travel Management (North) Ltd,99835444,72.90,T&S UK - Public Transport
BEIS,UKRI - BBSRC,08/11/2022,T&S UK - Public Transport,Science Group,Corporate Travel Management (North) Ltd,99835444,13.50,T&S UK - Public Transport
BEIS,UKRI - BBSRC,08/11/2022,T&S UK - Public Transport,Science Group,Corporate Travel Management (North) Ltd,99835444,0.50,T&S UK - Public Transport
BEIS,UKRI - BBSRC,08/11/2022,T&S UK - Public Transport,Science Group,Corporate Travel Management (North) Ltd,99835444,49.60,T&S UK - Public Transport
BEIS,UKRI - BBSRC,08/11/2022,T&S UK - Public Transport,Science Group,Corporate Travel Management (North) Ltd,99835444,82.70,T&S UK - Public Transport
BEIS,UKRI - BBSRC,08/11/2022,T&S UK - Public Transport,Science Group,Corporate Travel Management (North) Ltd,99835444,0.50,T&S UK - Public Transport
BEIS,UKRI - BBSRC,08/11/2022,T&S UK - Public Transport,Science Group,Corporate Travel Management (North) Ltd,99835444,140.00,T&S UK - Public Transport
BEIS,UKRI - BBSRC,08/11/2022,T&S UK - Public Transport,Science Group,Corporate Travel Management (North) Ltd,99835444,21.60,T&S UK - Public Transport
BEIS,UKRI - BBSRC,08/11/2022,T&S UK - Public Transport,Science Group,Corporate Travel Management (North) Ltd,99835444,0.50,T&S UK - Public Transport
BEIS,UKRI - BBSRC,08/11/2022,T&S UK - Public Transport,Science Group,Corporate Travel Management (North) Ltd,99835444,80.30,T&S UK - Public Transport
BEIS,UKRI - BBSRC,08/11/2022,T&S UK - Public Transport,Science Group,Corporate Travel Management (North) Ltd,99835444,13.50,T&S UK - Public Transport
BEIS,UKRI - BBSRC,08/11/2022,T&S UK - Public Transport,Science Group,Corporate Travel Management (North) Ltd,99835444,0.25,T&S UK - Public Transport
BEIS,UKRI - BBSRC,08/11/2022,T&S UK - Public Transport,Science Group,Corporate Travel Management (North) Ltd,99835444,316.20,T&S UK - Public Transport
BEIS,UKRI - BBSRC,08/11/2022,T&S UK - Public Transport,Science Group,Corporate Travel Management (North) Ltd,99835444,0.25,T&S UK - Public Transport
BEIS,UKRI - BBSRC,08/11/2022,T&S UK - Public Transport,Science Group,Corporate Travel Management (North) Ltd,99835444,78.20,T&S UK - Public Transport
BEIS,UKRI - BBSRC,08/11/2022,T&S UK - Public Transport,Science Group,Corporate Travel Management (North) Ltd,99835444,0.25,T&S UK - Public Transport
BEIS,UKRI - BBSRC,08/11/2022,T&S UK - Public Transport,Science Group,Corporate Travel Management (North) Ltd,99835444,63.20,T&S UK - Public Transport
BEIS,UKRI - BBSRC,08/11/2022,T&S UK - Public Transport,Science Group,Corporate Travel Management (North) Ltd,99835444,0.25,T&S UK - Public Transport
BEIS,UKRI - BBSRC,08/11/2022,T&S UK - Public Transport,Science Group,Corporate Travel Management (North) Ltd,99835444,183.90,T&S UK - Public Transport
BEIS,UKRI - BBSRC,08/11/2022,T&S UK - Public Transport,Science Group,Corporate Travel Management (North) Ltd,99835444,0.25,T&S UK - Public Transport
BEIS,UKRI - BBSRC,08/11/2022,T&S UK - Public Transport,Science Group,Corporate Travel Management (North) Ltd,99835444,96.60,T&S UK - Public Transport
BEIS,UKRI - BBSRC,08/11/2022,T&S UK - Public Transport,Science Group,Corporate Travel Management (North) Ltd,99835444,0.25,T&S UK - Public Transport
BEIS,UKRI - BBSRC,08/11/2022,T&S UK - Public Transport,Science Group,Corporate Travel Management (North) Ltd,99835444,104.20,T&S UK - Public Transport
BEIS,UKRI - BBSRC,08/11/2022,T&S UK - Public Transport,Science Group,Corporate Travel Management (North) Ltd,99835444,0.25,T&S UK - Public Transport
BEIS,UKRI - BBSRC,08/11/2022,T&S UK - Public Transport,Science Group,Corporate Travel Management (North) Ltd,99835444,113.35,T&S UK - Public Transport
BEIS,UKRI - BBSRC,08/11/2022,T&S UK - Public Transport,Science Group,Corporate Travel Management (North) Ltd,99835444,0.25,T&S UK - Public Transport
BEIS,UKRI - BBSRC,08/11/2022,T&S UK - Public Transport,Science Group,Corporate Travel Management (North) Ltd,99835444,96.60,T&S UK - Public Transport
BEIS,UKRI - BBSRC,08/11/2022,T&S UK - Public Transport,Science Group,Corporate Travel Management (North) Ltd,99835444,0.25,T&S UK - Public Transport
BEIS,UKRI - BBSRC,08/11/2022,T&S UK - Public Transport,Science Group,Corporate Travel Management (North) Ltd,99835444,113.35,T&S UK - Public Transport
BEIS,UKRI - BBSRC,08/11/2022,T&S UK - Public Transport,Science Group,Corporate Travel Management (North) Ltd,99835444,0.25,T&S UK - Public Transport
BEIS,UKRI - BBSRC,08/11/2022,T&S UK - Public Transport,Science Group,Corporate Travel Management (North) Ltd,99835444,111.60,T&S UK - Public Transport
BEIS,UKRI - BBSRC,08/11/2022,T&S UK - Public Transport,Science Group,Corporate Travel Management (North) Ltd,99835444,0.75,T&S UK - Public Transport
BEIS,UKRI - BBSRC,08/11/2022,T&S UK - Public Transport,Science Group,Corporate Travel Management (North) Ltd,99835444,38.70,T&S UK - Public Transport
BEIS,UKRI - BBSRC,08/11/2022,T&S UK - Public Transport,Science Group,Corporate Travel Management (North) Ltd,99835444,119.40,T&S UK - Public Transport
BEIS,UKRI - BBSRC,08/11/2022,T&S UK - Public Transport,Science Group,Corporate Travel Management (North) Ltd,99835444,20.30,T&S UK - Public Transport
BEIS,UKRI - BBSRC,08/11/2022,T&S UK - Public Transport,Science Group,Corporate Travel Management (North) Ltd,99835444,0.25,T&S UK - Public Transport
BEIS,UKRI - BBSRC,08/11/2022,T&S UK - Public Transport,Science Group,Corporate Travel Management (North) Ltd,99835444,188.20,T&S UK - Public Transport
BEIS,UKRI - BBSRC,08/11/2022,T&S UK - Public Transport,Science Group,Corporate Travel Management (North) Ltd,99835444,0.25,T&S UK - Public Transport
BEIS,UKRI - BBSRC,08/11/2022,T&S UK - Public Transport,Science Group,Corporate Travel Management (North) Ltd,99835444,179.90,T&S UK - Public Transport
BEIS,UKRI - BBSRC,08/11/2022,T&S UK - Public Transport,Science Group,Corporate Travel Management (North) Ltd,99835444,5.00,T&S UK - Public Transport
BEIS,UKRI - BBSRC,08/11/2022,T&S UK - Public Transport,Science Group,Corporate Travel Management (North) Ltd,99835444,-165.00,T&S UK - Public Transport
BEIS,UKRI - BBSRC,08/11/2022,T&S UK - Public Transport,Science Group,Corporate Travel Management (North) Ltd,99835444,0.25,T&S UK - Public Transport
BEIS,UKRI - BBSRC,08/11/2022,T&S UK - Public Transport,Science Group,Corporate Travel Management (North) Ltd,99835444,60.40,T&S UK - Public Transport
BEIS,UKRI - BBSRC,08/11/2022,T&S UK - Public Transport,Science Group,Corporate Travel Management (North) Ltd,99835444,0.25,T&S UK - Public Transport
BEIS,UKRI - BBSRC,08/11/2022,T&S UK - Public Transport,Science Group,Corporate Travel Management (North) Ltd,99835444,59.00,T&S UK - Public Transport
BEIS,UKRI - BBSRC,08/11/2022,T&S UK - Public Transport,Science Group,Corporate Travel Management (North) Ltd,99835444,0.25,T&S UK - Public Transport
BEIS,UKRI - BBSRC,08/11/2022,T&S UK - Public Transport,Science Group,Corporate Travel Management (North) Ltd,99835444,26.20,T&S UK - Public Transport
BEIS,UKRI - BBSRC,08/11/2022,T&S UK - Public Transport,Science Group,Corporate Travel Management (North) Ltd,99835444,0.25,T&S UK - Public Transport
BEIS,UKRI - BBSRC,08/11/2022,T&S UK - Public Transport,Science Group,Corporate Travel Management (North) Ltd,99835444,189.70,T&S UK - Public Transport
BEIS,UKRI - BBSRC,08/11/2022,T&S UK - Public Transport,Science Group,Corporate Travel Management (North) Ltd,99835444,0.25,T&S UK - Public Transport
BEIS,UKRI - BBSRC,08/11/2022,T&S UK - Public Transport,Science Group,Corporate Travel Management (North) Ltd,99835444,112.00,T&S UK - Public Transport
BEIS,UKRI - BBSRC,08/11/2022,T&S UK - Public Transport,Science Group,Corporate Travel Management (North) Ltd,99835444,0.25,T&S UK - Public Transport
BEIS,UKRI - BBSRC,08/11/2022,T&S UK - Public Transport,Science Group,Corporate Travel Management (North) Ltd,99835444,157.20,T&S UK - Public Transport
BEIS,UKRI - BBSRC,08/11/2022,T&S UK - Public Transport,Science Group,Corporate Travel Management (North) Ltd,99835444,0.25,T&S UK - Public Transport
BEIS,UKRI - BBSRC,08/11/2022,T&S UK - Public Transport,Science Group,Corporate Travel Management (North) Ltd,99835444,244.80,T&S UK - Public Transport
BEIS,UKRI - BBSRC,08/11/2022,T&S UK - Public Transport,Science Group,Corporate Travel Management (North) Ltd,99835444,0.50,T&S UK - Public Transport
BEIS,UKRI - BBSRC,08/11/2022,T&S UK - Public Transport,Science Group,Corporate Travel Management (North) Ltd,99835444,179.90,T&S UK - Public Transport
BEIS,UKRI - BBSRC,08/11/2022,T&S UK - Public Transport,Science Group,Corporate Travel Management (North) Ltd,99835444,68.20,T&S UK - Public Transport
BEIS,UKRI - BBSRC,08/11/2022,T&S UK - Public Transport,Science Group,Corporate Travel Management (North) Ltd,99835444,0.25,T&S UK - Public Transport
BEIS,UKRI - BBSRC,08/11/2022,T&S UK - Public Transport,Science Group,Corporate Travel Management (North) Ltd,99835444,79.00,T&S UK - Public Transport
BEIS,UKRI - BBSRC,08/11/2022,T&S UK - Public Transport,Science Group,Corporate Travel Management (North) Ltd,99835444,0.25,T&S UK - Public Transport
BEIS,UKRI - BBSRC,08/11/2022,T&S UK - Public Transport,Science Group,Corporate Travel Management (North) Ltd,99835444,71.45,T&S UK - Public Transport
BEIS,UKRI - BBSRC,08/11/2022,T&S UK - Public Transport,Science Group,Corporate Travel Management (North) Ltd,99835444,0.75,T&S UK - Public Transport
BEIS,UKRI - BBSRC,08/11/2022,T&S UK - Public Transport,Science Group,Corporate Travel Management (North) Ltd,99835444,414.30,T&S UK - Public Transport
BEIS,UKRI - BBSRC,08/11/2022,T&S UK - Public Transport,Science Group,Corporate Travel Management (North) Ltd,99835444,6.90,T&S UK - Public Transport
BEIS,UKRI - BBSRC,08/11/2022,T&S UK - Public Transport,Science Group,Corporate Travel Management (North) Ltd,99835444,0.25,T&S UK - Public Transport
BEIS,UKRI - BBSRC,08/11/2022,T&S UK - Public Transport,Science Group,Corporate Travel Management (North) Ltd,99835444,140.60,T&S UK - Public Transport
BEIS,UKRI - BBSRC,08/11/2022,T&S UK - Public Transport,Science Group,Corporate Travel Management (North) Ltd,99835444,0.25,T&S UK - Public Transport
BEIS,UKRI - BBSRC,08/11/2022,T&S UK - Public Transport,Science Group,Corporate Travel Management (North) Ltd,99835444,155.40,T&S UK - Public Transport
BEIS,UKRI - BBSRC,08/11/2022,T&S UK - Public Transport,Science Group,Corporate Travel Management (North) Ltd,99835444,0.50,T&S UK - Public Transport
BEIS,UKRI - BBSRC,08/11/2022,T&S UK - Public Transport,Science Group,Corporate Travel Management (North) Ltd,99835444,273.00,T&S UK - Public Transport
BEIS,UKRI - BBSRC,08/11/2022,T&S UK - Public Transport,Science Group – Admin Function,Corporate Travel Management (North) Ltd,99835444,0.25,T&S UK - Public Transport
BEIS,UKRI - BBSRC,08/11/2022,T&S UK - Public Transport,Science Group – Admin Function,Corporate Travel Management (North) Ltd,99835444,472.50,T&S UK - Public Transport
BEIS,UKRI - BBSRC,08/11/2022,T&S UK - Public Transport,Science Group – Admin Function,Corporate Travel Management (North) Ltd,99835444,0.25,T&S UK - Public Transport
BEIS,UKRI - BBSRC,08/11/2022,T&S UK - Public Transport,Science Group – Admin Function,Corporate Travel Management (North) Ltd,99835444,78.60,T&S UK - Public Transport
BEIS,UKRI - BBSRC,08/11/2022,T&S UK - Public Transport,Science Group – Admin Function,Corporate Travel Management (North) Ltd,99835444,0.25,T&S UK - Public Transport
BEIS,UKRI - BBSRC,08/11/2022,T&S UK - Public Transport,Science Group – Admin Function,Corporate Travel Management (North) Ltd,99835444,38.40,T&S UK - Public Transport
BEIS,UKRI - BBSRC,08/11/2022,T&S UK - Public Transport,Science Group – Admin Function,Corporate Travel Management (North) Ltd,99835444,0.25,T&S UK - Public Transport
BEIS,UKRI - BBSRC,08/11/2022,T&S UK - Public Transport,Science Group – Admin Function,Corporate Travel Management (North) Ltd,99835444,53.60,T&S UK - Public Transport
BEIS,UKRI - BBSRC,08/11/2022,T&S UK - Public Transport,Science Group – Admin Function,Corporate Travel Management (North) Ltd,99835444,0.25,T&S UK - Public Transport
BEIS,UKRI - BBSRC,08/11/2022,T&S UK - Public Transport,Science Group – Admin Function,Corporate Travel Management (North) Ltd,99835444,64.30,T&S UK - Public Transport
BEIS,UKRI - BBSRC,08/11/2022,T&S UK - Public Transport,Science Group – Admin Function,Corporate Travel Management (North) Ltd,99835444,0.25,T&S UK - Public Transport
BEIS,UKRI - BBSRC,08/11/2022,T&S UK - Public Transport,Science Group – Admin Function,Corporate Travel Management (North) Ltd,99835444,52.50,T&S UK - Public Transport
BEIS,UKRI - BBSRC,08/11/2022,T&S UK - Public Transport,Science Group – Admin Function,Corporate Travel Management (North) Ltd,99835444,0.25,T&S UK - Public Transport
BEIS,UKRI - BBSRC,08/11/2022,T&S UK - Public Transport,Science Group – Admin Function,Corporate Travel Management (North) Ltd,99835444,93.30,T&S UK - Public Transport
BEIS,UKRI - BBSRC,08/11/2022,T&S UK - Public Transport,Science Group – Admin Function,Corporate Travel Management (North) Ltd,99835444,0.25,T&S UK - Public Transport
BEIS,UKRI - BBSRC,08/11/2022,T&S UK - Public Transport,Science Group – Admin Function,Corporate Travel Management (North) Ltd,99835444,96.90,T&S UK - Public Transport
BEIS,UKRI - BBSRC,08/11/2022,T&S UK - Public Transport,Science Group – Admin Function,Corporate Travel Management (North) Ltd,99835444,0.25,T&S UK - Public Transport
BEIS,UKRI - BBSRC,08/11/2022,T&S UK - Public Transport,Science Group – Admin Function,Corporate Travel Management (North) Ltd,99835444,89.40,T&S UK - Public Transport
BEIS,UKRI - BBSRC,08/11/2022,T&S UK - Vehicle Hire,Science Group,Corporate Travel Management (North) Ltd,99835444,2.50,T&S UK - Vehicle Hire
BEIS,UKRI - BBSRC,08/11/2022,T&S UK - Vehicle Hire,Science Group,Corporate Travel Management (North) Ltd,99835444,38.53,T&S UK - Vehicle Hire
BEIS,UKRI - BBSRC,08/11/2022,T&S UK - Vehicle Hire,Science Group,Corporate Travel Management (North) Ltd,99835444,2.50,T&S UK - Vehicle Hire
BEIS,UKRI - BBSRC,08/11/2022,T&S UK - Vehicle Hire,Science Group,Corporate Travel Management (North) Ltd,99835444,26.68,T&S UK - Vehicle Hire
BEIS,UKRI - BBSRC,08/11/2022,T&S UK - Vehicle Hire,Science Group,Corporate Travel Management (North) Ltd,99835444,1.00,T&S UK - Vehicle Hire
BEIS,UKRI - BBSRC,09/11/2022,Non-staff travel and subsistance,CIMG - Director,Unspecified,99832443,522.33,Non-staff travel and subsistance
BEIS,UKRI - BBSRC,09/11/2022,Non-staff travel and subsistance,CIMG - Director,Unspecified,99834168,518.02,Non-staff travel and subsistance
BEIS,UKRI - BBSRC,09/11/2022,Fees (Including College Members),CIMG - Director,Unspecified,99834169,341.11,Fees (Including College Members)
BEIS,UKRI - BBSRC,09/11/2022,Fees (Including College Members),Science Group – Admin Function,Unspecified,99834170,332.93,Fees (Including College Members)
BEIS,UKRI - BBSRC,09/11/2022,Unspecified,Innovation and Skills Group,Studio 108 Design Partnership,99834177,2592.00,Legal & Professional Services
BEIS,UKRI - BBSRC,09/11/2022,T&S UK - Vehicle Hire,CIMG - Director,Enterprise Rent-A-Car UK Ltd,99834604,122.86,T&S UK - Vehicle Hire
BEIS,UKRI - BBSRC,09/11/2022,T&S UK - Vehicle Hire,CIMG - Director,Enterprise Rent-A-Car UK Ltd,99834604,24.57,T&S UK - Vehicle Hire
BEIS,UKRI - BBSRC,09/11/2022,Research Institutes - Capital Grants: Minor Works,Pirbright,The Pirbright Institute,99834609,8173.20,Research Institutes - Capital Grants: Minor Works
BEIS,UKRI - BBSRC,09/11/2022,T&S UK - Subsistence,Science Group,Unspecified,99834686,18.00,T&S UK - Subsistence
BEIS,UKRI - BBSRC,09/11/2022,T&S UK - Other Charges,Innovation and Skills Group CDSU,Unspecified,99834687,72.65,T&S UK - Other Charges
BEIS,UKRI - BBSRC,09/11/2022,T&S UK - Mileage,Science Group – Admin Function,Unspecified,99834688,47.70,T&S UK - Mileage
BEIS,UKRI - BBSRC,09/11/2022,T&S UK - Parking Tolls Congestion Charges,Science Group – Admin Function,Unspecified,99834688,22.70,T&S UK - Parking Tolls Congestion Charges
BEIS,UKRI - BBSRC,09/11/2022,T&S UK - Public Transport,Science Group – Admin Function,Unspecified,99834688,9.60,T&S UK - Public Transport
BEIS,UKRI - BBSRC,09/11/2022,T&S UK - Public Transport,Science Group – Admin Function,Unspecified,99834688,85.90,T&S UK - Public Transport
BEIS,UKRI - BBSRC,09/11/2022,T&S UK - Subsistence,Science Group – Admin Function,Unspecified,99834688,6.00,T&S UK - Subsistence
BEIS,UKRI - BBSRC,09/11/2022,T&S UK - Subsistence,Science Group – Admin Function,Unspecified,99834688,55.95,T&S UK - Subsistence
BEIS,UKRI - BBSRC,09/11/2022,T&S UK - Subsistence,Science Group – Admin Function,Unspecified,99834688,4.95,T&S UK - Subsistence
BEIS,UKRI - BBSRC,09/11/2022,T&S UK - Subsistence,Science Group – Admin Function,Unspecified,99834688,30.00,T&S UK - Subsistence
BEIS,UKRI - BBSRC,09/11/2022,T&S UK - Subsistence,Science Group – Admin Function,Unspecified,99834688,12.75,T&S UK - Subsistence
BEIS,UKRI - BBSRC,09/11/2022,T&S UK - Other Charges,CIMG - Information Management,Unspecified,99834689,13.80,T&S UK - Other Charges
BEIS,UKRI - BBSRC,09/11/2022,Research Institutes - Capital Grants: Minor Works,Pirbright,The Pirbright Institute,99835854,322.84,Research Institutes - Capital Grants: Minor Works
BEIS,UKRI - BBSRC,09/11/2022,Conferences & Seminars,CIMG - Director,Unspecified,99835989,86.00,Conferences & Seminars
BEIS,UKRI - BBSRC,09/11/2022,Conferences & Seminars,CIMG - Director,Unspecified,99835990,340.00,Conferences & Seminars
BEIS,UKRI - BBSRC,09/11/2022,Conferences & Seminars,CIMG - Director,Unspecified,99835991,680.00,Conferences & Seminars
BEIS,UKRI - BBSRC,09/11/2022,Conferences & Seminars,CIMG - Director,Unspecified,99835992,25.34,Conferences & Seminars
BEIS,UKRI - BBSRC,09/11/2022,Conferences & Seminars,CIMG - Director,Unspecified,99835993,690.00,Conferences & Seminars
BEIS,UKRI - BBSRC,10/11/2022,T&S UK - Public Transport,CE - IRU,Unspecified,99836445,13.00,T&S UK - Public Transport
BEIS,UKRI - BBSRC,10/11/2022,T&S UK - Subsistence,CE - IRU,Unspecified,99836445,14.98,T&S UK - Subsistence
BEIS,UKRI - BBSRC,10/11/2022,T&S UK - Subsistence,CE - IRU,Unspecified,99836445,2.65,T&S UK - Subsistence
BEIS,UKRI - BBSRC,10/11/2022,T&S UK - Public Transport,CE - IRU,Unspecified,99836446,7.50,T&S UK - Public Transport
BEIS,UKRI - BBSRC,10/11/2022,T&S UK - Public Transport,CE - IRU,Unspecified,99836446,59.80,T&S UK - Public Transport
BEIS,UKRI - BBSRC,10/11/2022,Non-staff travel and subsistance,CE - CPS,Unspecified,99837569,115.69,Non-staff travel and subsistance
BEIS,UKRI - BBSRC,10/11/2022,Fees (Including College Members),CE - CPS,Unspecified,99837570,255.00,Fees (Including College Members)
BEIS,UKRI - BBSRC,11/11/2022,Non-staff travel and subsistance,Science Group - Delivery Function,Unspecified,99836564,186.08,Non-staff travel and subsistance
BEIS,UKRI - BBSRC,11/11/2022,Unspecified,Science Group - Delivery Function,Unspecified,99836565,230.00,Council & Committee Honoraria
BEIS,UKRI - BBSRC,11/11/2022,Unspecified,CE - Chief Executive,Unspecified,99836566,157.50,Council & Committee Honoraria
BEIS,UKRI - BBSRC,11/11/2022,Unspecified,CE - Chief Executive,Unspecified,99836567,170.00,Council & Committee Honoraria
BEIS,UKRI - BBSRC,11/11/2022,Unspecified,CE - Chief Executive,Unspecified,99836570,174.14,Council & Committee Honoraria
BEIS,UKRI - BBSRC,11/11/2022,Unspecified,CE - Chief Executive,Unspecified,99836571,170.00,Council & Committee Honoraria
BEIS,UKRI - BBSRC,11/11/2022,Unspecified,CE - Chief Executive,Unspecified,99836574,81.30,Council & Committee Honoraria
BEIS,UKRI - BBSRC,11/11/2022,Unspecified,CE - Chief Executive,Unspecified,99836575,70.68,Council & Committee Honoraria
BEIS,UKRI - BBSRC,11/11/2022,Unspecified,CE - Chief Executive,Unspecified,99836576,51.90,Council & Committee Honoraria
BEIS,UKRI - BBSRC,11/11/2022,Unspecified,CE - Chief Executive,Unspecified,99836577,192.06,Council & Committee Honoraria
BEIS,UKRI - BBSRC,11/11/2022,Unspecified,CE - Chief Executive,Unspecified,99836578,61.65,Council & Committee Honoraria
BEIS,UKRI - BBSRC,11/11/2022,Unspecified,CE - Chief Executive,Unspecified,99836579,62.10,Council & Committee Honoraria
BEIS,UKRI - BBSRC,11/11/2022,Unspecified,CE - Chief Executive,Unspecified,99836580,108.00,Council & Committee Honoraria
BEIS,UKRI - BBSRC,11/11/2022,Unspecified,CE - Chief Executive,Unspecified,99836581,26.50,Council & Committee Honoraria
BEIS,UKRI - BBSRC,11/11/2022,Unspecified,CE - Chief Executive,Unspecified,99836582,71.99,Council & Committee Honoraria
BEIS,UKRI - BBSRC,11/11/2022,Unspecified,CE - Chief Executive,Unspecified,99836583,85.70,Council & Committee Honoraria
BEIS,UKRI - BBSRC,11/11/2022,Unspecified,CE - Chief Executive,Unspecified,99836584,72.96,Council & Committee Honoraria
BEIS,UKRI - BBSRC,11/11/2022,Unspecified,CE - Chief Executive,Unspecified,99836585,170.00,Council & Committee Honoraria
BEIS,UKRI - BBSRC,11/11/2022,Unspecified,CE - Chief Executive,Unspecified,99836586,77.50,Council & Committee Honoraria
BEIS,UKRI - BBSRC,11/11/2022,Unspecified,CE - Chief Executive,Unspecified,99836587,126.00,Council & Committee Honoraria
BEIS,UKRI - BBSRC,11/11/2022,Unspecified,CE - Chief Executive,Unspecified,99836588,107.00,Council & Committee Honoraria
BEIS,UKRI - BBSRC,11/11/2022,Unspecified,CE - Chief Executive,Unspecified,99836589,16.90,Council & Committee Honoraria
BEIS,UKRI - BBSRC,11/11/2022,Unspecified,CE - Chief Executive,Unspecified,99836590,165.60,Council & Committee Honoraria
BEIS,UKRI - BBSRC,11/11/2022,Unspecified,CE - Chief Executive,Unspecified,99836591,174.95,Council & Committee Honoraria
BEIS,UKRI - BBSRC,11/11/2022,Unspecified,CE - Chief Executive,Unspecified,99836592,56.20,Council & Committee Honoraria
BEIS,UKRI - BBSRC,11/11/2022,Unspecified,CE - Chief Executive,Unspecified,99836593,170.00,Council & Committee Honoraria
BEIS,UKRI - BBSRC,11/11/2022,Unspecified,CE - Chief Executive,Unspecified,99836594,43.50,Council & Committee Honoraria
BEIS,UKRI - BBSRC,11/11/2022,Unspecified,CE - Chief Executive,Unspecified,99836595,44.50,Council & Committee Honoraria
BEIS,UKRI - BBSRC,11/11/2022,Unspecified,CE - Chief Executive,Unspecified,99836596,170.00,Council & Committee Honoraria
BEIS,UKRI - BBSRC,11/11/2022,Conferences & Seminars,CIMG - Director,Unspecified,99836597,170.00,Conferences & Seminars
BEIS,UKRI - BBSRC,11/11/2022,Unspecified,CE - Chief Executive,Unspecified,99836598,48.90,Council & Committee Honoraria
BEIS,UKRI - BBSRC,11/11/2022,Unspecified,Science Group – Admin Function,Unspecified,99836599,340.00,Council & Committee Honoraria
BEIS,UKRI - BBSRC,11/11/2022,Unspecified,Science Group - Delivery Function,Unspecified,99836600,85.00,Council & Committee Honoraria
BEIS,UKRI - BBSRC,11/11/2022,Unspecified,Science Group – Admin Function,Unspecified,99836601,340.00,Council & Committee Honoraria
BEIS,UKRI - BBSRC,11/11/2022,Unspecified,Science Group - Delivery Function,Unspecified,99836602,85.00,Council & Committee Honoraria
BEIS,UKRI - BBSRC,11/11/2022,Non-staff travel and subsistance,CIMG - Director,Unspecified,99836606,92.00,Non-staff travel and subsistance
BEIS,UKRI - BBSRC,11/11/2022,Fees (Including College Members),CIMG - Director,Unspecified,99836607,340.00,Fees (Including College Members)
BEIS,UKRI - BBSRC,11/11/2022,UK - Professional Memberships & Subscriptions,CE - Chief Executive,The Society of Biology / The Royal Society of Biology,99836670,193.00,UK - Professional Memberships & Subscriptions
BEIS,UKRI - BBSRC,11/11/2022,T&S UK - Other Charges,Science Group – Admin Function,Unspecified,99836702,3.44,T&S UK - Other Charges
BEIS,UKRI - BBSRC,11/11/2022,T&S UK - Public Transport,Science Group – Admin Function,Unspecified,99836702,14.84,T&S UK - Public Transport
BEIS,UKRI - BBSRC,11/11/2022,T&S UK - Public Transport,Science Group – Admin Function,Unspecified,99836702,76.07,T&S UK - Public Transport
BEIS,UKRI - BBSRC,11/11/2022,T&S UK - Public Transport,Science Group – Admin Function,Unspecified,99836702,14.76,T&S UK - Public Transport
BEIS,UKRI - BBSRC,11/11/2022,T&S UK - Subsistence,Science Group – Admin Function,Unspecified,99836702,8.41,T&S UK - Subsistence
BEIS,UKRI - BBSRC,11/11/2022,T&S UK - Subsistence,Science Group – Admin Function,Unspecified,99836702,52.79,T&S UK - Subsistence
BEIS,UKRI - BBSRC,11/11/2022,T&S UK - Subsistence,Science Group – Admin Function,Unspecified,99836702,29.79,T&S UK - Subsistence
BEIS,UKRI - BBSRC,11/11/2022,T&S UK - Subsistence,Science Group – Admin Function,Unspecified,99836702,37.19,T&S UK - Subsistence
BEIS,UKRI - BBSRC,11/11/2022,T&S UK - Subsistence,Science Group – Admin Function,Unspecified,99836702,25.00,T&S UK - Subsistence
BEIS,UKRI - BBSRC,11/11/2022,T&S UK - Subsistence,Science Group – Admin Function,Unspecified,99836702,10.92,T&S UK - Subsistence
BEIS,UKRI - BBSRC,14/11/2022,Unspecified,Balance Sheet,HM Revenue & Customs,99832643,2362.81,PAYE Payable Salaries
BEIS,UKRI - BBSRC,14/11/2022,Unspecified,FG - Accounts & Business Planning,HM Revenue & Customs,99832644,34.00,Apprenticeship Levy
BEIS,UKRI - BBSRC,14/11/2022,Unspecified,Balance Sheet,HM Revenue & Customs,99832646,78201.46,PAYE Payable Salaries
BEIS,UKRI - BBSRC,14/11/2022,Unspecified,Balance Sheet,HM Revenue & Customs,99832647,6181.00,Student Loans
BEIS,UKRI - BBSRC,14/11/2022,Unspecified,Balance Sheet,HM Revenue & Customs,99832648,107426.82,NI Payable Salaries
BEIS,UKRI - BBSRC,14/11/2022,Unspecified,FG - Accounts & Business Planning,HM Revenue & Customs,99832649,2675.00,Apprenticeship Levy
BEIS,UKRI - BBSRC,14/11/2022,Unspecified,FG - Estates,Womble Bond Dickinson LLP,99838575,1029.36,Legal & Professional Services
BEIS,UKRI - BBSRC,14/11/2022,T&S UK - Other Charges,Science Group,Unspecified,99838689,4.04,T&S UK - Other Charges
BEIS,UKRI - BBSRC,14/11/2022,T&S UK - Public Transport,Science Group,Unspecified,99838689,14.00,T&S UK - Public Transport
BEIS,UKRI - BBSRC,14/11/2022,T&S UK - Subsistence,Science Group,Unspecified,99838689,7.55,T&S UK - Subsistence
BEIS,UKRI - BBSRC,15/11/2022,Union Deductions,Balance Sheet,PCS Union,99832650,45.21,Union Deductions
BEIS,UKRI - BBSRC,15/11/2022,Voluntary Deductions,Balance Sheet,Swindon Office Sports and Social Club,99832651,44.00,Voluntary Deductions
BEIS,UKRI - BBSRC,15/11/2022,Unspecified,Balance Sheet,Unspecified,99832652,20187.15,Ees Pension Deductions - JSS
BEIS,UKRI - BBSRC,15/11/2022,Unspecified,Balance Sheet,Unspecified,99832653,82904.67,Ers Pension Deductions - JSS
BEIS,UKRI - BBSRC,15/11/2022,Unspecified,Balance Sheet,Scottish Widows Life Assurance,99832654,447.16,Partnership Pension Deductions
BEIS,UKRI - BBSRC,15/11/2022,Unspecified,Balance Sheet,Scottish Widows Life Assurance,99832655,10.00,Other Pension Deductions
BEIS,UKRI - BBSRC,15/11/2022,Unspecified,Balance Sheet,Cabinet Office RM Shared Services,99832656,13.30,Ers Pension Deductions - JSS
BEIS,UKRI - BBSRC,15/11/2022,Unspecified,Balance Sheet,Cabinet Office RM Shared Services,99832657,12835.67,Ees Pension Deductions - MyCSP
BEIS,UKRI - BBSRC,15/11/2022,Unspecified,Balance Sheet,Cabinet Office RM Shared Services,99832658,63695.65,Ers Pension Deductions - MyCSP
BEIS,UKRI - BBSRC,15/11/2022,Nursery Deductions,Balance Sheet,UKRI - Engineering & Physical Sciences Research Council,99832659,1073.00,Nursery Deductions
BEIS,UKRI - BBSRC,15/11/2022,Unspecified,Balance Sheet,Unspecified,99832660,388.26,Ees Pension Deductions - MRC
BEIS,UKRI - BBSRC,15/11/2022,Unspecified,Balance Sheet,Unspecified,99832661,955.72,Ers Pension Deductions - MRC
BEIS,UKRI - BBSRC,15/11/2022,T&S UK - Subsistence,Science Group,Unspecified,99839170,3.30,T&S UK - Subsistence
BEIS,UKRI - BBSRC,16/11/2022,Fees (Including College Members),CIMG - Director,Unspecified,99834693,340.52,Fees (Including College Members)
BEIS,UKRI - BBSRC,16/11/2022,Non-staff travel and subsistance,CIMG - Director,Unspecified,99834694,487.66,Non-staff travel and subsistance
BEIS,UKRI - BBSRC,16/11/2022,Fees (Including College Members),CIMG - Director,Unspecified,99834695,690.44,Fees (Including College Members)
BEIS,UKRI - BBSRC,16/11/2022,Non-staff travel and subsistance,CIMG - Director,Unspecified,99834696,196.05,Non-staff travel and subsistance
BEIS,UKRI - BBSRC,16/11/2022,Fees (Including College Members),CIMG - Director,Unspecified,99834697,340.72,Fees (Including College Members)
BEIS,UKRI - BBSRC,16/11/2022,Non-staff travel and subsistance,CIMG - Director,Unspecified,99834698,222.41,Non-staff travel and subsistance
BEIS,UKRI - BBSRC,16/11/2022,Fees (Including College Members),CIMG - Director,Unspecified,99834699,340.47,Fees (Including College Members)
BEIS,UKRI - BBSRC,16/11/2022,Non-staff travel and subsistance,CIMG - Director,Unspecified,99834700,695.01,Non-staff travel and subsistance
BEIS,UKRI - BBSRC,16/11/2022,Fees (Including College Members),CIMG - Director,Unspecified,99834701,681.79,Fees (Including College Members)
BEIS,UKRI - BBSRC,16/11/2022,Non-staff travel and subsistance,CIMG - Director,Unspecified,99834702,663.73,Non-staff travel and subsistance
BEIS,UKRI - BBSRC,16/11/2022,Fees (Including College Members),CIMG - Director,Unspecified,99834703,339.51,Fees (Including College Members)
BEIS,UKRI - BBSRC,16/11/2022,Non-staff travel and subsistance,CIMG - Director,Unspecified,99836200,191.00,Non-staff travel and subsistance
BEIS,UKRI - BBSRC,16/11/2022,Non-staff travel and subsistance,CIMG - Director,Unspecified,99836415,350.10,Non-staff travel and subsistance
BEIS,UKRI - BBSRC,16/11/2022,Fees (Including College Members),CIMG - Director,Unspecified,99836416,339.62,Fees (Including College Members)
BEIS,UKRI - BBSRC,16/11/2022,Unspecified,CE - IRU,Unspecified,99838494,4064.07,Legal & Professional Services
BEIS,UKRI - BBSRC,16/11/2022,Unspecified,CE - Chief Executive,Unspecified,99839478,93.60,Council & Committee Honoraria
BEIS,UKRI - BBSRC,16/11/2022,Non-staff travel and subsistance,Science Group - Delivery Function,Unspecified,99839479,77.49,Non-staff travel and subsistance
BEIS,UKRI - BBSRC,16/11/2022,Unspecified,Science Group – Admin Function,Unspecified,99839485,360.00,Council & Committee Honoraria
BEIS,UKRI - BBSRC,16/11/2022,Non-staff travel and subsistance,Science Group – Admin Function,Unspecified,99839486,79.00,Non-staff travel and subsistance
BEIS,UKRI - BBSRC,16/11/2022,Unspecified,Science Group – Admin Function,Unspecified,99839487,170.00,Council & Committee Honoraria
BEIS,UKRI - BBSRC,16/11/2022,Non-staff travel and subsistance,Science Group – Admin Function,Unspecified,99839488,128.15,Non-staff travel and subsistance
BEIS,UKRI - BBSRC,16/11/2022,Unspecified,Science Group – Admin Function,Unspecified,99839489,230.00,Council & Committee Honoraria
BEIS,UKRI - BBSRC,16/11/2022,Unspecified,Science Group – Admin Function,Unspecified,99839490,340.00,Council & Committee Honoraria
BEIS,UKRI - BBSRC,16/11/2022,Unspecified,Science Group – Admin Function,Unspecified,99839491,340.00,Council & Committee Honoraria
BEIS,UKRI - BBSRC,16/11/2022,Unspecified,Science Group – Admin Function,Unspecified,99839492,340.00,Council & Committee Honoraria
BEIS,UKRI - BBSRC,16/11/2022,Unspecified,Science Group – Admin Function,Unspecified,99839493,340.00,Council & Committee Honoraria
BEIS,UKRI - BBSRC,16/11/2022,Unspecified,Science Group – Admin Function,Unspecified,99839494,460.00,Council & Committee Honoraria
BEIS,UKRI - BBSRC,16/11/2022,Unspecified,Science Group – Admin Function,Unspecified,99839495,170.00,Council & Committee Honoraria
BEIS,UKRI - BBSRC,16/11/2022,Unspecified,Science Group – Admin Function,Unspecified,99839496,340.00,Council & Committee Honoraria
BEIS,UKRI - BBSRC,16/11/2022,Unspecified,Science Group – Admin Function,Unspecified,99839497,340.00,Council & Committee Honoraria
BEIS,UKRI - BBSRC,16/11/2022,Unspecified,Science Group - Delivery Function,Unspecified,99839498,340.00,Council & Committee Honoraria
BEIS,UKRI - BBSRC,16/11/2022,Unspecified,Science Group – Admin Function,Unspecified,99839499,340.00,Council & Committee Honoraria
BEIS,UKRI - BBSRC,16/11/2022,T&S UK - Subsistence,CE - IRU,Unspecified,99840326,15.00,T&S UK - Subsistence
BEIS,UKRI - BBSRC,16/11/2022,T&S UK - Public Transport,CE - IRU,Unspecified,99840328,4.15,T&S UK - Public Transport
BEIS,UKRI - BBSRC,16/11/2022,T&S UK - Public Transport,CE - IRU,Unspecified,99840328,5.00,T&S UK - Public Transport
BEIS,UKRI - BBSRC,16/11/2022,T&S UK - Other Charges,Science Group,Unspecified,99840330,19.78,T&S UK - Other Charges
BEIS,UKRI - BBSRC,16/11/2022,T&S UK - Subsistence,Science Group,Unspecified,99840330,7.50,T&S UK - Subsistence
BEIS,UKRI - BBSRC,17/11/2022,Unspecified,Science Group,Unspecified,99840142,480.00,Council & Committee Honoraria
BEIS,UKRI - BBSRC,17/11/2022,Research Grant Expenditure,Impact & Knowledge Exchange,Royal Microscopical Society,99840757,18395.37,Research Grant Expenditure
BEIS,UKRI - BBSRC,17/11/2022,T&S UK - Subsistence,CE - IRU,Unspecified,99840843,7.80,T&S UK - Subsistence
BEIS,UKRI - BBSRC,17/11/2022,T&S UK - Subsistence,Science Group,Unspecified,99840844,8.42,T&S UK - Subsistence
BEIS,UKRI - BBSRC,17/11/2022,T&S UK - Public Transport,Science Group,Unspecified,99840845,57.80,T&S UK - Public Transport
BEIS,UKRI - BBSRC,17/11/2022,T&S UK - Subsistence,Science Group,Unspecified,99840845,17.29,T&S UK - Subsistence
BEIS,UKRI - BBSRC,18/11/2022,Research Institutes - Capital Grants: Minor Works,Rothamsted Research,Rothamsted Research Ltd,99835908,4990.20,Research Institutes - Capital Grants: Minor Works
BEIS,UKRI - BBSRC,18/11/2022,Training Awards - Postgraduates,FG - Accounts & Business Planning,University of Exeter,99836497,6189.55,Training Awards - Postgraduates
BEIS,UKRI - BBSRC,18/11/2022,Training Awards - Postgraduates,FG - Accounts & Business Planning,King's College London,99836498,2241.15,Training Awards - Postgraduates
BEIS,UKRI - BBSRC,18/11/2022,Training Awards - Postgraduates,FG - Accounts & Business Planning,University of Oxford,99836499,-499.46,Training Awards - Postgraduates
BEIS,UKRI - BBSRC,18/11/2022,Training Awards - Postgraduates,FG - Accounts & Business Planning,Heriot Watt University,99836500,6094.25,Training Awards - Postgraduates
BEIS,UKRI - BBSRC,18/11/2022,Training Awards - Postgraduates,FG - Accounts & Business Planning,University of Surrey,99836501,39631.74,Training Awards - Postgraduates
BEIS,UKRI - BBSRC,18/11/2022,Training Awards - Postgraduates,FG - Accounts & Business Planning,University of Newcastle Upon Tyne,99837632,6623.97,Training Awards - Postgraduates
BEIS,UKRI - BBSRC,18/11/2022,Training Awards - Postgraduates,FG - Accounts & Business Planning,Imperial College London,99837633,7123.96,Training Awards - Postgraduates
BEIS,UKRI - BBSRC,18/11/2022,Training Awards - Postgraduates,FG - Accounts & Business Planning,University of Warwick,99837634,6623.97,Training Awards - Postgraduates
BEIS,UKRI - BBSRC,18/11/2022,Training Awards - Postgraduates,FG - Accounts & Business Planning,University of Cambridge,99837635,6623.97,Training Awards - Postgraduates
BEIS,UKRI - BBSRC,18/11/2022,Training Awards - Postgraduates,FG - Accounts & Business Planning,University of Cambridge,99837636,6623.97,Training Awards - Postgraduates
BEIS,UKRI - BBSRC,18/11/2022,Training Awards - Postgraduates,FG - Accounts & Business Planning,Harper Adams University College,99837637,6623.97,Training Awards - Postgraduates
BEIS,UKRI - BBSRC,18/11/2022,Training Awards - Postgraduates,FG - Accounts & Business Planning,University of Nottingham,99837638,6623.97,Training Awards - Postgraduates
BEIS,UKRI - BBSRC,18/11/2022,Training Awards - Postgraduates,FG - Accounts & Business Planning,University of Nottingham,99837639,6623.97,Training Awards - Postgraduates
BEIS,UKRI - BBSRC,18/11/2022,Training Awards - Postgraduates,FG - Accounts & Business Planning,Harper Adams University College,99837640,6623.97,Training Awards - Postgraduates
BEIS,UKRI - BBSRC,18/11/2022,Training Awards - Postgraduates,FG - Accounts & Business Planning,University of Newcastle Upon Tyne,99837641,6623.97,Training Awards - Postgraduates
BEIS,UKRI - BBSRC,18/11/2022,Training Awards - Postgraduates,FG - Accounts & Business Planning,Babraham Institute,99837642,6623.97,Training Awards - Postgraduates
BEIS,UKRI - BBSRC,18/11/2022,Training Awards - Postgraduates,FG - Accounts & Business Planning,Babraham Institute,99837643,6623.97,Training Awards - Postgraduates
BEIS,UKRI - BBSRC,18/11/2022,Training Awards - Postgraduates,FG - Accounts & Business Planning,Babraham Institute,99837644,6623.97,Training Awards - Postgraduates
BEIS,UKRI - BBSRC,18/11/2022,Training Awards - Postgraduates,FG - Accounts & Business Planning,Babraham Institute,99837645,6623.97,Training Awards - Postgraduates
BEIS,UKRI - BBSRC,18/11/2022,Training Awards - Postgraduates,FG - Accounts & Business Planning,Babraham Institute,99837646,6623.97,Training Awards - Postgraduates
BEIS,UKRI - BBSRC,18/11/2022,Training Awards - Postgraduates,FG - Accounts & Business Planning,Babraham Institute,99837647,6623.97,Training Awards - Postgraduates
BEIS,UKRI - BBSRC,18/11/2022,Training Awards - Postgraduates,FG - Accounts & Business Planning,The University of Manchester,99837648,6623.97,Training Awards - Postgraduates
BEIS,UKRI - BBSRC,18/11/2022,Training Awards - Postgraduates,FG - Accounts & Business Planning,The University of Manchester,99837649,6623.97,Training Awards - Postgraduates
BEIS,UKRI - BBSRC,18/11/2022,Training Awards - Postgraduates,FG - Accounts & Business Planning,University of Nottingham,99837650,6623.97,Training Awards - Postgraduates
BEIS,UKRI - BBSRC,18/11/2022,Training Awards - Postgraduates,FG - Accounts & Business Planning,Imperial College London,99837651,7123.96,Training Awards - Postgraduates
BEIS,UKRI - BBSRC,18/11/2022,Training Awards - Postgraduates,FG - Accounts & Business Planning,University of Liverpool,99837652,6623.97,Training Awards - Postgraduates
BEIS,UKRI - BBSRC,18/11/2022,Training Awards - Postgraduates,FG - Accounts & Business Planning,University of Liverpool,99837653,6623.97,Training Awards - Postgraduates
BEIS,UKRI - BBSRC,18/11/2022,Training Awards - Postgraduates,FG - Accounts & Business Planning,University of Oxford,99837654,6623.97,Training Awards - Postgraduates
BEIS,UKRI - BBSRC,18/11/2022,Training Awards - Postgraduates,FG - Accounts & Business Planning,University of Newcastle Upon Tyne,99837655,6623.97,Training Awards - Postgraduates
BEIS,UKRI - BBSRC,18/11/2022,Training Awards - Postgraduates,FG - Accounts & Business Planning,University of Glasgow,99837656,6623.97,Training Awards - Postgraduates
BEIS,UKRI - BBSRC,18/11/2022,Training Awards - Postgraduates,FG - Accounts & Business Planning,University of Newcastle Upon Tyne,99837657,6623.97,Training Awards - Postgraduates
BEIS,UKRI - BBSRC,18/11/2022,Training Awards - Postgraduates,FG - Accounts & Business Planning,University College London,99837658,7123.96,Training Awards - Postgraduates
BEIS,UKRI - BBSRC,18/11/2022,Training Awards - Postgraduates,FG - Accounts & Business Planning,Imperial College London,99837659,7123.96,Training Awards - Postgraduates
BEIS,UKRI - BBSRC,18/11/2022,Training Awards - Postgraduates,FG - Accounts & Business Planning,University of Strathclyde,99837660,6495.59,Training Awards - Postgraduates
BEIS,UKRI - BBSRC,18/11/2022,Training Awards - Postgraduates,FG - Accounts & Business Planning,University of Strathclyde,99837660,6495.56,Training Awards - Postgraduates
BEIS,UKRI - BBSRC,18/11/2022,Training Awards - Postgraduates,FG - Accounts & Business Planning,National Institute For Agricultural Botany (NIAB),99837661,401.51,Training Awards - Postgraduates
BEIS,UKRI - BBSRC,18/11/2022,Training Awards - Postgraduates,FG - Accounts & Business Planning,The University of Manchester,99837662,401.51,Training Awards - Postgraduates
BEIS,UKRI - BBSRC,18/11/2022,Training Awards - Postgraduates,FG - Accounts & Business Planning,National Institute For Agricultural Botany (NIAB),99837663,401.51,Training Awards - Postgraduates
BEIS,UKRI - BBSRC,18/11/2022,Training Awards - Postgraduates,FG - Accounts & Business Planning,National Institute For Agricultural Botany (NIAB),99837664,401.51,Training Awards - Postgraduates
BEIS,UKRI - BBSRC,18/11/2022,Training Awards - Postgraduates,FG - Accounts & Business Planning,National Institute For Agricultural Botany (NIAB),99837665,401.51,Training Awards - Postgraduates
BEIS,UKRI - BBSRC,18/11/2022,Training Awards - Postgraduates,FG - Accounts & Business Planning,National Institute For Agricultural Botany (NIAB),99837666,401.51,Training Awards - Postgraduates
BEIS,UKRI - BBSRC,18/11/2022,Training Awards - Postgraduates,FG - Accounts & Business Planning,National Institute For Agricultural Botany (NIAB),99837667,401.51,Training Awards - Postgraduates
BEIS,UKRI - BBSRC,18/11/2022,Training Awards - Postgraduates,FG - Accounts & Business Planning,National Institute For Agricultural Botany (NIAB),99837668,401.51,Training Awards - Postgraduates
BEIS,UKRI - BBSRC,18/11/2022,Training Awards - Postgraduates,FG - Accounts & Business Planning,National Institute For Agricultural Botany (NIAB),99837669,401.51,Training Awards - Postgraduates
BEIS,UKRI - BBSRC,18/11/2022,Training Awards - Postgraduates,FG - Accounts & Business Planning,Queen Mary University of London,99837670,401.51,Training Awards - Postgraduates
BEIS,UKRI - BBSRC,18/11/2022,Training Awards - Postgraduates,FG - Accounts & Business Planning,The University of Manchester,99837671,401.51,Training Awards - Postgraduates
BEIS,UKRI - BBSRC,18/11/2022,Training Awards - Postgraduates,FG - Accounts & Business Planning,University of York,99837672,401.51,Training Awards - Postgraduates
BEIS,UKRI - BBSRC,18/11/2022,Training Awards - Postgraduates,FG - Accounts & Business Planning,University of Warwick,99837673,401.51,Training Awards - Postgraduates
BEIS,UKRI - BBSRC,18/11/2022,Training Awards - Postgraduates,FG - Accounts & Business Planning,University of Nottingham,99837674,6495.59,Training Awards - Postgraduates
BEIS,UKRI - BBSRC,18/11/2022,Training Awards - Postgraduates,FG - Accounts & Business Planning,University of Nottingham,99837675,401.51,Training Awards - Postgraduates
BEIS,UKRI - BBSRC,18/11/2022,Training Awards - Postgraduates,FG - Accounts & Business Planning,University of Liverpool,99837676,401.51,Training Awards - Postgraduates
BEIS,UKRI - BBSRC,18/11/2022,Training Awards - Postgraduates,FG - Accounts & Business Planning,University of Liverpool,99837677,401.51,Training Awards - Postgraduates
BEIS,UKRI - BBSRC,18/11/2022,Training Awards - Postgraduates,FG - Accounts & Business Planning,University of Exeter,99837678,401.51,Training Awards - Postgraduates
BEIS,UKRI - BBSRC,18/11/2022,Training Awards - Postgraduates,FG - Accounts & Business Planning,Teesside University,99837679,401.51,Training Awards - Postgraduates
BEIS,UKRI - BBSRC,18/11/2022,Training Awards - Postgraduates,FG - Accounts & Business Planning,Queen Mary University of London,99837680,401.51,Training Awards - Postgraduates
BEIS,UKRI - BBSRC,18/11/2022,Training Awards - Postgraduates,FG - Accounts & Business Planning,University of Cambridge,99837681,401.51,Training Awards - Postgraduates
BEIS,UKRI - BBSRC,18/11/2022,Training Awards - Postgraduates,FG - Accounts & Business Planning,University of York,99837682,401.51,Training Awards - Postgraduates
BEIS,UKRI - BBSRC,18/11/2022,Training Awards - Postgraduates,FG - Accounts & Business Planning,University of Strathclyde,99837683,6495.56,Training Awards - Postgraduates
BEIS,UKRI - BBSRC,18/11/2022,Training Awards - Postgraduates,FG - Accounts & Business Planning,University of Strathclyde,99837683,6495.56,Training Awards - Postgraduates
BEIS,UKRI - BBSRC,18/11/2022,Training Awards - Postgraduates,FG - Accounts & Business Planning,University of Strathclyde,99837683,6495.59,Training Awards - Postgraduates
BEIS,UKRI - BBSRC,18/11/2022,Training Awards - Postgraduates,FG - Accounts & Business Planning,University of Strathclyde,99837683,6495.56,Training Awards - Postgraduates
BEIS,UKRI - BBSRC,18/11/2022,Training Awards - Postgraduates,FG - Accounts & Business Planning,University of Strathclyde,99837683,6495.56,Training Awards - Postgraduates
BEIS,UKRI - BBSRC,18/11/2022,Training Awards - Postgraduates,FG - Accounts & Business Planning,University of Strathclyde,99837684,401.51,Training Awards - Postgraduates
BEIS,UKRI - BBSRC,18/11/2022,Training Awards - Postgraduates,FG - Accounts & Business Planning,Robert Gordon University,99837685,401.51,Training Awards - Postgraduates
BEIS,UKRI - BBSRC,18/11/2022,Training Awards - Postgraduates,FG - Accounts & Business Planning,Northumbria University,99837686,6495.56,Training Awards - Postgraduates
BEIS,UKRI - BBSRC,18/11/2022,Training Awards - Postgraduates,FG - Accounts & Business Planning,Northumbria University,99837686,6495.56,Training Awards - Postgraduates
BEIS,UKRI - BBSRC,18/11/2022,Training Awards - Postgraduates,FG - Accounts & Business Planning,Northumbria University,99837686,6495.59,Training Awards - Postgraduates
BEIS,UKRI - BBSRC,18/11/2022,Training Awards - Postgraduates,FG - Accounts & Business Planning,Northumbria University,99837686,6495.56,Training Awards - Postgraduates
BEIS,UKRI - BBSRC,18/11/2022,Training Awards - Postgraduates,FG - Accounts & Business Planning,Northumbria University,99837686,6495.56,Training Awards - Postgraduates
BEIS,UKRI - BBSRC,18/11/2022,Training Awards - Postgraduates,FG - Accounts & Business Planning,The University of Manchester,99837687,401.51,Training Awards - Postgraduates
BEIS,UKRI - BBSRC,18/11/2022,Training Awards - Postgraduates,FG - Accounts & Business Planning,University of Edinburgh,99837688,401.51,Training Awards - Postgraduates
BEIS,UKRI - BBSRC,18/11/2022,Training Awards - Postgraduates,FG - Accounts & Business Planning,University of Edinburgh,99837689,401.51,Training Awards - Postgraduates
BEIS,UKRI - BBSRC,18/11/2022,Training Awards - Postgraduates,FG - Accounts & Business Planning,University of Edinburgh,99837690,401.51,Training Awards - Postgraduates
BEIS,UKRI - BBSRC,18/11/2022,Training Awards - Postgraduates,FG - Accounts & Business Planning,University of Edinburgh,99837691,401.51,Training Awards - Postgraduates
BEIS,UKRI - BBSRC,18/11/2022,Training Awards - Postgraduates,FG - Accounts & Business Planning,University of York,99837692,401.51,Training Awards - Postgraduates
BEIS,UKRI - BBSRC,18/11/2022,Training Awards - Postgraduates,FG - Accounts & Business Planning,Lancaster University,99837693,6495.56,Training Awards - Postgraduates
BEIS,UKRI - BBSRC,18/11/2022,Training Awards - Postgraduates,FG - Accounts & Business Planning,Lancaster University,99837693,6495.56,Training Awards - Postgraduates
BEIS,UKRI - BBSRC,18/11/2022,Training Awards - Postgraduates,FG - Accounts & Business Planning,Lancaster University,99837693,6495.56,Training Awards - Postgraduates
BEIS,UKRI - BBSRC,18/11/2022,Training Awards - Postgraduates,FG - Accounts & Business Planning,Lancaster University,99837693,6495.59,Training Awards - Postgraduates
BEIS,UKRI - BBSRC,18/11/2022,Training Awards - Postgraduates,FG - Accounts & Business Planning,University College London,99837694,6995.58,Training Awards - Postgraduates
BEIS,UKRI - BBSRC,18/11/2022,Training Awards - Postgraduates,FG - Accounts & Business Planning,University College London,99837695,6995.58,Training Awards - Postgraduates
BEIS,UKRI - BBSRC,18/11/2022,Training Awards - Postgraduates,FG - Accounts & Business Planning,Kingston University,99837696,401.51,Training Awards - Postgraduates
BEIS,UKRI - BBSRC,18/11/2022,Training Awards - Postgraduates,FG - Accounts & Business Planning,Imperial College London,99837697,401.51,Training Awards - Postgraduates
BEIS,UKRI - BBSRC,18/11/2022,Training Awards - Postgraduates,FG - Accounts & Business Planning,University of Nottingham,99837698,6495.59,Training Awards - Postgraduates
BEIS,UKRI - BBSRC,18/11/2022,Training Awards - Postgraduates,FG - Accounts & Business Planning,University of Nottingham,99837698,6495.56,Training Awards - Postgraduates
BEIS,UKRI - BBSRC,18/11/2022,Training Awards - Postgraduates,FG - Accounts & Business Planning,University of Nottingham,99837699,401.51,Training Awards - Postgraduates
BEIS,UKRI - BBSRC,18/11/2022,Training Awards - Postgraduates,FG - Accounts & Business Planning,University of Liverpool,99837700,401.51,Training Awards - Postgraduates
BEIS,UKRI - BBSRC,18/11/2022,Training Awards - Postgraduates,FG - Accounts & Business Planning,University of Leeds,99837701,401.51,Training Awards - Postgraduates
BEIS,UKRI - BBSRC,18/11/2022,Training Awards - Postgraduates,FG - Accounts & Business Planning,University of Glasgow,99837702,401.51,Training Awards - Postgraduates
BEIS,UKRI - BBSRC,18/11/2022,Training Awards - Postgraduates,FG - Accounts & Business Planning,Babraham Institute,99837703,401.51,Training Awards - Postgraduates
BEIS,UKRI - BBSRC,18/11/2022,Training Awards - Postgraduates,FG - Accounts & Business Planning,University of Sheffield,99837704,401.51,Training Awards - Postgraduates
BEIS,UKRI - BBSRC,18/11/2022,Training Awards - Postgraduates,FG - Accounts & Business Planning,University of Nottingham,99837705,401.51,Training Awards - Postgraduates
BEIS,UKRI - BBSRC,18/11/2022,Training Awards - Postgraduates,FG - Accounts & Business Planning,University of Birmingham GRANT,99837706,401.51,Training Awards - Postgraduates
BEIS,UKRI - BBSRC,18/11/2022,Training Awards - Postgraduates,FG - Accounts & Business Planning,University College London,99837707,401.51,Training Awards - Postgraduates
BEIS,UKRI - BBSRC,18/11/2022,Training Awards - Postgraduates,FG - Accounts & Business Planning,University College London,99837708,401.51,Training Awards - Postgraduates
BEIS,UKRI - BBSRC,18/11/2022,Training Awards - Postgraduates,FG - Accounts & Business Planning,University College London,99837709,401.51,Training Awards - Postgraduates
BEIS,UKRI - BBSRC,18/11/2022,Training Awards - Postgraduates,FG - Accounts & Business Planning,Institute of Cancer Research,99837710,401.51,Training Awards - Postgraduates
BEIS,UKRI - BBSRC,18/11/2022,Training Awards - Postgraduates,FG - Accounts & Business Planning,Brunel University London,99837711,401.51,Training Awards - Postgraduates
BEIS,UKRI - BBSRC,18/11/2022,Training Awards - Postgraduates,FG - Accounts & Business Planning,Queen Mary University of London,99837712,401.51,Training Awards - Postgraduates
BEIS,UKRI - BBSRC,18/11/2022,Training Awards - Postgraduates,FG - Accounts & Business Planning,Imperial College London,99837713,401.51,Training Awards - Postgraduates
BEIS,UKRI - BBSRC,18/11/2022,Training Awards - Postgraduates,FG - Accounts & Business Planning,Imperial College London,99837714,401.51,Training Awards - Postgraduates
BEIS,UKRI - BBSRC,18/11/2022,Training Awards - Postgraduates,FG - Accounts & Business Planning,Imperial College London,99837715,6995.56,Training Awards - Postgraduates
BEIS,UKRI - BBSRC,18/11/2022,Training Awards - Postgraduates,FG - Accounts & Business Planning,Imperial College London,99837715,6995.56,Training Awards - Postgraduates
BEIS,UKRI - BBSRC,18/11/2022,Training Awards - Postgraduates,FG - Accounts & Business Planning,Imperial College London,99837715,6995.58,Training Awards - Postgraduates
BEIS,UKRI - BBSRC,18/11/2022,Training Awards - Postgraduates,FG - Accounts & Business Planning,Imperial College London,99837715,6995.56,Training Awards - Postgraduates
BEIS,UKRI - BBSRC,18/11/2022,Training Awards - Postgraduates,FG - Accounts & Business Planning,Imperial College London,99837715,6995.56,Training Awards - Postgraduates
BEIS,UKRI - BBSRC,18/11/2022,Training Awards - Postgraduates,FG - Accounts & Business Planning,University of Sheffield,99837716,401.51,Training Awards - Postgraduates
BEIS,UKRI - BBSRC,18/11/2022,Training Awards - Postgraduates,FG - Accounts & Business Planning,The University of Manchester,99837717,401.51,Training Awards - Postgraduates
BEIS,UKRI - BBSRC,18/11/2022,Training Awards - Postgraduates,FG - Accounts & Business Planning,University of Cambridge,99837718,401.51,Training Awards - Postgraduates
BEIS,UKRI - BBSRC,18/11/2022,Training Awards - Postgraduates,FG - Accounts & Business Planning,Babraham Institute,99837719,401.51,Training Awards - Postgraduates
BEIS,UKRI - BBSRC,18/11/2022,Training Awards - Postgraduates,FG - Accounts & Business Planning,University of Newcastle Upon Tyne,99837720,401.51,Training Awards - Postgraduates
BEIS,UKRI - BBSRC,18/11/2022,Training Awards - Postgraduates,FG - Accounts & Business Planning,University of Aberdeen,99837721,401.51,Training Awards - Postgraduates
BEIS,UKRI - BBSRC,18/11/2022,Training Awards - Postgraduates,FG - Accounts & Business Planning,University of Cambridge,99837722,401.51,Training Awards - Postgraduates
BEIS,UKRI - BBSRC,18/11/2022,Training Awards - Postgraduates,FG - Accounts & Business Planning,Queen Mary University of London,99837723,401.51,Training Awards - Postgraduates
BEIS,UKRI - BBSRC,18/11/2022,Training Awards - Postgraduates,FG - Accounts & Business Planning,King's College London,99837724,401.51,Training Awards - Postgraduates
BEIS,UKRI - BBSRC,18/11/2022,Training Awards - Postgraduates,FG - Accounts & Business Planning,University of Southampton GRANT,99837725,401.51,Training Awards - Postgraduates
BEIS,UKRI - BBSRC,18/11/2022,Training Awards - Postgraduates,FG - Accounts & Business Planning,University of Southampton GRANT,99837726,401.51,Training Awards - Postgraduates
BEIS,UKRI - BBSRC,18/11/2022,Training Awards - Postgraduates,FG - Accounts & Business Planning,National Institute For Agricultural Botany (NIAB),99837727,401.51,Training Awards - Postgraduates
BEIS,UKRI - BBSRC,18/11/2022,Training Awards - Postgraduates,FG - Accounts & Business Planning,National Institute For Agricultural Botany (NIAB),99837728,401.51,Training Awards - Postgraduates
BEIS,UKRI - BBSRC,18/11/2022,Training Awards - Postgraduates,FG - Accounts & Business Planning,National Institute For Agricultural Botany (NIAB),99837729,401.51,Training Awards - Postgraduates
BEIS,UKRI - BBSRC,18/11/2022,Training Awards - Postgraduates,FG - Accounts & Business Planning,National Institute For Agricultural Botany (NIAB),99837730,401.51,Training Awards - Postgraduates
BEIS,UKRI - BBSRC,18/11/2022,Training Awards - Postgraduates,FG - Accounts & Business Planning,National Institute For Agricultural Botany (NIAB),99837731,401.51,Training Awards - Postgraduates
BEIS,UKRI - BBSRC,18/11/2022,Training Awards - Postgraduates,FG - Accounts & Business Planning,National Institute For Agricultural Botany (NIAB),99837732,401.51,Training Awards - Postgraduates
BEIS,UKRI - BBSRC,18/11/2022,Training Awards - Postgraduates,FG - Accounts & Business Planning,University of Reading,99837733,401.51,Training Awards - Postgraduates
BEIS,UKRI - BBSRC,18/11/2022,Training Awards - Postgraduates,FG - Accounts & Business Planning,University of Reading,99837734,401.51,Training Awards - Postgraduates
BEIS,UKRI - BBSRC,18/11/2022,Training Awards - Postgraduates,FG - Accounts & Business Planning,University of Reading,99837735,401.51,Training Awards - Postgraduates
BEIS,UKRI - BBSRC,18/11/2022,Training Awards - Postgraduates,FG - Accounts & Business Planning,Lancaster University,99837736,401.51,Training Awards - Postgraduates
BEIS,UKRI - BBSRC,18/11/2022,Training Awards - Postgraduates,FG - Accounts & Business Planning,Lancaster University,99837737,401.51,Training Awards - Postgraduates
BEIS,UKRI - BBSRC,18/11/2022,Training Awards - Postgraduates,FG - Accounts & Business Planning,Lancaster University,99837738,401.51,Training Awards - Postgraduates
BEIS,UKRI - BBSRC,18/11/2022,Training Awards - Postgraduates,FG - Accounts & Business Planning,University of Oxford,99837739,401.51,Training Awards - Postgraduates
BEIS,UKRI - BBSRC,18/11/2022,Training Awards - Postgraduates,FG - Accounts & Business Planning,University of Warwick,99837740,401.51,Training Awards - Postgraduates
BEIS,UKRI - BBSRC,18/11/2022,Training Awards - Postgraduates,FG - Accounts & Business Planning,Queen Mary University of London,99837741,401.51,Training Awards - Postgraduates
BEIS,UKRI - BBSRC,18/11/2022,Training Awards - Postgraduates,FG - Accounts & Business Planning,King's College London,99837742,401.51,Training Awards - Postgraduates
BEIS,UKRI - BBSRC,18/11/2022,Training Awards - Postgraduates,FG - Accounts & Business Planning,King's College London,99837743,401.51,Training Awards - Postgraduates
BEIS,UKRI - BBSRC,18/11/2022,Training Awards - Postgraduates,FG - Accounts & Business Planning,King's College London,99837744,401.51,Training Awards - Postgraduates
BEIS,UKRI - BBSRC,18/11/2022,Training Awards - Postgraduates,FG - Accounts & Business Planning,Imperial College London,99837745,401.51,Training Awards - Postgraduates
BEIS,UKRI - BBSRC,18/11/2022,Training Awards - Postgraduates,FG - Accounts & Business Planning,Imperial College London,99837746,401.51,Training Awards - Postgraduates
BEIS,UKRI - BBSRC,18/11/2022,Training Awards - Postgraduates,FG - Accounts & Business Planning,University College London,99837747,401.51,Training Awards - Postgraduates
BEIS,UKRI - BBSRC,18/11/2022,Training Awards - Postgraduates,FG - Accounts & Business Planning,University College London,99837748,401.51,Training Awards - Postgraduates
BEIS,UKRI - BBSRC,18/11/2022,Training Awards - Postgraduates,FG - Accounts & Business Planning,Imperial College London,99837749,401.51,Training Awards - Postgraduates
BEIS,UKRI - BBSRC,18/11/2022,Training Awards - Postgraduates,FG - Accounts & Business Planning,University of Sheffield,99837750,401.51,Training Awards - Postgraduates
BEIS,UKRI - BBSRC,18/11/2022,Training Awards - Postgraduates,FG - Accounts & Business Planning,University of Nottingham,99837751,401.51,Training Awards - Postgraduates
BEIS,UKRI - BBSRC,18/11/2022,Training Awards - Postgraduates,FG - Accounts & Business Planning,University of Glasgow,99837752,401.51,Training Awards - Postgraduates
BEIS,UKRI - BBSRC,18/11/2022,Training Awards - Postgraduates,FG - Accounts & Business Planning,University of Leeds,99837753,401.51,Training Awards - Postgraduates
BEIS,UKRI - BBSRC,18/11/2022,Training Awards - Postgraduates,FG - Accounts & Business Planning,University of Cambridge,99837754,401.51,Training Awards - Postgraduates
BEIS,UKRI - BBSRC,18/11/2022,Training Awards - Postgraduates,FG - Accounts & Business Planning,University of Cambridge,99837755,401.51,Training Awards - Postgraduates
BEIS,UKRI - BBSRC,18/11/2022,Training Awards - Postgraduates,FG - Accounts & Business Planning,University of Cambridge,99837756,401.51,Training Awards - Postgraduates
BEIS,UKRI - BBSRC,18/11/2022,Training Awards - Postgraduates,FG - Accounts & Business Planning,University of Cambridge,99837757,401.51,Training Awards - Postgraduates
BEIS,UKRI - BBSRC,18/11/2022,Training Awards - Postgraduates,FG - Accounts & Business Planning,University of St Andrews,99837758,401.51,Training Awards - Postgraduates
BEIS,UKRI - BBSRC,18/11/2022,Training Awards - Postgraduates,FG - Accounts & Business Planning,The University of Manchester,99837759,401.51,Training Awards - Postgraduates
BEIS,UKRI - BBSRC,18/11/2022,Training Awards - Postgraduates,FG - Accounts & Business Planning,University of Exeter,99837760,401.51,Training Awards - Postgraduates
BEIS,UKRI - BBSRC,18/11/2022,Training Awards - Postgraduates,FG - Accounts & Business Planning,University of Exeter,99837761,401.51,Training Awards - Postgraduates
BEIS,UKRI - BBSRC,18/11/2022,Training Awards - Postgraduates,FG - Accounts & Business Planning,Keele University,99837762,401.51,Training Awards - Postgraduates
BEIS,UKRI - BBSRC,18/11/2022,Training Awards - Postgraduates,FG - Accounts & Business Planning,University of Edinburgh,99837763,401.51,Training Awards - Postgraduates
BEIS,UKRI - BBSRC,18/11/2022,Training Awards - Postgraduates,FG - Accounts & Business Planning,Wellcome Trust Sanger Institute,99837764,401.51,Training Awards - Postgraduates
BEIS,UKRI - BBSRC,18/11/2022,Training Awards - Postgraduates,FG - Accounts & Business Planning,University of Glasgow,99837765,401.51,Training Awards - Postgraduates
BEIS,UKRI - BBSRC,18/11/2022,Training Awards - Postgraduates,FG - Accounts & Business Planning,University of Sheffield,99837766,401.51,Training Awards - Postgraduates
BEIS,UKRI - BBSRC,18/11/2022,Training Awards - Postgraduates,FG - Accounts & Business Planning,University of Oxford,99837767,401.51,Training Awards - Postgraduates
BEIS,UKRI - BBSRC,18/11/2022,Training Awards - Postgraduates,FG - Accounts & Business Planning,Queen's University Belfast GRANT,99837768,5886.11,Training Awards - Postgraduates
BEIS,UKRI - BBSRC,18/11/2022,Training Awards - Postgraduates,FG - Accounts & Business Planning,University of Birmingham GRANT,99837769,401.51,Training Awards - Postgraduates
BEIS,UKRI - BBSRC,18/11/2022,Training Awards - Postgraduates,FG - Accounts & Business Planning,The University of Manchester,99837770,401.51,Training Awards - Postgraduates
BEIS,UKRI - BBSRC,18/11/2022,Training Awards - Postgraduates,FG - Accounts & Business Planning,University of Exeter,99837771,401.51,Training Awards - Postgraduates
BEIS,UKRI - BBSRC,18/11/2022,Training Awards - Postgraduates,FG - Accounts & Business Planning,University of Exeter,99837772,401.51,Training Awards - Postgraduates
BEIS,UKRI - BBSRC,18/11/2022,Training Awards - Postgraduates,FG - Accounts & Business Planning,University of Cambridge,99837773,401.51,Training Awards - Postgraduates
BEIS,UKRI - BBSRC,18/11/2022,Training Awards - Postgraduates,FG - Accounts & Business Planning,University of Cambridge,99837774,401.51,Training Awards - Postgraduates
BEIS,UKRI - BBSRC,18/11/2022,Training Awards - Postgraduates,FG - Accounts & Business Planning,Babraham Institute,99837775,401.51,Training Awards - Postgraduates
BEIS,UKRI - BBSRC,18/11/2022,Training Awards - Postgraduates,FG - Accounts & Business Planning,University of Nottingham,99837776,401.51,Training Awards - Postgraduates
BEIS,UKRI - BBSRC,18/11/2022,Training Awards - Postgraduates,FG - Accounts & Business Planning,University of Huddersfield,99837777,401.51,Training Awards - Postgraduates
BEIS,UKRI - BBSRC,18/11/2022,Training Awards - Postgraduates,FG - Accounts & Business Planning,University of Leeds,99837778,401.51,Training Awards - Postgraduates
BEIS,UKRI - BBSRC,18/11/2022,Training Awards - Postgraduates,FG - Accounts & Business Planning,University of Glasgow,99837779,401.51,Training Awards - Postgraduates
BEIS,UKRI - BBSRC,18/11/2022,Training Awards - Postgraduates,FG - Accounts & Business Planning,University of Edinburgh,99837780,401.51,Training Awards - Postgraduates
BEIS,UKRI - BBSRC,18/11/2022,Training Awards - Postgraduates,FG - Accounts & Business Planning,University of Strathclyde,99837781,401.51,Training Awards - Postgraduates
BEIS,UKRI - BBSRC,18/11/2022,Training Awards - Postgraduates,FG - Accounts & Business Planning,University of Sheffield,99837782,401.51,Training Awards - Postgraduates
BEIS,UKRI - BBSRC,18/11/2022,Training Awards - Postgraduates,FG - Accounts & Business Planning,University of Edinburgh,99837783,401.51,Training Awards - Postgraduates
BEIS,UKRI - BBSRC,18/11/2022,Training Awards - Postgraduates,FG - Accounts & Business Planning,University of Aberdeen,99837784,401.51,Training Awards - Postgraduates
BEIS,UKRI - BBSRC,18/11/2022,Training Awards - Postgraduates,FG - Accounts & Business Planning,University of York,99837785,401.51,Training Awards - Postgraduates
BEIS,UKRI - BBSRC,18/11/2022,Training Awards - Postgraduates,FG - Accounts & Business Planning,University of Edinburgh,99837786,401.51,Training Awards - Postgraduates
BEIS,UKRI - BBSRC,18/11/2022,Training Awards - Postgraduates,FG - Accounts & Business Planning,Heriot Watt University,99837787,401.51,Training Awards - Postgraduates
BEIS,UKRI - BBSRC,18/11/2022,Training Awards - Postgraduates,FG - Accounts & Business Planning,University of Edinburgh,99837788,401.51,Training Awards - Postgraduates
BEIS,UKRI - BBSRC,18/11/2022,Training Awards - Postgraduates,FG - Accounts & Business Planning,University of Greenwich,99837789,9836.74,Training Awards - Postgraduates
BEIS,UKRI - BBSRC,18/11/2022,Training Awards - Postgraduates,FG - Accounts & Business Planning,The University of Manchester,99837790,401.51,Training Awards - Postgraduates
BEIS,UKRI - BBSRC,18/11/2022,Training Awards - Postgraduates,FG - Accounts & Business Planning,The University of Manchester,99837791,401.51,Training Awards - Postgraduates
BEIS,UKRI - BBSRC,18/11/2022,Training Awards - Postgraduates,FG - Accounts & Business Planning,The University of Manchester,99837792,202.75,Training Awards - Postgraduates
BEIS,UKRI - BBSRC,18/11/2022,Training Awards - Postgraduates,FG - Accounts & Business Planning,University of Nottingham,99837793,401.51,Training Awards - Postgraduates
BEIS,UKRI - BBSRC,18/11/2022,Training Awards - Postgraduates,FG - Accounts & Business Planning,University of Warwick,99837794,401.51,Training Awards - Postgraduates
BEIS,UKRI - BBSRC,18/11/2022,Training Awards - Postgraduates,FG - Accounts & Business Planning,University of Nottingham,99837795,401.51,Training Awards - Postgraduates
BEIS,UKRI - BBSRC,18/11/2022,Training Awards - Postgraduates,FG - Accounts & Business Planning,University of Durham,99837796,401.51,Training Awards - Postgraduates
BEIS,UKRI - BBSRC,18/11/2022,Training Awards - Postgraduates,FG - Accounts & Business Planning,University of Cambridge,99837797,401.51,Training Awards - Postgraduates
BEIS,UKRI - BBSRC,18/11/2022,Training Awards - Postgraduates,FG - Accounts & Business Planning,National Institute For Agricultural Botany (NIAB),99837798,401.51,Training Awards - Postgraduates
BEIS,UKRI - BBSRC,18/11/2022,Training Awards - Postgraduates,FG - Accounts & Business Planning,National Institute For Agricultural Botany (NIAB),99837799,401.51,Training Awards - Postgraduates
BEIS,UKRI - BBSRC,18/11/2022,Training Awards - Postgraduates,FG - Accounts & Business Planning,University of Exeter,99837800,401.51,Training Awards - Postgraduates
BEIS,UKRI - BBSRC,18/11/2022,Training Awards - Postgraduates,FG - Accounts & Business Planning,University of Reading,99837801,401.51,Training Awards - Postgraduates
BEIS,UKRI - BBSRC,18/11/2022,Training Awards - Postgraduates,FG - Accounts & Business Planning,National Institute For Agricultural Botany (NIAB),99837802,401.51,Training Awards - Postgraduates
BEIS,UKRI - BBSRC,18/11/2022,Training Awards - Postgraduates,FG - Accounts & Business Planning,National Institute For Agricultural Botany (NIAB),99837803,401.51,Training Awards - Postgraduates
BEIS,UKRI - BBSRC,18/11/2022,Training Awards - Postgraduates,FG - Accounts & Business Planning,National Institute For Agricultural Botany (NIAB),99837804,401.51,Training Awards - Postgraduates
BEIS,UKRI - BBSRC,18/11/2022,Training Awards - Postgraduates,FG - Accounts & Business Planning,University College London,99837805,401.51,Training Awards - Postgraduates
BEIS,UKRI - BBSRC,18/11/2022,Training Awards - Postgraduates,FG - Accounts & Business Planning,Lancaster University,99837806,401.51,Training Awards - Postgraduates
BEIS,UKRI - BBSRC,18/11/2022,Training Awards - Postgraduates,FG - Accounts & Business Planning,University of Nottingham,99837807,401.51,Training Awards - Postgraduates
BEIS,UKRI - BBSRC,18/11/2022,Training Awards - Postgraduates,FG - Accounts & Business Planning,University of Liverpool,99837808,401.51,Training Awards - Postgraduates
BEIS,UKRI - BBSRC,18/11/2022,Training Awards - Postgraduates,FG - Accounts & Business Planning,University of Strathclyde,99837809,401.51,Training Awards - Postgraduates
BEIS,UKRI - BBSRC,18/11/2022,Training Awards - Postgraduates,FG - Accounts & Business Planning,"Royal Holloway, University of London",99837810,401.51,Training Awards - Postgraduates
BEIS,UKRI - BBSRC,18/11/2022,Training Awards - Postgraduates,FG - Accounts & Business Planning,Lancaster University,99837811,401.51,Training Awards - Postgraduates
BEIS,UKRI - BBSRC,18/11/2022,Training Awards - Postgraduates,FG - Accounts & Business Planning,University of Reading,99837812,401.51,Training Awards - Postgraduates
BEIS,UKRI - BBSRC,18/11/2022,Training Awards - Postgraduates,FG - Accounts & Business Planning,Lancaster University,99837813,401.51,Training Awards - Postgraduates
BEIS,UKRI - BBSRC,18/11/2022,Training Awards - Postgraduates,FG - Accounts & Business Planning,Lancaster University,99837814,401.51,Training Awards - Postgraduates
BEIS,UKRI - BBSRC,18/11/2022,Training Awards - Postgraduates,FG - Accounts & Business Planning,Lancaster University,99837815,401.51,Training Awards - Postgraduates
BEIS,UKRI - BBSRC,18/11/2022,Training Awards - Postgraduates,FG - Accounts & Business Planning,University of Liverpool,99837816,401.51,Training Awards - Postgraduates
BEIS,UKRI - BBSRC,18/11/2022,Training Awards - Postgraduates,FG - Accounts & Business Planning,Queen Mary University of London,99837817,216.01,Training Awards - Postgraduates
BEIS,UKRI - BBSRC,18/11/2022,Training Awards - Postgraduates,FG - Accounts & Business Planning,King's College London,99837818,401.51,Training Awards - Postgraduates
BEIS,UKRI - BBSRC,18/11/2022,Training Awards - Postgraduates,FG - Accounts & Business Planning,University of Birmingham GRANT,99837819,401.51,Training Awards - Postgraduates
BEIS,UKRI - BBSRC,18/11/2022,Training Awards - Postgraduates,FG - Accounts & Business Planning,University of Strathclyde,99837820,401.51,Training Awards - Postgraduates
BEIS,UKRI - BBSRC,18/11/2022,Training Awards - Postgraduates,FG - Accounts & Business Planning,University of Strathclyde,99837821,401.51,Training Awards - Postgraduates
BEIS,UKRI - BBSRC,18/11/2022,Training Awards - Postgraduates,FG - Accounts & Business Planning,University of York,99837822,401.51,Training Awards - Postgraduates
BEIS,UKRI - BBSRC,18/11/2022,Training Awards - Postgraduates,FG - Accounts & Business Planning,University of Newcastle Upon Tyne,99837823,401.51,Training Awards - Postgraduates
BEIS,UKRI - BBSRC,18/11/2022,Training Awards - Postgraduates,FG - Accounts & Business Planning,University of Edinburgh,99837824,401.51,Training Awards - Postgraduates
BEIS,UKRI - BBSRC,18/11/2022,Training Awards - Postgraduates,FG - Accounts & Business Planning,Lancaster University,99837825,401.51,Training Awards - Postgraduates
BEIS,UKRI - BBSRC,18/11/2022,Training Awards - Postgraduates,FG - Accounts & Business Planning,University of Newcastle Upon Tyne,99837826,401.51,Training Awards - Postgraduates
BEIS,UKRI - BBSRC,18/11/2022,Training Awards - Postgraduates,FG - Accounts & Business Planning,The University of Manchester,99837827,401.51,Training Awards - Postgraduates
BEIS,UKRI - BBSRC,18/11/2022,Training Awards - Postgraduates,FG - Accounts & Business Planning,The Scottish Association for Marine Science (SAMS Group),99837828,401.51,Training Awards - Postgraduates
BEIS,UKRI - BBSRC,18/11/2022,Training Awards - Postgraduates,FG - Accounts & Business Planning,University of Edinburgh,99837829,401.51,Training Awards - Postgraduates
BEIS,UKRI - BBSRC,18/11/2022,Training Awards - Postgraduates,FG - Accounts & Business Planning,University of Edinburgh,99837830,401.51,Training Awards - Postgraduates
BEIS,UKRI - BBSRC,18/11/2022,Training Awards - Postgraduates,FG - Accounts & Business Planning,The University of Manchester,99837831,401.51,Training Awards - Postgraduates
BEIS,UKRI - BBSRC,18/11/2022,Training Awards - Postgraduates,FG - Accounts & Business Planning,University of Sheffield,99837832,401.51,Training Awards - Postgraduates
BEIS,UKRI - BBSRC,18/11/2022,Training Awards - Postgraduates,FG - Accounts & Business Planning,University of Sheffield,99837833,401.51,Training Awards - Postgraduates
BEIS,UKRI - BBSRC,18/11/2022,Training Awards - Postgraduates,FG - Accounts & Business Planning,University of Cambridge,99837834,401.51,Training Awards - Postgraduates
BEIS,UKRI - BBSRC,18/11/2022,Training Awards - Postgraduates,FG - Accounts & Business Planning,King's College London,99837835,401.51,Training Awards - Postgraduates
BEIS,UKRI - BBSRC,18/11/2022,Training Awards - Postgraduates,FG - Accounts & Business Planning,Sheffield Hallam University,99837836,401.51,Training Awards - Postgraduates
BEIS,UKRI - BBSRC,18/11/2022,Training Awards - Postgraduates,FG - Accounts & Business Planning,University of Leeds,99837837,401.51,Training Awards - Postgraduates
BEIS,UKRI - BBSRC,18/11/2022,Training Awards - Postgraduates,FG - Accounts & Business Planning,Babraham Institute,99837838,401.51,Training Awards - Postgraduates
BEIS,UKRI - BBSRC,18/11/2022,Training Awards - Postgraduates,FG - Accounts & Business Planning,The University of Manchester,99837839,401.51,Training Awards - Postgraduates
BEIS,UKRI - BBSRC,18/11/2022,Training Awards - Postgraduates,FG - Accounts & Business Planning,The University of Manchester,99837840,401.51,Training Awards - Postgraduates
BEIS,UKRI - BBSRC,18/11/2022,Training Awards - Postgraduates,FG - Accounts & Business Planning,The University of Manchester,99837841,401.51,Training Awards - Postgraduates
BEIS,UKRI - BBSRC,18/11/2022,Training Awards - Postgraduates,FG - Accounts & Business Planning,University of Nottingham,99837842,401.51,Training Awards - Postgraduates
BEIS,UKRI - BBSRC,18/11/2022,Training Awards - Postgraduates,FG - Accounts & Business Planning,University of Nottingham,99837843,401.51,Training Awards - Postgraduates
BEIS,UKRI - BBSRC,18/11/2022,Training Awards - Postgraduates,FG - Accounts & Business Planning,University of Nottingham,99837844,401.51,Training Awards - Postgraduates
BEIS,UKRI - BBSRC,18/11/2022,Training Awards - Postgraduates,FG - Accounts & Business Planning,Cardiff University,99837845,401.51,Training Awards - Postgraduates
BEIS,UKRI - BBSRC,18/11/2022,Training Awards - Postgraduates,FG - Accounts & Business Planning,Queen's University Belfast GRANT,99837846,401.51,Training Awards - Postgraduates
BEIS,UKRI - BBSRC,18/11/2022,Training Awards - Postgraduates,FG - Accounts & Business Planning,University of Cambridge,99837847,401.51,Training Awards - Postgraduates
BEIS,UKRI - BBSRC,18/11/2022,Training Awards - Postgraduates,FG - Accounts & Business Planning,University of Glasgow,99837848,401.51,Training Awards - Postgraduates
BEIS,UKRI - BBSRC,18/11/2022,Training Awards - Postgraduates,FG - Accounts & Business Planning,University of Glasgow,99837849,401.51,Training Awards - Postgraduates
BEIS,UKRI - BBSRC,18/11/2022,Training Awards - Postgraduates,FG - Accounts & Business Planning,University of Glasgow,99837850,401.51,Training Awards - Postgraduates
BEIS,UKRI - BBSRC,18/11/2022,Training Awards - Postgraduates,FG - Accounts & Business Planning,University College London,99837851,401.51,Training Awards - Postgraduates
BEIS,UKRI - BBSRC,18/11/2022,Training Awards - Postgraduates,FG - Accounts & Business Planning,University College London,99837852,401.51,Training Awards - Postgraduates
BEIS,UKRI - BBSRC,18/11/2022,Training Awards - Postgraduates,FG - Accounts & Business Planning,European Bioinformatics Institute,99837853,401.51,Training Awards - Postgraduates
BEIS,UKRI - BBSRC,18/11/2022,Training Awards - Postgraduates,FG - Accounts & Business Planning,Rothamsted Research Ltd,99837854,401.51,Training Awards - Postgraduates
BEIS,UKRI - BBSRC,18/11/2022,Training Awards - Postgraduates,FG - Accounts & Business Planning,University of Newcastle Upon Tyne,99837855,401.51,Training Awards - Postgraduates
BEIS,UKRI - BBSRC,18/11/2022,Training Awards - Postgraduates,FG - Accounts & Business Planning,University of Newcastle Upon Tyne,99837856,401.51,Training Awards - Postgraduates
BEIS,UKRI - BBSRC,18/11/2022,Training Awards - Postgraduates,FG - Accounts & Business Planning,University of Newcastle Upon Tyne,99837857,401.51,Training Awards - Postgraduates
BEIS,UKRI - BBSRC,18/11/2022,Training Awards - Postgraduates,FG - Accounts & Business Planning,University of Bristol GRANT,99837858,401.51,Training Awards - Postgraduates
BEIS,UKRI - BBSRC,18/11/2022,Training Awards - Postgraduates,FG - Accounts & Business Planning,University of Exeter,99837859,401.51,Training Awards - Postgraduates
BEIS,UKRI - BBSRC,18/11/2022,Training Awards - Postgraduates,FG - Accounts & Business Planning,University of Birmingham GRANT,99837860,401.51,Training Awards - Postgraduates
BEIS,UKRI - BBSRC,18/11/2022,Training Awards - Postgraduates,FG - Accounts & Business Planning,University of Birmingham GRANT,99837861,401.51,Training Awards - Postgraduates
BEIS,UKRI - BBSRC,18/11/2022,Training Awards - Postgraduates,FG - Accounts & Business Planning,University of York,99837862,401.51,Training Awards - Postgraduates
BEIS,UKRI - BBSRC,18/11/2022,Training Awards - Postgraduates,FG - Accounts & Business Planning,University of York,99837863,401.51,Training Awards - Postgraduates
BEIS,UKRI - BBSRC,18/11/2022,Training Awards - Postgraduates,FG - Accounts & Business Planning,Queen Mary University of London,99837864,401.51,Training Awards - Postgraduates
BEIS,UKRI - BBSRC,18/11/2022,Training Awards - Postgraduates,FG - Accounts & Business Planning,University of Edinburgh,99837865,401.51,Training Awards - Postgraduates
BEIS,UKRI - BBSRC,18/11/2022,Training Awards - Postgraduates,FG - Accounts & Business Planning,University of Reading,99837866,401.51,Training Awards - Postgraduates
BEIS,UKRI - BBSRC,18/11/2022,Training Awards - Postgraduates,FG - Accounts & Business Planning,University of Leeds,99837867,401.51,Training Awards - Postgraduates
BEIS,UKRI - BBSRC,18/11/2022,Training Awards - Postgraduates,FG - Accounts & Business Planning,University of Durham,99837868,401.51,Training Awards - Postgraduates
BEIS,UKRI - BBSRC,18/11/2022,Training Awards - Postgraduates,FG - Accounts & Business Planning,Keele University,99837869,401.51,Training Awards - Postgraduates
BEIS,UKRI - BBSRC,18/11/2022,Training Awards - Postgraduates,FG - Accounts & Business Planning,King's College London,99837870,401.51,Training Awards - Postgraduates
BEIS,UKRI - BBSRC,18/11/2022,Training Awards - Postgraduates,FG - Accounts & Business Planning,King's College London,99837871,401.51,Training Awards - Postgraduates
BEIS,UKRI - BBSRC,18/11/2022,Training Awards - Postgraduates,FG - Accounts & Business Planning,Imperial College London,99837872,401.51,Training Awards - Postgraduates
BEIS,UKRI - BBSRC,18/11/2022,Training Awards - Postgraduates,FG - Accounts & Business Planning,Imperial College London,99837873,401.51,Training Awards - Postgraduates
BEIS,UKRI - BBSRC,18/11/2022,Training Awards - Postgraduates,FG - Accounts & Business Planning,Imperial College London,99837874,401.51,Training Awards - Postgraduates
BEIS,UKRI - BBSRC,18/11/2022,Training Awards - Postgraduates,FG - Accounts & Business Planning,University of Liverpool,99837875,401.51,Training Awards - Postgraduates
BEIS,UKRI - BBSRC,18/11/2022,Training Awards - Postgraduates,FG - Accounts & Business Planning,University of Cambridge,99837876,401.51,Training Awards - Postgraduates
BEIS,UKRI - BBSRC,18/11/2022,Training Awards - Postgraduates,FG - Accounts & Business Planning,University of Sheffield,99837877,401.51,Training Awards - Postgraduates
BEIS,UKRI - BBSRC,18/11/2022,Training Awards - Postgraduates,FG - Accounts & Business Planning,University of Southampton GRANT,99837878,401.51,Training Awards - Postgraduates
BEIS,UKRI - BBSRC,18/11/2022,Training Awards - Postgraduates,FG - Accounts & Business Planning,University of Southampton GRANT,99837879,401.51,Training Awards - Postgraduates
BEIS,UKRI - BBSRC,18/11/2022,Training Awards - Postgraduates,FG - Accounts & Business Planning,University of Hertfordshire,99837880,401.50,Training Awards - Postgraduates
BEIS,UKRI - BBSRC,18/11/2022,Training Awards - Postgraduates,FG - Accounts & Business Planning,University of Dundee,99837881,401.51,Training Awards - Postgraduates
BEIS,UKRI - BBSRC,18/11/2022,Training Awards - Postgraduates,FG - Accounts & Business Planning,University of Oxford,99837882,35733.49,Training Awards - Postgraduates
BEIS,UKRI - BBSRC,18/11/2022,Training Awards - Postgraduates,FG - Accounts & Business Planning,University of Reading,99837883,26499.00,Training Awards - Postgraduates
BEIS,UKRI - BBSRC,18/11/2022,Training Awards - Postgraduates,FG - Accounts & Business Planning,University of Southampton GRANT,99837884,34528.99,Training Awards - Postgraduates
BEIS,UKRI - BBSRC,18/11/2022,Training Awards - Postgraduates,FG - Accounts & Business Planning,University of Edinburgh,99837885,59422.01,Training Awards - Postgraduates
BEIS,UKRI - BBSRC,18/11/2022,Training Awards - Postgraduates,FG - Accounts & Business Planning,University of Bristol GRANT,99837886,45771.00,Training Awards - Postgraduates
BEIS,UKRI - BBSRC,18/11/2022,Training Awards - Postgraduates,FG - Accounts & Business Planning,The University of Manchester,99837887,40551.49,Training Awards - Postgraduates
BEIS,UKRI - BBSRC,18/11/2022,Training Awards - Postgraduates,FG - Accounts & Business Planning,John Innes Centre,99837888,46573.99,Training Awards - Postgraduates
BEIS,UKRI - BBSRC,18/11/2022,Training Awards - Postgraduates,FG - Accounts & Business Planning,University College London,99837889,50187.49,Training Awards - Postgraduates
BEIS,UKRI - BBSRC,18/11/2022,Training Awards - Postgraduates,FG - Accounts & Business Planning,University of Liverpool,99837890,31317.00,Training Awards - Postgraduates
BEIS,UKRI - BBSRC,18/11/2022,Training Awards - Postgraduates,FG - Accounts & Business Planning,University of Nottingham,99837891,56611.50,Training Awards - Postgraduates
BEIS,UKRI - BBSRC,18/11/2022,Training Awards - Postgraduates,FG - Accounts & Business Planning,University of Warwick,99837892,67853.51,Training Awards - Postgraduates
BEIS,UKRI - BBSRC,18/11/2022,Training Awards - Postgraduates,FG - Accounts & Business Planning,University of Leeds,99837893,30915.49,Training Awards - Postgraduates
BEIS,UKRI - BBSRC,18/11/2022,Training Awards - Postgraduates,FG - Accounts & Business Planning,University of Edinburgh,99837894,401.51,Training Awards - Postgraduates
BEIS,UKRI - BBSRC,18/11/2022,Training Awards - Postgraduates,FG - Accounts & Business Planning,University of Cambridge,99837895,798.99,Training Awards - Postgraduates
BEIS,UKRI - BBSRC,18/11/2022,Training Awards - Postgraduates,FG - Accounts & Business Planning,University of Oxford,99837896,803.00,Training Awards - Postgraduates
BEIS,UKRI - BBSRC,18/11/2022,Training Awards - Postgraduates,FG - Accounts & Business Planning,University of Oxford,99837897,463.33,Training Awards - Postgraduates
BEIS,UKRI - BBSRC,18/11/2022,Training Awards - Postgraduates,FG - Accounts & Business Planning,University of Oxford,99837898,803.00,Training Awards - Postgraduates
BEIS,UKRI - BBSRC,18/11/2022,Training Awards - Postgraduates,FG - Accounts & Business Planning,University of Oxford,99837899,405.52,Training Awards - Postgraduates
BEIS,UKRI - BBSRC,18/11/2022,Training Awards - Postgraduates,FG - Accounts & Business Planning,Queen Mary University of London,99837900,269.01,Training Awards - Postgraduates
BEIS,UKRI - BBSRC,18/11/2022,Training Awards - Postgraduates,FG - Accounts & Business Planning,University College London,99837901,542.83,Training Awards - Postgraduates
BEIS,UKRI - BBSRC,18/11/2022,Training Awards - Postgraduates,FG - Accounts & Business Planning,University College London,99837902,395.08,Training Awards - Postgraduates
BEIS,UKRI - BBSRC,18/11/2022,Training Awards - Postgraduates,FG - Accounts & Business Planning,King's College London,99837903,542.83,Training Awards - Postgraduates
BEIS,UKRI - BBSRC,18/11/2022,Training Awards - Postgraduates,FG - Accounts & Business Planning,University of Leeds,99837904,401.51,Training Awards - Postgraduates
BEIS,UKRI - BBSRC,18/11/2022,Training Awards - Postgraduates,FG - Accounts & Business Planning,National Institute For Agricultural Botany (NIAB),99837905,269.01,Training Awards - Postgraduates
BEIS,UKRI - BBSRC,18/11/2022,Training Awards - Postgraduates,FG - Accounts & Business Planning,Earlham Institute,99837906,269.01,Training Awards - Postgraduates
BEIS,UKRI - BBSRC,18/11/2022,Training Awards - Postgraduates,FG - Accounts & Business Planning,University of York,99837907,401.50,Training Awards - Postgraduates
BEIS,UKRI - BBSRC,18/11/2022,Training Awards - Postgraduates,FG - Accounts & Business Planning,University of Edinburgh,99837908,269.01,Training Awards - Postgraduates
BEIS,UKRI - BBSRC,18/11/2022,Training Awards - Postgraduates,FG - Accounts & Business Planning,University of Edinburgh,99837909,405.52,Training Awards - Postgraduates
BEIS,UKRI - BBSRC,18/11/2022,Training Awards - Postgraduates,FG - Accounts & Business Planning,University of Aberdeen,99837910,269.01,Training Awards - Postgraduates
BEIS,UKRI - BBSRC,18/11/2022,Training Awards - Postgraduates,FG - Accounts & Business Planning,University of Aberdeen,99837911,401.51,Training Awards - Postgraduates
BEIS,UKRI - BBSRC,18/11/2022,Training Awards - Postgraduates,FG - Accounts & Business Planning,University of Warwick,99837912,405.52,Training Awards - Postgraduates
BEIS,UKRI - BBSRC,18/11/2022,Training Awards - Postgraduates,FG - Accounts & Business Planning,University of Reading,99837913,803.00,Training Awards - Postgraduates
BEIS,UKRI - BBSRC,18/11/2022,Training Awards - Postgraduates,FG - Accounts & Business Planning,Imperial College London,99837914,401.51,Training Awards - Postgraduates
BEIS,UKRI - BBSRC,18/11/2022,Training Awards - Postgraduates,FG - Accounts & Business Planning,University of Birmingham GRANT,99837915,405.52,Training Awards - Postgraduates
BEIS,UKRI - BBSRC,18/11/2022,Training Awards - Postgraduates,FG - Accounts & Business Planning,University of Warwick,99837916,401.51,Training Awards - Postgraduates
BEIS,UKRI - BBSRC,18/11/2022,Training Awards - Postgraduates,FG - Accounts & Business Planning,University of Glasgow,99837917,401.51,Training Awards - Postgraduates
BEIS,UKRI - BBSRC,18/11/2022,Training Awards - Postgraduates,FG - Accounts & Business Planning,University of Nottingham,99837918,542.83,Training Awards - Postgraduates
BEIS,UKRI - BBSRC,18/11/2022,Training Awards - Postgraduates,FG - Accounts & Business Planning,University of Cambridge,99837919,401.51,Training Awards - Postgraduates
BEIS,UKRI - BBSRC,18/11/2022,Training Awards - Postgraduates,FG - Accounts & Business Planning,University of Leeds,99837920,405.52,Training Awards - Postgraduates
BEIS,UKRI - BBSRC,18/11/2022,Training Awards - Postgraduates,FG - Accounts & Business Planning,The University of Manchester,99837921,401.51,Training Awards - Postgraduates
BEIS,UKRI - BBSRC,18/11/2022,Training Awards - Postgraduates,FG - Accounts & Business Planning,University of Reading,99837922,269.01,Training Awards - Postgraduates
BEIS,UKRI - BBSRC,18/11/2022,Training Awards - Postgraduates,FG - Accounts & Business Planning,Sheffield Hallam University,99837923,803.00,Training Awards - Postgraduates
BEIS,UKRI - BBSRC,18/11/2022,Training Awards - Postgraduates,FG - Accounts & Business Planning,University of St Andrews,99837924,542.83,Training Awards - Postgraduates
BEIS,UKRI - BBSRC,18/11/2022,Training Awards - Postgraduates,FG - Accounts & Business Planning,Robert Gordon University,99837925,405.52,Training Awards - Postgraduates
BEIS,UKRI - BBSRC,18/11/2022,Training Awards - Postgraduates,FG - Accounts & Business Planning,University of Strathclyde,99837926,405.52,Training Awards - Postgraduates
BEIS,UKRI - BBSRC,18/11/2022,Training Awards - Postgraduates,FG - Accounts & Business Planning,University of Surrey,99837927,401.51,Training Awards - Postgraduates
BEIS,UKRI - BBSRC,18/11/2022,Training Awards - Postgraduates,FG - Accounts & Business Planning,University of York,99837928,405.52,Training Awards - Postgraduates
BEIS,UKRI - BBSRC,18/11/2022,Training Awards - Postgraduates,FG - Accounts & Business Planning,University of Exeter,99837929,370.99,Training Awards - Postgraduates
BEIS,UKRI - BBSRC,18/11/2022,Training Awards - Postgraduates,FG - Accounts & Business Planning,The University of Manchester,99837930,401.50,Training Awards - Postgraduates
BEIS,UKRI - BBSRC,18/11/2022,Training Awards - Postgraduates,FG - Accounts & Business Planning,University of Oxford,99837931,401.51,Training Awards - Postgraduates
BEIS,UKRI - BBSRC,18/11/2022,Training Awards - Postgraduates,FG - Accounts & Business Planning,University of Oxford,99837932,405.52,Training Awards - Postgraduates
BEIS,UKRI - BBSRC,18/11/2022,Training Awards - Postgraduates,FG - Accounts & Business Planning,Cardiff University,99837933,405.52,Training Awards - Postgraduates
BEIS,UKRI - BBSRC,18/11/2022,Training Awards - Postgraduates,FG - Accounts & Business Planning,Imperial College London,99837934,405.52,Training Awards - Postgraduates
BEIS,UKRI - BBSRC,18/11/2022,Training Awards - Postgraduates,FG - Accounts & Business Planning,University of Edinburgh,99837935,269.01,Training Awards - Postgraduates
BEIS,UKRI - BBSRC,18/11/2022,Training Awards - Postgraduates,FG - Accounts & Business Planning,University of Edinburgh,99837936,401.51,Training Awards - Postgraduates
BEIS,UKRI - BBSRC,18/11/2022,Training Awards - Postgraduates,FG - Accounts & Business Planning,University of Nottingham,99837937,401.51,Training Awards - Postgraduates
BEIS,UKRI - BBSRC,18/11/2022,Training Awards - Postgraduates,FG - Accounts & Business Planning,University of Aberdeen,99837938,401.51,Training Awards - Postgraduates
BEIS,UKRI - BBSRC,18/11/2022,Training Awards - Postgraduates,FG - Accounts & Business Planning,University of Liverpool,99837939,405.52,Training Awards - Postgraduates
BEIS,UKRI - BBSRC,18/11/2022,Training Awards - Postgraduates,FG - Accounts & Business Planning,King's College London,99837940,401.51,Training Awards - Postgraduates
BEIS,UKRI - BBSRC,18/11/2022,Training Awards - Postgraduates,FG - Accounts & Business Planning,University College London,99837941,401.50,Training Awards - Postgraduates
BEIS,UKRI - BBSRC,18/11/2022,Training Awards - Postgraduates,FG - Accounts & Business Planning,Imperial College London,99837942,405.52,Training Awards - Postgraduates
BEIS,UKRI - BBSRC,18/11/2022,Training Awards - Postgraduates,FG - Accounts & Business Planning,University of Sheffield,99837943,401.51,Training Awards - Postgraduates
BEIS,UKRI - BBSRC,18/11/2022,Training Awards - Postgraduates,FG - Accounts & Business Planning,University of Newcastle Upon Tyne,99837944,401.50,Training Awards - Postgraduates
BEIS,UKRI - BBSRC,18/11/2022,Training Awards - Postgraduates,FG - Accounts & Business Planning,University of Leeds,99837945,405.52,Training Awards - Postgraduates
BEIS,UKRI - BBSRC,18/11/2022,Training Awards - Postgraduates,FG - Accounts & Business Planning,University of Leeds,99837946,401.51,Training Awards - Postgraduates
BEIS,UKRI - BBSRC,18/11/2022,Training Awards - Postgraduates,FG - Accounts & Business Planning,University of York,99837947,269.01,Training Awards - Postgraduates
BEIS,UKRI - BBSRC,18/11/2022,Training Awards - Postgraduates,FG - Accounts & Business Planning,The University of Manchester,99837948,401.51,Training Awards - Postgraduates
BEIS,UKRI - BBSRC,18/11/2022,Training Awards - Postgraduates,FG - Accounts & Business Planning,National Institute For Agricultural Botany (NIAB),99837949,401.51,Training Awards - Postgraduates
BEIS,UKRI - BBSRC,18/11/2022,Training Awards - Postgraduates,FG - Accounts & Business Planning,University of Oxford,99837950,24334.91,Training Awards - Postgraduates
BEIS,UKRI - BBSRC,18/11/2022,Training Awards - Postgraduates,FG - Accounts & Business Planning,John Innes Centre,99837951,21603.51,Training Awards - Postgraduates
BEIS,UKRI - BBSRC,18/11/2022,Training Awards - Postgraduates,FG - Accounts & Business Planning,The University of Manchester,99837952,13147.92,Training Awards - Postgraduates
BEIS,UKRI - BBSRC,18/11/2022,Training Awards - Postgraduates,FG - Accounts & Business Planning,University of Cambridge,99837953,29135.25,Training Awards - Postgraduates
BEIS,UKRI - BBSRC,18/11/2022,Training Awards - Postgraduates,FG - Accounts & Business Planning,University of Newcastle Upon Tyne,99837954,15379.86,Training Awards - Postgraduates
BEIS,UKRI - BBSRC,18/11/2022,Training Awards - Postgraduates,FG - Accounts & Business Planning,Imperial College London,99837955,14160.50,Training Awards - Postgraduates
BEIS,UKRI - BBSRC,18/11/2022,Training Awards - Postgraduates,FG - Accounts & Business Planning,University of Warwick,99837956,37569.17,Training Awards - Postgraduates
BEIS,UKRI - BBSRC,18/11/2022,Training Awards - Postgraduates,FG - Accounts & Business Planning,University of Leeds,99837957,23005.95,Training Awards - Postgraduates
BEIS,UKRI - BBSRC,18/11/2022,Training Awards - Postgraduates,FG - Accounts & Business Planning,University of Edinburgh,99837958,19453.07,Training Awards - Postgraduates
BEIS,UKRI - BBSRC,18/11/2022,Training Awards - Postgraduates,FG - Accounts & Business Planning,University College London,99837959,30024.57,Training Awards - Postgraduates
BEIS,UKRI - BBSRC,18/11/2022,Training Awards - Postgraduates,FG - Accounts & Business Planning,University of Bristol GRANT,99837960,21219.69,Training Awards - Postgraduates
BEIS,UKRI - BBSRC,18/11/2022,Training Awards - Postgraduates,FG - Accounts & Business Planning,University of Nottingham,99837961,33778.99,Training Awards - Postgraduates
BEIS,UKRI - BBSRC,18/11/2022,T&S UK - Mileage,Innovation and Skills Group,Unspecified,99841198,31.50,T&S UK - Mileage
BEIS,UKRI - BBSRC,21/11/2022,Unspecified,Innovation and Skills Group,Unspecified,99839069,1800.00,Legal & Professional Services
BEIS,UKRI - BBSRC,21/11/2022,Non-staff travel and subsistance,CE - CPS,Unspecified,99841218,70.10,Non-staff travel and subsistance
BEIS,UKRI - BBSRC,21/11/2022,Fees (Including College Members),CE - CPS,Unspecified,99841219,255.00,Fees (Including College Members)
BEIS,UKRI - BBSRC,21/11/2022,Unspecified,Science Group – Admin Function,Unspecified,99841229,340.00,Council & Committee Honoraria
BEIS,UKRI - BBSRC,21/11/2022,Unspecified,Science Group – Admin Function,Unspecified,99841230,340.00,Council & Committee Honoraria
BEIS,UKRI - BBSRC,21/11/2022,Unspecified,Science Group – Admin Function,Unspecified,99841231,460.00,Council & Committee Honoraria
BEIS,UKRI - BBSRC,21/11/2022,Unspecified,Science Group – Admin Function,Unspecified,99841232,340.00,Council & Committee Honoraria
BEIS,UKRI - BBSRC,21/11/2022,Unspecified,Science Group – Admin Function,Unspecified,99841233,340.00,Council & Committee Honoraria
BEIS,UKRI - BBSRC,21/11/2022,Unspecified,Science Group – Admin Function,Unspecified,99841234,340.00,Council & Committee Honoraria
BEIS,UKRI - BBSRC,21/11/2022,Unspecified,Science Group - Delivery Function,Unspecified,99841235,340.00,Council & Committee Honoraria
BEIS,UKRI - BBSRC,21/11/2022,Unspecified,Science Group – Admin Function,Unspecified,99841236,340.00,Council & Committee Honoraria
BEIS,UKRI - BBSRC,21/11/2022,Research Institutes - Capital Grants: Minor Works,Rothamsted Research,Rothamsted Research Ltd,99841291,8858.26,Research Institutes - Capital Grants: Minor Works
BEIS,UKRI - BBSRC,22/11/2022,Research Institutes - Competitive Strategic Grant,Research: Strategic National Capability,John Innes Centre,99830972,21999.99,Research Institutes - Competitive Strategic Grant
BEIS,UKRI - BBSRC,22/11/2022,Research Institutes - Competitive Strategic Grant,Research: Strategic National Capability,John Innes Centre,99830972,511416.52,Research Institutes - Competitive Strategic Grant
BEIS,UKRI - BBSRC,22/11/2022,Research Institutes - Competitive Strategic Grant,Research: Strategic National Capability,John Innes Centre,99830972,65333.31,Research Institutes - Competitive Strategic Grant
BEIS,UKRI - BBSRC,22/11/2022,Research Institutes - Competitive Strategic Grant,Research: Strategic National Capability,John Innes Centre,99830972,501249.85,Research Institutes - Competitive Strategic Grant
BEIS,UKRI - BBSRC,22/11/2022,Research Institutes - Competitive Strategic Grant,Research: Strategic National Capability,John Innes Centre,99830972,7083.33,Research Institutes - Competitive Strategic Grant
BEIS,UKRI - BBSRC,22/11/2022,Research Institutes - Competitive Strategic Grant,Research: Strategic National Capability,Earlham Institute,99830975,163172.03,Research Institutes - Competitive Strategic Grant
BEIS,UKRI - BBSRC,22/11/2022,Research Institutes - Competitive Strategic Grant,Research: Strategic National Capability,Earlham Institute,99830975,81239.48,Research Institutes - Competitive Strategic Grant
BEIS,UKRI - BBSRC,22/11/2022,Research Institutes - Competitive Strategic Grant,Research: Strategic National Capability,Earlham Institute,99830975,42166.70,Research Institutes - Competitive Strategic Grant
BEIS,UKRI - BBSRC,22/11/2022,Research Institutes - Competitive Strategic Grant,Research: Strategic National Capability,Earlham Institute,99830975,33333.36,Research Institutes - Competitive Strategic Grant
BEIS,UKRI - BBSRC,22/11/2022,Research Institutes - Competitive Strategic Grant,Research: Strategic National Capability,Earlham Institute,99830975,121088.76,Research Institutes - Competitive Strategic Grant
BEIS,UKRI - BBSRC,22/11/2022,Research Institutes - Competitive Strategic Grant,Research: Strategic National Capability,Earlham Institute,99830975,2916.67,Research Institutes - Competitive Strategic Grant
BEIS,UKRI - BBSRC,22/11/2022,Research Institutes - Competitive Strategic Grant,Research: Strategic National Capability,Babraham Institute,99831103,64751.75,Research Institutes - Competitive Strategic Grant
BEIS,UKRI - BBSRC,22/11/2022,Research Institutes - Competitive Strategic Grant,Research: Strategic National Capability,John Innes Centre,99831106,187544.17,Research Institutes - Competitive Strategic Grant
BEIS,UKRI - BBSRC,22/11/2022,Research Institutes - Competitive Strategic Grant,Research: Strategic National Capability,Earlham Institute,99831107,31910.00,Research Institutes - Competitive Strategic Grant
BEIS,UKRI - BBSRC,22/11/2022,Research Institutes - Competitive Strategic Grant,Research: Strategic National Capability,Babraham Institute,99831134,352459.91,Research Institutes - Competitive Strategic Grant
BEIS,UKRI - BBSRC,22/11/2022,Research Institutes - Competitive Strategic Grant,Research: Strategic National Capability,Babraham Institute,99831134,48750.01,Research Institutes - Competitive Strategic Grant
BEIS,UKRI - BBSRC,22/11/2022,Research Institutes - Competitive Strategic Grant,Research: Strategic National Capability,Babraham Institute,99831134,395666.75,Research Institutes - Competitive Strategic Grant
BEIS,UKRI - BBSRC,22/11/2022,Research Institutes - Competitive Strategic Grant,Research: Strategic National Capability,Babraham Institute,99831134,5833.33,Research Institutes - Competitive Strategic Grant
BEIS,UKRI - BBSRC,22/11/2022,Research Institutes - Competitive Strategic Grant,Research: Strategic National Capability,Quadram Institute Bioscience,99831453,23624.41,Research Institutes - Competitive Strategic Grant
BEIS,UKRI - BBSRC,22/11/2022,Research Institutes - Competitive Strategic Grant,Research: Strategic National Capability,Quadram Institute Bioscience,99831453,347920.37,Research Institutes - Competitive Strategic Grant
BEIS,UKRI - BBSRC,22/11/2022,Research Institutes - Competitive Strategic Grant,Research: Strategic National Capability,Quadram Institute Bioscience,99831453,46083.32,Research Institutes - Competitive Strategic Grant
BEIS,UKRI - BBSRC,22/11/2022,Research Institutes - Competitive Strategic Grant,Research: Strategic National Capability,Quadram Institute Bioscience,99831453,261521.57,Research Institutes - Competitive Strategic Grant
BEIS,UKRI - BBSRC,22/11/2022,Research Institutes - Competitive Strategic Grant,Research: Strategic National Capability,Quadram Institute Bioscience,99831453,5833.33,Research Institutes - Competitive Strategic Grant
BEIS,UKRI - BBSRC,22/11/2022,Research Institutes - Competitive Strategic Grant,Research: Strategic National Capability,Rothamsted Research Ltd,99831973,96687.50,Research Institutes - Competitive Strategic Grant
BEIS,UKRI - BBSRC,22/11/2022,Institute Grant Expenditure,Research: Strategic National Capability,Rothamsted Research Ltd,99831996,53166.66,Institute Grant Expenditure
BEIS,UKRI - BBSRC,22/11/2022,Research Institutes - Competitive Strategic Grant,Research: Strategic National Capability,Quadram Institute Bioscience,99832248,41446.66,Research Institutes - Competitive Strategic Grant
BEIS,UKRI - BBSRC,22/11/2022,Research Institutes - Competitive Strategic Grant,Research: Strategic National Capability,Rothamsted Research Ltd,99833481,111253.33,Research Institutes - Competitive Strategic Grant
BEIS,UKRI - BBSRC,22/11/2022,Research Institutes - Competitive Strategic Grant,Research: Strategic National Capability,Rothamsted Research Ltd,99833481,418416.67,Research Institutes - Competitive Strategic Grant
BEIS,UKRI - BBSRC,22/11/2022,Research Institutes - Competitive Strategic Grant,Research: Strategic National Capability,Rothamsted Research Ltd,99833481,64666.67,Research Institutes - Competitive Strategic Grant
BEIS,UKRI - BBSRC,22/11/2022,Research Institutes - Competitive Strategic Grant,Research: Strategic National Capability,Rothamsted Research Ltd,99833481,197000.00,Research Institutes - Competitive Strategic Grant
BEIS,UKRI - BBSRC,22/11/2022,Research Institutes - Competitive Strategic Grant,Research: Strategic National Capability,Rothamsted Research Ltd,99833481,7083.33,Research Institutes - Competitive Strategic Grant
BEIS,UKRI - BBSRC,22/11/2022,Research Institutes - Capital Grants: Minor Works,Pirbright,The Pirbright Institute,99835855,31194.81,Research Institutes - Capital Grants: Minor Works
BEIS,UKRI - BBSRC,22/11/2022,Research Institutes - Competitive Strategic Grant,Research: Strategic National Capability,The Pirbright Institute,99835916,821732.78,Research Institutes - Competitive Strategic Grant
BEIS,UKRI - BBSRC,22/11/2022,Research Institutes - Competitive Strategic Grant,Research: Strategic National Capability,The Pirbright Institute,99835916,232698.64,Research Institutes - Competitive Strategic Grant
BEIS,UKRI - BBSRC,22/11/2022,Research Institutes - Competitive Strategic Grant,Research: Strategic National Capability,The Pirbright Institute,99835916,33505.92,Research Institutes - Competitive Strategic Grant
BEIS,UKRI - BBSRC,22/11/2022,Research Institutes - Competitive Strategic Grant,Research: Strategic National Capability,The Pirbright Institute,99835916,202124.49,Research Institutes - Competitive Strategic Grant
BEIS,UKRI - BBSRC,22/11/2022,Research Institutes - Competitive Strategic Grant,Research: Strategic National Capability,The Pirbright Institute,99835916,4188.24,Research Institutes - Competitive Strategic Grant
BEIS,UKRI - BBSRC,22/11/2022,Research Institutes - Competitive Strategic Grant,Research: Strategic National Capability,The Pirbright Institute,99835923,204682.50,Research Institutes - Competitive Strategic Grant
BEIS,UKRI - BBSRC,22/11/2022,Research Institutes - Competitive Strategic Grant,Research: Strategic National Capability,The Pirbright Institute,99836642,817500.04,Research Institutes - Competitive Strategic Grant
BEIS,UKRI - BBSRC,22/11/2022,Research Institutes - Competitive Strategic Grant,Research: Strategic National Capability,The Pirbright Institute,99836642,231500.01,Research Institutes - Competitive Strategic Grant
BEIS,UKRI - BBSRC,22/11/2022,Research Institutes - Competitive Strategic Grant,Research: Strategic National Capability,The Pirbright Institute,99836642,33333.34,Research Institutes - Competitive Strategic Grant
BEIS,UKRI - BBSRC,22/11/2022,Research Institutes - Competitive Strategic Grant,Research: Strategic National Capability,The Pirbright Institute,99836642,201083.35,Research Institutes - Competitive Strategic Grant
BEIS,UKRI - BBSRC,22/11/2022,Research Institutes - Competitive Strategic Grant,Research: Strategic National Capability,The Pirbright Institute,99836642,4166.67,Research Institutes - Competitive Strategic Grant
BEIS,UKRI - BBSRC,22/11/2022,Research Institutes - Competitive Strategic Grant,Research: Strategic National Capability,The Pirbright Institute,99836649,-821732.78,Research Institutes - Competitive Strategic Grant
BEIS,UKRI - BBSRC,22/11/2022,Research Institutes - Competitive Strategic Grant,Research: Strategic National Capability,The Pirbright Institute,99836649,-232698.64,Research Institutes - Competitive Strategic Grant
BEIS,UKRI - BBSRC,22/11/2022,Research Institutes - Competitive Strategic Grant,Research: Strategic National Capability,The Pirbright Institute,99836649,-33505.92,Research Institutes - Competitive Strategic Grant
BEIS,UKRI - BBSRC,22/11/2022,Research Institutes - Competitive Strategic Grant,Research: Strategic National Capability,The Pirbright Institute,99836649,-202124.49,Research Institutes - Competitive Strategic Grant
BEIS,UKRI - BBSRC,22/11/2022,Research Institutes - Competitive Strategic Grant,Research: Strategic National Capability,The Pirbright Institute,99836649,-4188.24,Research Institutes - Competitive Strategic Grant
BEIS,UKRI - BBSRC,22/11/2022,Research Institutes - Competitive Strategic Grant,Research: Strategic National Capability,Aberystwyth University,99841255,86360.99,Research Institutes - Competitive Strategic Grant
BEIS,UKRI - BBSRC,22/11/2022,Research Institutes - Competitive Strategic Grant,Research: Strategic National Capability,Aberystwyth University,99841255,46980.67,Research Institutes - Competitive Strategic Grant
BEIS,UKRI - BBSRC,22/11/2022,Research Institutes - Competitive Strategic Grant,Research: Strategic National Capability,Aberystwyth University,99841255,2916.67,Research Institutes - Competitive Strategic Grant
BEIS,UKRI - BBSRC,22/11/2022,Research Institutes - Competitive Strategic Grant,Research: Strategic National Capability,Aberystwyth University,99841256,5595.00,Research Institutes - Competitive Strategic Grant
BEIS,UKRI - BBSRC,22/11/2022,Unspecified,Science Group – Admin Function,Unspecified,99842323,340.00,Council & Committee Honoraria
BEIS,UKRI - BBSRC,22/11/2022,Unspecified,Science Group – Admin Function,Unspecified,99842324,340.00,Council & Committee Honoraria
BEIS,UKRI - BBSRC,22/11/2022,Unspecified,Science Group – Admin Function,Unspecified,99842325,340.00,Council & Committee Honoraria
BEIS,UKRI - BBSRC,22/11/2022,Unspecified,Science Group – Admin Function,Unspecified,99842326,340.00,Council & Committee Honoraria
BEIS,UKRI - BBSRC,22/11/2022,Unspecified,Science Group – Admin Function,Unspecified,99842327,340.00,Council & Committee Honoraria
BEIS,UKRI - BBSRC,22/11/2022,Unspecified,Science Group – Admin Function,Unspecified,99842328,460.00,Council & Committee Honoraria
